Organisation Name,Organisation Code,Unique Ref No,Effective Date,Directorate  where expenditure incurred,Supplier Name,Payment Date,Net Amount,Procurement Classification (Higher Level),Purpose of Spend,Procurement Classification (Lower Level),Capital/Revenue
Walsall Council,http://opendatacommunities.org/id/metropolitan-district-council/walsall,WC103-01,30/04/2019,Childrens,11KBW,04/04/2019,"3,125.00",63116-EXTERNAL BARRISTERS-SERVICES-FEES,PERFORMANCE & OUTCOMES TEAM (C&YP),Supplies & Services,Revenue
Walsall Council,http://opendatacommunities.org/id/metropolitan-district-council/walsall,WC103-02,30/04/2019,Childrens,247 CARS (WILLENHALL) LIMITED,01/04/2019,"4,261.00",52000-WITH DRIVER-HIRE OF VEHICLES,HOME TO SCHOOL TRANSPORT,Transport,Revenue
Walsall Council,http://opendatacommunities.org/id/metropolitan-district-council/walsall,WC103-03,30/04/2019,Childrens,247 CARS (WILLENHALL) LIMITED,01/04/2019,"5,103.00",52000-WITH DRIVER-HIRE OF VEHICLES,HOME TO SCHOOL TRANSPORT,Transport,Revenue
Walsall Council,http://opendatacommunities.org/id/metropolitan-district-council/walsall,WC103-04,30/04/2019,Childrens,247 CARS (WILLENHALL) LIMITED,24/04/2019,"5,568.00",52000-WITH DRIVER-HIRE OF VEHICLES,HOME TO SCHOOL TRANSPORT,Transport,Revenue
Walsall Council,http://opendatacommunities.org/id/metropolitan-district-council/walsall,WC103-05,30/04/2019,Resources and Transformation,4 SIGHT EYECARE CENTRE 002,11/04/2019,869.56,63000-PROFESSIONAL FEES AND SERVICES,HR DIRECT SERVICES,Supplies & Services,Revenue
Walsall Council,http://opendatacommunities.org/id/metropolitan-district-council/walsall,WC103-06,30/04/2019,Adult Social Care,5 CARE SERVICES LTD,26/04/2019,257.40,73507-DOMICILIARY CARE,PHYSICAL SUPPORT,Third Party Payments,Revenue
Walsall Council,http://opendatacommunities.org/id/metropolitan-district-council/walsall,WC103-07,30/04/2019,Adult Social Care,5 CARE SERVICES LTD,26/04/2019,266.76,73507-DOMICILIARY CARE,PHYSICAL SUPPORT,Third Party Payments,Revenue
Walsall Council,http://opendatacommunities.org/id/metropolitan-district-council/walsall,WC103-08,30/04/2019,Adult Social Care,5 CARE SERVICES LTD,01/04/2019,280.80,73507-DOMICILIARY CARE,PHYSICAL SUPPORT,Third Party Payments,Revenue
Walsall Council,http://opendatacommunities.org/id/metropolitan-district-council/walsall,WC103-09,30/04/2019,Adult Social Care,5 CARE SERVICES LTD,01/04/2019,286.68,73507-DOMICILIARY CARE,PHYSICAL SUPPORT,Third Party Payments,Revenue
Walsall Council,http://opendatacommunities.org/id/metropolitan-district-council/walsall,WC103-10,30/04/2019,Adult Social Care,5 CARE SERVICES LTD,26/04/2019,297.48,73507-DOMICILIARY CARE,PHYSICAL SUPPORT,Third Party Payments,Revenue
Walsall Council,http://opendatacommunities.org/id/metropolitan-district-council/walsall,WC103-11,30/04/2019,Adult Social Care,5 CARE SERVICES LTD,26/04/2019,320.86,73507-DOMICILIARY CARE,MENTAL HEALTH SUPPORT,Third Party Payments,Revenue
Walsall Council,http://opendatacommunities.org/id/metropolitan-district-council/walsall,WC103-12,30/04/2019,Adult Social Care,5 CARE SERVICES LTD,26/04/2019,320.87,73507-DOMICILIARY CARE,PHYSICAL SUPPORT,Third Party Payments,Revenue
Walsall Council,http://opendatacommunities.org/id/metropolitan-district-council/walsall,WC103-13,30/04/2019,Adult Social Care,5 CARE SERVICES LTD,01/04/2019,323.15,73507-DOMICILIARY CARE,SENSORY SUPPORT,Third Party Payments,Revenue
Walsall Council,http://opendatacommunities.org/id/metropolitan-district-council/walsall,WC103-14,30/04/2019,Adult Social Care,5 CARE SERVICES LTD,26/04/2019,330.20,73507-DOMICILIARY CARE,PHYSICAL SUPPORT,Third Party Payments,Revenue
Walsall Council,http://opendatacommunities.org/id/metropolitan-district-council/walsall,WC103-15,30/04/2019,Adult Social Care,5 CARE SERVICES LTD,01/04/2019,332.56,73507-DOMICILIARY CARE,PHYSICAL SUPPORT,Third Party Payments,Revenue
Walsall Council,http://opendatacommunities.org/id/metropolitan-district-council/walsall,WC103-16,30/04/2019,Adult Social Care,5 CARE SERVICES LTD,26/04/2019,337.20,73507-DOMICILIARY CARE,SENSORY SUPPORT,Third Party Payments,Revenue
Walsall Council,http://opendatacommunities.org/id/metropolitan-district-council/walsall,WC103-17,30/04/2019,Adult Social Care,5 CARE SERVICES LTD,26/04/2019,338.44,73507-DOMICILIARY CARE,PHYSICAL SUPPORT,Third Party Payments,Revenue
Walsall Council,http://opendatacommunities.org/id/metropolitan-district-council/walsall,WC103-18,30/04/2019,Adult Social Care,5 CARE SERVICES LTD,26/04/2019,340.76,73507-DOMICILIARY CARE,PHYSICAL SUPPORT,Third Party Payments,Revenue
Walsall Council,http://opendatacommunities.org/id/metropolitan-district-council/walsall,WC103-19,30/04/2019,Adult Social Care,5 CARE SERVICES LTD,01/04/2019,341.96,73507-DOMICILIARY CARE,PHYSICAL SUPPORT,Third Party Payments,Revenue
Walsall Council,http://opendatacommunities.org/id/metropolitan-district-council/walsall,WC103-20,30/04/2019,Adult Social Care,5 CARE SERVICES LTD,01/04/2019,365.32,73507-DOMICILIARY CARE,PHYSICAL SUPPORT,Third Party Payments,Revenue
Walsall Council,http://opendatacommunities.org/id/metropolitan-district-council/walsall,WC103-21,30/04/2019,Adult Social Care,5 CARE SERVICES LTD,01/04/2019,393.69,73507-DOMICILIARY CARE,PHYSICAL SUPPORT,Third Party Payments,Revenue
Walsall Council,http://opendatacommunities.org/id/metropolitan-district-council/walsall,WC103-22,30/04/2019,Adult Social Care,5 CARE SERVICES LTD,26/04/2019,393.69,73507-DOMICILIARY CARE,PHYSICAL SUPPORT,Third Party Payments,Revenue
Walsall Council,http://opendatacommunities.org/id/metropolitan-district-council/walsall,WC103-23,30/04/2019,Adult Social Care,5 CARE SERVICES LTD,26/04/2019,393.69,73507-DOMICILIARY CARE,PHYSICAL SUPPORT,Third Party Payments,Revenue
Walsall Council,http://opendatacommunities.org/id/metropolitan-district-council/walsall,WC103-24,30/04/2019,Adult Social Care,5 CARE SERVICES LTD,26/04/2019,394.86,73507-DOMICILIARY CARE,PHYSICAL SUPPORT,Third Party Payments,Revenue
Walsall Council,http://opendatacommunities.org/id/metropolitan-district-council/walsall,WC103-25,30/04/2019,Adult Social Care,5 CARE SERVICES LTD,01/04/2019,397.20,73507-DOMICILIARY CARE,PHYSICAL SUPPORT,Third Party Payments,Revenue
Walsall Council,http://opendatacommunities.org/id/metropolitan-district-council/walsall,WC103-26,30/04/2019,Adult Social Care,5 CARE SERVICES LTD,26/04/2019,400.73,73507-DOMICILIARY CARE,PHYSICAL SUPPORT,Third Party Payments,Revenue
Walsall Council,http://opendatacommunities.org/id/metropolitan-district-council/walsall,WC103-27,30/04/2019,Adult Social Care,5 CARE SERVICES LTD,26/04/2019,418.19,73507-DOMICILIARY CARE,PHYSICAL SUPPORT,Third Party Payments,Revenue
Walsall Council,http://opendatacommunities.org/id/metropolitan-district-council/walsall,WC103-28,30/04/2019,Adult Social Care,5 CARE SERVICES LTD,01/04/2019,451.90,73507-DOMICILIARY CARE,PHYSICAL SUPPORT,Third Party Payments,Revenue
Walsall Council,http://opendatacommunities.org/id/metropolitan-district-council/walsall,WC103-29,30/04/2019,Adult Social Care,5 CARE SERVICES LTD,01/04/2019,458.93,73507-DOMICILIARY CARE,SENSORY SUPPORT,Third Party Payments,Revenue
Walsall Council,http://opendatacommunities.org/id/metropolitan-district-council/walsall,WC103-30,30/04/2019,Adult Social Care,5 CARE SERVICES LTD,26/04/2019,460.09,73507-DOMICILIARY CARE,SENSORY SUPPORT,Third Party Payments,Revenue
Walsall Council,http://opendatacommunities.org/id/metropolitan-district-council/walsall,WC103-31,30/04/2019,Adult Social Care,5 CARE SERVICES LTD,26/04/2019,463.86,73507-DOMICILIARY CARE,PHYSICAL SUPPORT,Third Party Payments,Revenue
Walsall Council,http://opendatacommunities.org/id/metropolitan-district-council/walsall,WC103-32,30/04/2019,Adult Social Care,5 CARE SERVICES LTD,01/04/2019,465.05,73507-DOMICILIARY CARE,PHYSICAL SUPPORT,Third Party Payments,Revenue
Walsall Council,http://opendatacommunities.org/id/metropolitan-district-council/walsall,WC103-33,30/04/2019,Adult Social Care,5 CARE SERVICES LTD,01/04/2019,467.37,73507-DOMICILIARY CARE,PHYSICAL SUPPORT,Third Party Payments,Revenue
Walsall Council,http://opendatacommunities.org/id/metropolitan-district-council/walsall,WC103-34,30/04/2019,Adult Social Care,5 CARE SERVICES LTD,01/04/2019,468.28,73507-DOMICILIARY CARE,PHYSICAL SUPPORT,Third Party Payments,Revenue
Walsall Council,http://opendatacommunities.org/id/metropolitan-district-council/walsall,WC103-35,30/04/2019,Adult Social Care,5 CARE SERVICES LTD,26/04/2019,468.28,73507-DOMICILIARY CARE,PHYSICAL SUPPORT,Third Party Payments,Revenue
Walsall Council,http://opendatacommunities.org/id/metropolitan-district-council/walsall,WC103-36,30/04/2019,Adult Social Care,5 CARE SERVICES LTD,01/04/2019,475.45,73507-DOMICILIARY CARE,PHYSICAL SUPPORT,Third Party Payments,Revenue
Walsall Council,http://opendatacommunities.org/id/metropolitan-district-council/walsall,WC103-37,30/04/2019,Adult Social Care,5 CARE SERVICES LTD,01/04/2019,484.74,73507-DOMICILIARY CARE,PHYSICAL SUPPORT,Third Party Payments,Revenue
Walsall Council,http://opendatacommunities.org/id/metropolitan-district-council/walsall,WC103-38,30/04/2019,Adult Social Care,5 CARE SERVICES LTD,01/04/2019,488.45,73507-DOMICILIARY CARE,LEARNING DISABILITY SUPPORT,Third Party Payments,Revenue
Walsall Council,http://opendatacommunities.org/id/metropolitan-district-council/walsall,WC103-39,30/04/2019,Adult Social Care,5 CARE SERVICES LTD,26/04/2019,527.23,73507-DOMICILIARY CARE,PHYSICAL SUPPORT,Third Party Payments,Revenue
Walsall Council,http://opendatacommunities.org/id/metropolitan-district-council/walsall,WC103-40,30/04/2019,Adult Social Care,5 CARE SERVICES LTD,26/04/2019,530.57,73507-DOMICILIARY CARE,PHYSICAL SUPPORT,Third Party Payments,Revenue
Walsall Council,http://opendatacommunities.org/id/metropolitan-district-council/walsall,WC103-41,30/04/2019,Adult Social Care,5 CARE SERVICES LTD,26/04/2019,537.44,73507-DOMICILIARY CARE,PHYSICAL SUPPORT,Third Party Payments,Revenue
Walsall Council,http://opendatacommunities.org/id/metropolitan-district-council/walsall,WC103-42,30/04/2019,Adult Social Care,5 CARE SERVICES LTD,26/04/2019,552.52,73507-DOMICILIARY CARE,PHYSICAL SUPPORT,Third Party Payments,Revenue
Walsall Council,http://opendatacommunities.org/id/metropolitan-district-council/walsall,WC103-43,30/04/2019,Adult Social Care,5 CARE SERVICES LTD,26/04/2019,569.18,73507-DOMICILIARY CARE,PHYSICAL SUPPORT,Third Party Payments,Revenue
Walsall Council,http://opendatacommunities.org/id/metropolitan-district-council/walsall,WC103-44,30/04/2019,Adult Social Care,5 CARE SERVICES LTD,01/04/2019,573.57,73507-DOMICILIARY CARE,PHYSICAL SUPPORT,Third Party Payments,Revenue
Walsall Council,http://opendatacommunities.org/id/metropolitan-district-council/walsall,WC103-45,30/04/2019,Adult Social Care,5 CARE SERVICES LTD,01/04/2019,578.54,73507-DOMICILIARY CARE,PHYSICAL SUPPORT,Third Party Payments,Revenue
Walsall Council,http://opendatacommunities.org/id/metropolitan-district-council/walsall,WC103-46,30/04/2019,Adult Social Care,5 CARE SERVICES LTD,26/04/2019,585.28,73507-DOMICILIARY CARE,PHYSICAL SUPPORT,Third Party Payments,Revenue
Walsall Council,http://opendatacommunities.org/id/metropolitan-district-council/walsall,WC103-47,30/04/2019,Adult Social Care,5 CARE SERVICES LTD,01/04/2019,587.32,73507-DOMICILIARY CARE,PHYSICAL SUPPORT,Third Party Payments,Revenue
Walsall Council,http://opendatacommunities.org/id/metropolitan-district-council/walsall,WC103-48,30/04/2019,Childrens,5 CARE SERVICES LTD,04/04/2019,588.00,63000-PROFESSIONAL FEES AND SERVICES,DIRECTLY COMMISSIONED NURSING SERVICES,Supplies & Services,Revenue
Walsall Council,http://opendatacommunities.org/id/metropolitan-district-council/walsall,WC103-49,30/04/2019,Adult Social Care,5 CARE SERVICES LTD,01/04/2019,597.54,73507-DOMICILIARY CARE,PHYSICAL SUPPORT,Third Party Payments,Revenue
Walsall Council,http://opendatacommunities.org/id/metropolitan-district-council/walsall,WC103-50,30/04/2019,Adult Social Care,5 CARE SERVICES LTD,01/04/2019,601.12,73507-DOMICILIARY CARE,PHYSICAL SUPPORT,Third Party Payments,Revenue
Walsall Council,http://opendatacommunities.org/id/metropolitan-district-council/walsall,WC103-51,30/04/2019,Adult Social Care,5 CARE SERVICES LTD,26/04/2019,604.84,73507-DOMICILIARY CARE,PHYSICAL SUPPORT,Third Party Payments,Revenue
Walsall Council,http://opendatacommunities.org/id/metropolitan-district-council/walsall,WC103-52,30/04/2019,Adult Social Care,5 CARE SERVICES LTD,26/04/2019,607.52,73507-DOMICILIARY CARE,PHYSICAL SUPPORT,Third Party Payments,Revenue
Walsall Council,http://opendatacommunities.org/id/metropolitan-district-council/walsall,WC103-53,30/04/2019,Adult Social Care,5 CARE SERVICES LTD,26/04/2019,612.23,73507-DOMICILIARY CARE,PHYSICAL SUPPORT,Third Party Payments,Revenue
Walsall Council,http://opendatacommunities.org/id/metropolitan-district-council/walsall,WC103-54,30/04/2019,Adult Social Care,5 CARE SERVICES LTD,01/04/2019,621.56,73507-DOMICILIARY CARE,PHYSICAL SUPPORT,Third Party Payments,Revenue
Walsall Council,http://opendatacommunities.org/id/metropolitan-district-council/walsall,WC103-55,30/04/2019,Adult Social Care,5 CARE SERVICES LTD,26/04/2019,629.04,73507-DOMICILIARY CARE,LEARNING DISABILITY SUPPORT,Third Party Payments,Revenue
Walsall Council,http://opendatacommunities.org/id/metropolitan-district-council/walsall,WC103-56,30/04/2019,Adult Social Care,5 CARE SERVICES LTD,01/04/2019,629.92,73507-DOMICILIARY CARE,PHYSICAL SUPPORT,Third Party Payments,Revenue
Walsall Council,http://opendatacommunities.org/id/metropolitan-district-council/walsall,WC103-57,30/04/2019,Adult Social Care,5 CARE SERVICES LTD,01/04/2019,720.45,73507-DOMICILIARY CARE,PHYSICAL SUPPORT,Third Party Payments,Revenue
Walsall Council,http://opendatacommunities.org/id/metropolitan-district-council/walsall,WC103-58,30/04/2019,Adult Social Care,5 CARE SERVICES LTD,01/04/2019,755.75,73507-DOMICILIARY CARE,PHYSICAL SUPPORT,Third Party Payments,Revenue
Walsall Council,http://opendatacommunities.org/id/metropolitan-district-council/walsall,WC103-59,30/04/2019,Adult Social Care,5 CARE SERVICES LTD,26/04/2019,769.81,73507-DOMICILIARY CARE,PHYSICAL SUPPORT,Third Party Payments,Revenue
Walsall Council,http://opendatacommunities.org/id/metropolitan-district-council/walsall,WC103-60,30/04/2019,Adult Social Care,5 CARE SERVICES LTD,26/04/2019,787.37,73507-DOMICILIARY CARE,PHYSICAL SUPPORT,Third Party Payments,Revenue
Walsall Council,http://opendatacommunities.org/id/metropolitan-district-council/walsall,WC103-61,30/04/2019,Adult Social Care,5 CARE SERVICES LTD,01/04/2019,794.20,73507-DOMICILIARY CARE,PHYSICAL SUPPORT,Third Party Payments,Revenue
Walsall Council,http://opendatacommunities.org/id/metropolitan-district-council/walsall,WC103-62,30/04/2019,Adult Social Care,5 CARE SERVICES LTD,26/04/2019,804.96,73507-DOMICILIARY CARE,PHYSICAL SUPPORT,Third Party Payments,Revenue
Walsall Council,http://opendatacommunities.org/id/metropolitan-district-council/walsall,WC103-63,30/04/2019,Adult Social Care,5 CARE SERVICES LTD,26/04/2019,864.56,73507-DOMICILIARY CARE,PHYSICAL SUPPORT,Third Party Payments,Revenue
Walsall Council,http://opendatacommunities.org/id/metropolitan-district-council/walsall,WC103-64,30/04/2019,Adult Social Care,5 CARE SERVICES LTD,01/04/2019,875.10,73507-DOMICILIARY CARE,PHYSICAL SUPPORT,Third Party Payments,Revenue
Walsall Council,http://opendatacommunities.org/id/metropolitan-district-council/walsall,WC103-65,30/04/2019,Adult Social Care,5 CARE SERVICES LTD,01/04/2019,875.12,73507-DOMICILIARY CARE,PHYSICAL SUPPORT,Third Party Payments,Revenue
Walsall Council,http://opendatacommunities.org/id/metropolitan-district-council/walsall,WC103-66,30/04/2019,Adult Social Care,5 CARE SERVICES LTD,26/04/2019,878.63,73507-DOMICILIARY CARE,PHYSICAL SUPPORT,Third Party Payments,Revenue
Walsall Council,http://opendatacommunities.org/id/metropolitan-district-council/walsall,WC103-67,30/04/2019,Adult Social Care,5 CARE SERVICES LTD,26/04/2019,879.74,73507-DOMICILIARY CARE,PHYSICAL SUPPORT,Third Party Payments,Revenue
Walsall Council,http://opendatacommunities.org/id/metropolitan-district-council/walsall,WC103-68,30/04/2019,Adult Social Care,5 CARE SERVICES LTD,26/04/2019,882.13,73507-DOMICILIARY CARE,PHYSICAL SUPPORT,Third Party Payments,Revenue
Walsall Council,http://opendatacommunities.org/id/metropolitan-district-council/walsall,WC103-69,30/04/2019,Adult Social Care,5 CARE SERVICES LTD,01/04/2019,899.70,73507-DOMICILIARY CARE,PHYSICAL SUPPORT,Third Party Payments,Revenue
Walsall Council,http://opendatacommunities.org/id/metropolitan-district-council/walsall,WC103-70,30/04/2019,Adult Social Care,5 CARE SERVICES LTD,01/04/2019,903.11,73507-DOMICILIARY CARE,PHYSICAL SUPPORT,Third Party Payments,Revenue
Walsall Council,http://opendatacommunities.org/id/metropolitan-district-council/walsall,WC103-71,30/04/2019,Adult Social Care,5 CARE SERVICES LTD,26/04/2019,924.17,73507-DOMICILIARY CARE,PHYSICAL SUPPORT,Third Party Payments,Revenue
Walsall Council,http://opendatacommunities.org/id/metropolitan-district-council/walsall,WC103-72,30/04/2019,Adult Social Care,5 CARE SERVICES LTD,26/04/2019,955.84,73507-DOMICILIARY CARE,PHYSICAL SUPPORT,Third Party Payments,Revenue
Walsall Council,http://opendatacommunities.org/id/metropolitan-district-council/walsall,WC103-73,30/04/2019,Adult Social Care,5 CARE SERVICES LTD,01/04/2019,983.94,73507-DOMICILIARY CARE,PHYSICAL SUPPORT,Third Party Payments,Revenue
Walsall Council,http://opendatacommunities.org/id/metropolitan-district-council/walsall,WC103-74,30/04/2019,Adult Social Care,5 CARE SERVICES LTD,26/04/2019,990.60,73507-DOMICILIARY CARE,PHYSICAL SUPPORT,Third Party Payments,Revenue
Walsall Council,http://opendatacommunities.org/id/metropolitan-district-council/walsall,WC103-75,30/04/2019,Adult Social Care,5 CARE SERVICES LTD,01/04/2019,"1,047.33",73507-DOMICILIARY CARE,PHYSICAL SUPPORT,Third Party Payments,Revenue
Walsall Council,http://opendatacommunities.org/id/metropolitan-district-council/walsall,WC103-76,30/04/2019,Adult Social Care,5 CARE SERVICES LTD,01/04/2019,"1,132.46",73507-DOMICILIARY CARE,PHYSICAL SUPPORT,Third Party Payments,Revenue
Walsall Council,http://opendatacommunities.org/id/metropolitan-district-council/walsall,WC103-77,30/04/2019,Adult Social Care,5 CARE SERVICES LTD,26/04/2019,"1,174.00",73507-DOMICILIARY CARE,PHYSICAL SUPPORT,Third Party Payments,Revenue
Walsall Council,http://opendatacommunities.org/id/metropolitan-district-council/walsall,WC103-78,30/04/2019,Adult Social Care,5 CARE SERVICES LTD,26/04/2019,"1,243.66",73507-DOMICILIARY CARE,PHYSICAL SUPPORT,Third Party Payments,Revenue
Walsall Council,http://opendatacommunities.org/id/metropolitan-district-council/walsall,WC103-79,30/04/2019,Adult Social Care,5 CARE SERVICES LTD,01/04/2019,"1,244.22",73507-DOMICILIARY CARE,PHYSICAL SUPPORT,Third Party Payments,Revenue
Walsall Council,http://opendatacommunities.org/id/metropolitan-district-council/walsall,WC103-80,30/04/2019,Adult Social Care,5 CARE SERVICES LTD,01/04/2019,"1,249.51",73507-DOMICILIARY CARE,PHYSICAL SUPPORT,Third Party Payments,Revenue
Walsall Council,http://opendatacommunities.org/id/metropolitan-district-council/walsall,WC103-81,30/04/2019,Adult Social Care,5 CARE SERVICES LTD,01/04/2019,"1,328.48",73507-DOMICILIARY CARE,PHYSICAL SUPPORT,Third Party Payments,Revenue
Walsall Council,http://opendatacommunities.org/id/metropolitan-district-council/walsall,WC103-82,30/04/2019,Adult Social Care,5 CARE SERVICES LTD,26/04/2019,"1,329.09",73507-DOMICILIARY CARE,PHYSICAL SUPPORT,Third Party Payments,Revenue
Walsall Council,http://opendatacommunities.org/id/metropolitan-district-council/walsall,WC103-83,30/04/2019,Adult Social Care,5 CARE SERVICES LTD,01/04/2019,"1,360.65",73507-DOMICILIARY CARE,PHYSICAL SUPPORT,Third Party Payments,Revenue
Walsall Council,http://opendatacommunities.org/id/metropolitan-district-council/walsall,WC103-84,30/04/2019,Adult Social Care,5 CARE SERVICES LTD,26/04/2019,"1,546.32",73507-DOMICILIARY CARE,PHYSICAL SUPPORT,Third Party Payments,Revenue
Walsall Council,http://opendatacommunities.org/id/metropolitan-district-council/walsall,WC103-85,30/04/2019,Adult Social Care,5 CARE SERVICES LTD,01/04/2019,"1,560.66",73507-DOMICILIARY CARE,PHYSICAL SUPPORT,Third Party Payments,Revenue
Walsall Council,http://opendatacommunities.org/id/metropolitan-district-council/walsall,WC103-86,30/04/2019,Adult Social Care,5 CARE SERVICES LTD,26/04/2019,"1,581.76",73507-DOMICILIARY CARE,PHYSICAL SUPPORT,Third Party Payments,Revenue
Walsall Council,http://opendatacommunities.org/id/metropolitan-district-council/walsall,WC103-87,30/04/2019,Adult Social Care,5 CARE SERVICES LTD,01/04/2019,"1,630.72",73507-DOMICILIARY CARE,PHYSICAL SUPPORT,Third Party Payments,Revenue
Walsall Council,http://opendatacommunities.org/id/metropolitan-district-council/walsall,WC103-88,30/04/2019,Adult Social Care,5 CARE SERVICES LTD,01/04/2019,"1,763.89",73507-DOMICILIARY CARE,PHYSICAL SUPPORT,Third Party Payments,Revenue
Walsall Council,http://opendatacommunities.org/id/metropolitan-district-council/walsall,WC103-89,30/04/2019,Adult Social Care,5 CARE SERVICES LTD,26/04/2019,"1,771.28",73507-DOMICILIARY CARE,PHYSICAL SUPPORT,Third Party Payments,Revenue
Walsall Council,http://opendatacommunities.org/id/metropolitan-district-council/walsall,WC103-90,30/04/2019,Adult Social Care,5 CARE SERVICES LTD,01/04/2019,"1,778.24",73507-DOMICILIARY CARE,PHYSICAL SUPPORT,Third Party Payments,Revenue
Walsall Council,http://opendatacommunities.org/id/metropolitan-district-council/walsall,WC103-91,30/04/2019,Adult Social Care,5 CARE SERVICES LTD,26/04/2019,"1,781.65",73507-DOMICILIARY CARE,PHYSICAL SUPPORT,Third Party Payments,Revenue
Walsall Council,http://opendatacommunities.org/id/metropolitan-district-council/walsall,WC103-92,30/04/2019,Adult Social Care,5 CARE SERVICES LTD,01/04/2019,"1,820.23",73507-DOMICILIARY CARE,PHYSICAL SUPPORT,Third Party Payments,Revenue
Walsall Council,http://opendatacommunities.org/id/metropolitan-district-council/walsall,WC103-93,30/04/2019,Adult Social Care,A & A CLEANING ANGELS,04/04/2019,350.00,60539-CLEANING MATERIALS,INTERMEDIATE CARE SERVICE,Supplies & Services,Revenue
Walsall Council,http://opendatacommunities.org/id/metropolitan-district-council/walsall,WC103-94,30/04/2019,Resources and Transformation,A D T FIRE AND SECURITY PLC,29/04/2019,215.72,73002-SECURITY-PRIV CONTRACTOR FEES,CENTRALISED MAINTENANCE,Third Party Payments,Revenue
Walsall Council,http://opendatacommunities.org/id/metropolitan-district-council/walsall,WC103-95,30/04/2019,Resources and Transformation,A D T FIRE AND SECURITY PLC,29/04/2019,"1,175.06",73002-SECURITY-PRIV CONTRACTOR FEES,CENTRALISED MAINTENANCE,Third Party Payments,Revenue
Walsall Council,http://opendatacommunities.org/id/metropolitan-district-council/walsall,WC103-96,30/04/2019,Resources and Transformation,A D T FIRE AND SECURITY PLC,04/04/2019,"1,235.75",73002-SECURITY-PRIV CONTRACTOR FEES,CENTRALISED MAINTENANCE,Third Party Payments,Revenue
Walsall Council,http://opendatacommunities.org/id/metropolitan-district-council/walsall,WC103-97,30/04/2019,Economy & Environment,A F BLAKEMORE & SON LTD,15/04/2019,272.06,61008-CONFECTIONERY/SNACKS-PROVISIONS,WALSALL GALA CENTRE,Supplies & Services,Revenue
Walsall Council,http://opendatacommunities.org/id/metropolitan-district-council/walsall,WC103-98,30/04/2019,Adult Social Care,A F BLAKEMORE & SON LTD,02/04/2019,391.48,61016-FOOD AND BEVERAGES-PROVISIONS,GOSCOTE,Supplies & Services,Revenue
Walsall Council,http://opendatacommunities.org/id/metropolitan-district-council/walsall,WC103-99,30/04/2019,Economy & Environment,A F BLAKEMORE & SON LTD,17/04/2019,410.41,61018-DRINKS-PROVISIONS,OAK PARK,Supplies & Services,Revenue
Walsall Council,http://opendatacommunities.org/id/metropolitan-district-council/walsall,WC103-100,30/04/2019,Economy & Environment,A F BLAKEMORE & SON LTD,17/04/2019,456.06,61018-DRINKS-PROVISIONS,OAK PARK,Supplies & Services,Revenue
Walsall Council,http://opendatacommunities.org/id/metropolitan-district-council/walsall,WC103-101,30/04/2019,Economy & Environment,A F BLAKEMORE & SON LTD,15/04/2019,460.21,61016-FOOD AND BEVERAGES-PROVISIONS,BLOXWICH LEISURE CENTRE,Supplies & Services,Revenue
Walsall Council,http://opendatacommunities.org/id/metropolitan-district-council/walsall,WC103-102,30/04/2019,Adult Social Care,A F BLAKEMORE & SON LTD,25/04/2019,487.33,61016-FOOD AND BEVERAGES-PROVISIONS,GOSCOTE,Supplies & Services,Revenue
Walsall Council,http://opendatacommunities.org/id/metropolitan-district-council/walsall,WC103-103,30/04/2019,Economy & Environment,A F BLAKEMORE & SON LTD,25/04/2019,522.53,61018-DRINKS-PROVISIONS,OAK PARK,Supplies & Services,Revenue
Walsall Council,http://opendatacommunities.org/id/metropolitan-district-council/walsall,WC103-104,30/04/2019,Economy & Environment,A F BLAKEMORE & SON LTD,11/04/2019,526.89,61008-CONFECTIONERY/SNACKS-PROVISIONS,DARLASTON LEISURE CENTRE,Supplies & Services,Revenue
Walsall Council,http://opendatacommunities.org/id/metropolitan-district-council/walsall,WC103-105,30/04/2019,Economy & Environment,A F BLAKEMORE & SON LTD,24/04/2019,706.49,61008-CONFECTIONERY/SNACKS-PROVISIONS,OAK PARK,Supplies & Services,Revenue
Walsall Council,http://opendatacommunities.org/id/metropolitan-district-council/walsall,WC103-106,30/04/2019,Economy & Environment,A F BLAKEMORE & SON LTD,03/04/2019,931.95,61008-CONFECTIONERY/SNACKS-PROVISIONS,OAK PARK,Supplies & Services,Revenue
Walsall Council,http://opendatacommunities.org/id/metropolitan-district-council/walsall,WC103-107,30/04/2019,Economy & Environment,AAINA COMMUNITY HUB,23/04/2019,"2,500.00",63253-PAYMENT TO CONTRACTOR,MENTAL HEALTH,Third Party Payments,Revenue
Walsall Council,http://opendatacommunities.org/id/metropolitan-district-council/walsall,WC103-108,30/04/2019,Childrens,REDACTED,08/04/2019,867.30,73506-DIRECT PAYMENT,FAMILY SUPPORT - DIRECT PAYMENTS,Third Party Payments,Revenue
Walsall Council,http://opendatacommunities.org/id/metropolitan-district-council/walsall,WC103-109,30/04/2019,Adult Social Care,ABBEY COURT NURSING & RESIDEN,02/04/2019,"1,728.84",73500-RESIDENTIAL,PHYSICAL SUPPORT,Third Party Payments,Revenue
Walsall Council,http://opendatacommunities.org/id/metropolitan-district-council/walsall,WC103-110,30/04/2019,Adult Social Care,ABBEY COURT NURSING & RESIDEN,29/04/2019,"1,728.84",73500-RESIDENTIAL,PHYSICAL SUPPORT,Third Party Payments,Revenue
Walsall Council,http://opendatacommunities.org/id/metropolitan-district-council/walsall,WC103-111,30/04/2019,Adult Social Care,ABBEY COURT NURSING & RESIDEN,02/04/2019,"1,876.52",73501-RESIDENTIAL EMI,PHYSICAL SUPPORT,Third Party Payments,Revenue
Walsall Council,http://opendatacommunities.org/id/metropolitan-district-council/walsall,WC103-112,30/04/2019,Adult Social Care,ABBEY COURT NURSING & RESIDEN,02/04/2019,"1,876.52",73501-RESIDENTIAL EMI,SUPPORT WITH MEMORY & COGNITION,Third Party Payments,Revenue
Walsall Council,http://opendatacommunities.org/id/metropolitan-district-council/walsall,WC103-113,30/04/2019,Adult Social Care,ABBEY COURT NURSING & RESIDEN,02/04/2019,"1,876.52",73501-RESIDENTIAL EMI,PHYSICAL SUPPORT,Third Party Payments,Revenue
Walsall Council,http://opendatacommunities.org/id/metropolitan-district-council/walsall,WC103-114,30/04/2019,Adult Social Care,ABBEY COURT NURSING & RESIDEN,29/04/2019,"1,876.52",73501-RESIDENTIAL EMI,PHYSICAL SUPPORT,Third Party Payments,Revenue
Walsall Council,http://opendatacommunities.org/id/metropolitan-district-council/walsall,WC103-115,30/04/2019,Adult Social Care,ABBEY COURT NURSING & RESIDEN,29/04/2019,"1,876.52",73501-RESIDENTIAL EMI,SUPPORT WITH MEMORY & COGNITION,Third Party Payments,Revenue
Walsall Council,http://opendatacommunities.org/id/metropolitan-district-council/walsall,WC103-116,30/04/2019,Adult Social Care,ABBEY COURT NURSING & RESIDEN,29/04/2019,"1,876.52",73501-RESIDENTIAL EMI,PHYSICAL SUPPORT,Third Party Payments,Revenue
Walsall Council,http://opendatacommunities.org/id/metropolitan-district-council/walsall,WC103-117,30/04/2019,Adult Social Care,ABBEY COURT NURSING & RESIDEN,02/04/2019,"2,243.64",73503-NURSING EMI,PHYSICAL SUPPORT,Third Party Payments,Revenue
Walsall Council,http://opendatacommunities.org/id/metropolitan-district-council/walsall,WC103-118,30/04/2019,Adult Social Care,ABBEY COURT NURSING & RESIDEN,02/04/2019,"2,243.64",73503-NURSING EMI,MENTAL HEALTH SUPPORT,Third Party Payments,Revenue
Walsall Council,http://opendatacommunities.org/id/metropolitan-district-council/walsall,WC103-119,30/04/2019,Adult Social Care,ABBEY COURT NURSING & RESIDEN,29/04/2019,"2,243.64",73503-NURSING EMI,MENTAL HEALTH SUPPORT,Third Party Payments,Revenue
Walsall Council,http://opendatacommunities.org/id/metropolitan-district-council/walsall,WC103-120,30/04/2019,Adult Social Care,ABBEY COURT NURSING & RESIDEN,02/04/2019,"2,279.68",73502-NURSING,SUPPORT WITH MEMORY & COGNITION,Third Party Payments,Revenue
Walsall Council,http://opendatacommunities.org/id/metropolitan-district-council/walsall,WC103-121,30/04/2019,Adult Social Care,ABBEY COURT NURSING & RESIDEN,29/04/2019,"2,279.68",73502-NURSING,SUPPORT WITH MEMORY & COGNITION,Third Party Payments,Revenue
Walsall Council,http://opendatacommunities.org/id/metropolitan-district-council/walsall,WC103-122,30/04/2019,Adult Social Care,ABBEY HEALTHCARE HOMES LTD,25/04/2019,535.71,73025-PROFESSIONAL SERVICES-PRIV CONTRACTOR & OTHER AGENCIES,TRANSITIONAL CARE SUPPORT TEAM,Third Party Payments,Revenue
Walsall Council,http://opendatacommunities.org/id/metropolitan-district-council/walsall,WC103-123,30/04/2019,Adult Social Care,ABBEY HEALTHCARE HOMES LTD,29/04/2019,964.28,73502-NURSING,PHYSICAL SUPPORT,Third Party Payments,Revenue
Walsall Council,http://opendatacommunities.org/id/metropolitan-district-council/walsall,WC103-124,30/04/2019,Adult Social Care,ABBEY HEALTHCARE HOMES LTD,02/04/2019,"1,699.28",73502-NURSING,PHYSICAL SUPPORT,Third Party Payments,Revenue
Walsall Council,http://opendatacommunities.org/id/metropolitan-district-council/walsall,WC103-125,30/04/2019,Adult Social Care,ABBEY HEALTHCARE HOMES LTD,29/04/2019,"1,699.28",73502-NURSING,PHYSICAL SUPPORT,Third Party Payments,Revenue
Walsall Council,http://opendatacommunities.org/id/metropolitan-district-council/walsall,WC103-126,30/04/2019,Adult Social Care,ABBEY HEALTHCARE HOMES LTD,25/04/2019,"2,035.71",73025-PROFESSIONAL SERVICES-PRIV CONTRACTOR & OTHER AGENCIES,TRANSITIONAL CARE SUPPORT TEAM,Third Party Payments,Revenue
Walsall Council,http://opendatacommunities.org/id/metropolitan-district-council/walsall,WC103-127,30/04/2019,Adult Social Care,ABBEY HEALTHCARE HOMES LTD,29/04/2019,"2,154.05",73500-RESIDENTIAL,PHYSICAL SUPPORT,Third Party Payments,Revenue
Walsall Council,http://opendatacommunities.org/id/metropolitan-district-council/walsall,WC103-128,30/04/2019,Adult Social Care,ABBEY HEALTHCARE HOMES LTD,02/04/2019,"2,294.08",73502-NURSING,PHYSICAL SUPPORT,Third Party Payments,Revenue
Walsall Council,http://opendatacommunities.org/id/metropolitan-district-council/walsall,WC103-129,30/04/2019,Adult Social Care,ABBEY HEALTHCARE HOMES LTD,29/04/2019,"2,294.08",73502-NURSING,PHYSICAL SUPPORT,Third Party Payments,Revenue
Walsall Council,http://opendatacommunities.org/id/metropolitan-district-council/walsall,WC103-130,30/04/2019,Adult Social Care,ABBEY HEALTHCARE HOMES LTD,29/04/2019,"2,774.52",73504-SHORT STAY RESIDENTIAL,PHYSICAL SUPPORT,Third Party Payments,Revenue
Walsall Council,http://opendatacommunities.org/id/metropolitan-district-council/walsall,WC103-131,30/04/2019,Adult Social Care,ABBEY HEALTHCARE HOMES LTD,02/04/2019,"3,000.00",73500-RESIDENTIAL,LEARNING DISABILITY SUPPORT,Third Party Payments,Revenue
Walsall Council,http://opendatacommunities.org/id/metropolitan-district-council/walsall,WC103-132,30/04/2019,Adult Social Care,ABBEY HEALTHCARE HOMES LTD,02/04/2019,"3,000.00",73502-NURSING,LEARNING DISABILITY SUPPORT,Third Party Payments,Revenue
Walsall Council,http://opendatacommunities.org/id/metropolitan-district-council/walsall,WC103-133,30/04/2019,Adult Social Care,ABBEY HEALTHCARE HOMES LTD,02/04/2019,"3,000.00",73502-NURSING,PHYSICAL SUPPORT,Third Party Payments,Revenue
Walsall Council,http://opendatacommunities.org/id/metropolitan-district-council/walsall,WC103-134,30/04/2019,Adult Social Care,ABBEY HEALTHCARE HOMES LTD,02/04/2019,"3,000.00",73502-NURSING,LEARNING DISABILITY SUPPORT,Third Party Payments,Revenue
Walsall Council,http://opendatacommunities.org/id/metropolitan-district-council/walsall,WC103-135,30/04/2019,Adult Social Care,ABBEY HEALTHCARE HOMES LTD,25/04/2019,"3,000.00",73025-PROFESSIONAL SERVICES-PRIV CONTRACTOR & OTHER AGENCIES,TRANSITIONAL CARE SUPPORT TEAM,Third Party Payments,Revenue
Walsall Council,http://opendatacommunities.org/id/metropolitan-district-council/walsall,WC103-136,30/04/2019,Adult Social Care,ABBEY HEALTHCARE HOMES LTD,29/04/2019,"3,000.00",73500-RESIDENTIAL,LEARNING DISABILITY SUPPORT,Third Party Payments,Revenue
Walsall Council,http://opendatacommunities.org/id/metropolitan-district-council/walsall,WC103-137,30/04/2019,Adult Social Care,ABBEY HEALTHCARE HOMES LTD,29/04/2019,"3,000.00",73502-NURSING,LEARNING DISABILITY SUPPORT,Third Party Payments,Revenue
Walsall Council,http://opendatacommunities.org/id/metropolitan-district-council/walsall,WC103-138,30/04/2019,Adult Social Care,ABBEY HEALTHCARE HOMES LTD,29/04/2019,"3,000.00",73502-NURSING,PHYSICAL SUPPORT,Third Party Payments,Revenue
Walsall Council,http://opendatacommunities.org/id/metropolitan-district-council/walsall,WC103-139,30/04/2019,Adult Social Care,ABBEY HEALTHCARE HOMES LTD,29/04/2019,"3,000.00",73502-NURSING,LEARNING DISABILITY SUPPORT,Third Party Payments,Revenue
Walsall Council,http://opendatacommunities.org/id/metropolitan-district-council/walsall,WC103-140,30/04/2019,Adult Social Care,ABBEY HEALTHCARE HOMES LTD,02/04/2019,"3,400.00",73503-NURSING EMI,PHYSICAL SUPPORT,Third Party Payments,Revenue
Walsall Council,http://opendatacommunities.org/id/metropolitan-district-council/walsall,WC103-141,30/04/2019,Adult Social Care,ABBEY HEALTHCARE HOMES LTD,29/04/2019,"3,400.00",73503-NURSING EMI,PHYSICAL SUPPORT,Third Party Payments,Revenue
Walsall Council,http://opendatacommunities.org/id/metropolitan-district-council/walsall,WC103-142,30/04/2019,Childrens,ABBEY PRIMARY SCHOOL,02/04/2019,600.00,63000-PROFESSIONAL FEES AND SERVICES,SCHOOL IMPROVEMENT-ASSESSMENT,Supplies & Services,Revenue
Walsall Council,http://opendatacommunities.org/id/metropolitan-district-council/walsall,WC103-143,30/04/2019,Childrens,ABC DAY NURSERY (WILLENHALL) LIMITED,09/04/2019,"1,336.20",66505-OTHER-GRANTS TO OTHER ORGS,EARLY YEARS - 2 YR OLDS,Third Party Payments,Revenue
Walsall Council,http://opendatacommunities.org/id/metropolitan-district-council/walsall,WC103-144,30/04/2019,Childrens,ABC DAY NURSERY (WILLENHALL) LIMITED,01/04/2019,"17,370.60",66505-OTHER-GRANTS TO OTHER ORGS,EARLY YEARS - 2 YR OLDS,Third Party Payments,Revenue
Walsall Council,http://opendatacommunities.org/id/metropolitan-district-council/walsall,WC103-145,30/04/2019,Childrens,ABC DAY NURSERY (WILLENHALL) LIMITED,01/04/2019,"26,719.88",66505-OTHER-GRANTS TO OTHER ORGS,EARLY YEARS - 3 YR OLDS,Third Party Payments,Revenue
Walsall Council,http://opendatacommunities.org/id/metropolitan-district-council/walsall,WC103-146,30/04/2019,Childrens,ABC FOSTERING,23/04/2019,-580.12,74037-INDEPENDENT FOSTER CARE-OTH AGENCY PROVISION,EXTERNAL FOSTER CARE PROVISION,Third Party Payments,Revenue
Walsall Council,http://opendatacommunities.org/id/metropolitan-district-council/walsall,WC103-147,30/04/2019,Childrens,ABC TEACHERS LIMITED,01/04/2019,"2,349.81",63000-PROFESSIONAL FEES AND SERVICES,SCHOOL IMPROVEMENT-VIRTUAL SCHOOL,Supplies & Services,Revenue
Walsall Council,http://opendatacommunities.org/id/metropolitan-district-council/walsall,WC103-148,30/04/2019,Childrens,ABC TEACHERS LIMITED,01/04/2019,"2,349.81",63000-PROFESSIONAL FEES AND SERVICES,SCHOOL IMPROVEMENT-VIRTUAL SCHOOL,Supplies & Services,Revenue
Walsall Council,http://opendatacommunities.org/id/metropolitan-district-council/walsall,WC103-149,30/04/2019,Childrens,ABC TEACHERS LIMITED,05/04/2019,"2,610.90",63000-PROFESSIONAL FEES AND SERVICES,SCHOOL IMPROVEMENT-VIRTUAL SCHOOL,Supplies & Services,Revenue
Walsall Council,http://opendatacommunities.org/id/metropolitan-district-council/walsall,WC103-150,30/04/2019,Childrens,ABC TEACHERS LIMITED,05/04/2019,"2,610.90",63000-PROFESSIONAL FEES AND SERVICES,SCHOOL IMPROVEMENT-VIRTUAL SCHOOL,Supplies & Services,Revenue
Walsall Council,http://opendatacommunities.org/id/metropolitan-district-council/walsall,WC103-151,30/04/2019,Childrens,ABC TEACHERS LIMITED,05/04/2019,"2,610.90",63000-PROFESSIONAL FEES AND SERVICES,SCHOOL IMPROVEMENT-VIRTUAL SCHOOL,Supplies & Services,Revenue
Walsall Council,http://opendatacommunities.org/id/metropolitan-district-council/walsall,WC103-152,30/04/2019,Childrens,ABC TEACHERS LIMITED,26/04/2019,"2,610.90",63000-PROFESSIONAL FEES AND SERVICES,SCHOOL IMPROVEMENT-VIRTUAL SCHOOL,Supplies & Services,Revenue
Walsall Council,http://opendatacommunities.org/id/metropolitan-district-council/walsall,WC103-153,30/04/2019,Economy & Environment,ABEL ALARM CO LTD,03/04/2019,238.00,40015-ALARM CALL OUTS-OP MTCE,CEMETERIES CENTRAL ADMINISTRATION,Premises,Revenue
Walsall Council,http://opendatacommunities.org/id/metropolitan-district-council/walsall,WC103-154,30/04/2019,Adult Social Care,REDACTED,09/04/2019,"1,999.20",73506-DIRECT PAYMENT,LEARNING DISABILITY SUPPORT,Third Party Payments,Revenue
Walsall Council,http://opendatacommunities.org/id/metropolitan-district-council/walsall,WC103-155,30/04/2019,Childrens,ABLEWELL CARS,02/04/2019,"7,680.96",52000-WITH DRIVER-HIRE OF VEHICLES,HOME TO SCHOOL TRANSPORT,Transport,Revenue
Walsall Council,http://opendatacommunities.org/id/metropolitan-district-council/walsall,WC103-156,30/04/2019,Childrens,ABS TAXIS (ALDRIDGE),15/04/2019,"2,699.70",52000-WITH DRIVER-HIRE OF VEHICLES,HOME TO SCHOOL TRANSPORT,Transport,Revenue
Walsall Council,http://opendatacommunities.org/id/metropolitan-district-council/walsall,WC103-157,30/04/2019,Childrens,ABU BAKR NURSERY,09/04/2019,"1,336.20",66505-OTHER-GRANTS TO OTHER ORGS,EARLY YEARS - 2 YR OLDS,Third Party Payments,Revenue
Walsall Council,http://opendatacommunities.org/id/metropolitan-district-council/walsall,WC103-158,30/04/2019,Childrens,ABU BAKR NURSERY,02/04/2019,"1,350.00",66505-OTHER-GRANTS TO OTHER ORGS,EARLY YEARS - DEPRIVATION FUNDING,Third Party Payments,Revenue
Walsall Council,http://opendatacommunities.org/id/metropolitan-district-council/walsall,WC103-159,30/04/2019,Childrens,ABU BAKR NURSERY,02/04/2019,"2,880.00",66505-OTHER-GRANTS TO OTHER ORGS,EARLY YEARS - DEPRIVATION FUNDING,Third Party Payments,Revenue
Walsall Council,http://opendatacommunities.org/id/metropolitan-district-council/walsall,WC103-160,30/04/2019,Childrens,ABU BAKR NURSERY,15/04/2019,"4,827.93",66505-OTHER-GRANTS TO OTHER ORGS,EARLY YEARS - 2 YR OLDS,Third Party Payments,Revenue
Walsall Council,http://opendatacommunities.org/id/metropolitan-district-council/walsall,WC103-161,30/04/2019,Childrens,ABU BAKR NURSERY,01/04/2019,"6,998.06",66505-OTHER-GRANTS TO OTHER ORGS,EARLY YEARS - 3 YR OLDS,Third Party Payments,Revenue
Walsall Council,http://opendatacommunities.org/id/metropolitan-district-council/walsall,WC103-162,30/04/2019,Childrens,ABU BAKR NURSERY,15/04/2019,"7,895.25",66505-OTHER-GRANTS TO OTHER ORGS,EARLY YEARS - 3 YR OLDS,Third Party Payments,Revenue
Walsall Council,http://opendatacommunities.org/id/metropolitan-district-council/walsall,WC103-163,30/04/2019,Childrens,ABU BAKR NURSERY,01/04/2019,"13,283.40",66505-OTHER-GRANTS TO OTHER ORGS,EARLY YEARS - 2 YR OLDS,Third Party Payments,Revenue
Walsall Council,http://opendatacommunities.org/id/metropolitan-district-council/walsall,WC103-164,30/04/2019,Childrens,ABU BAKR NURSERY,01/04/2019,"22,479.60",66505-OTHER-GRANTS TO OTHER ORGS,EARLY YEARS - 2 YR OLDS,Third Party Payments,Revenue
Walsall Council,http://opendatacommunities.org/id/metropolitan-district-council/walsall,WC103-165,30/04/2019,Childrens,ABU BAKR NURSERY,01/04/2019,"37,153.35",66505-OTHER-GRANTS TO OTHER ORGS,EARLY YEARS - 3 YR OLDS,Third Party Payments,Revenue
Walsall Council,http://opendatacommunities.org/id/metropolitan-district-council/walsall,WC103-166,30/04/2019,Economy & Environment,AC JADE TRADING LIMITED,29/04/2019,295.49,60529-SHOP STOCK-MATERIALS,NAG - NEW ART GALLERY SHOP STOCK,Supplies & Services,Revenue
Walsall Council,http://opendatacommunities.org/id/metropolitan-district-council/walsall,WC103-167,30/04/2019,Adult Social Care,ACCORD - AGE MATTERS,08/04/2019,248.07,76423-DIRECT PAYMENTS SUPPORT,DIRECT PAYMENT SUPPORT ORGANISATIONS,Transfer Payments,Revenue
Walsall Council,http://opendatacommunities.org/id/metropolitan-district-council/walsall,WC103-168,30/04/2019,Adult Social Care,ACCORD HOUSING ASSOCIATION LTD#135,29/04/2019,"-16,682.40",73500-RESIDENTIAL,LEARNING DISABILITY SUPPORT,Third Party Payments,Revenue
Walsall Council,http://opendatacommunities.org/id/metropolitan-district-council/walsall,WC103-169,30/04/2019,Adult Social Care,ACCORD HOUSING ASSOCIATION LTD#135,29/04/2019,-27.16,73507-DOMICILIARY CARE,LEARNING DISABILITY SUPPORT,Third Party Payments,Revenue
Walsall Council,http://opendatacommunities.org/id/metropolitan-district-council/walsall,WC103-170,30/04/2019,Adult Social Care,ACCORD HOUSING ASSOCIATION LTD#135,01/04/2019,41.23,73508-COMMUNITY SUPPORTED LIVING/SUPPORTED ACCOMMODATION,MENTAL HEALTH SUPPORT,Third Party Payments,Revenue
Walsall Council,http://opendatacommunities.org/id/metropolitan-district-council/walsall,WC103-171,30/04/2019,Adult Social Care,ACCORD HOUSING ASSOCIATION LTD#135,01/04/2019,262.08,73507-DOMICILIARY CARE,MENTAL HEALTH SUPPORT,Third Party Payments,Revenue
Walsall Council,http://opendatacommunities.org/id/metropolitan-district-council/walsall,WC103-172,30/04/2019,Adult Social Care,ACCORD HOUSING ASSOCIATION LTD#135,29/04/2019,262.08,73508-COMMUNITY SUPPORTED LIVING/SUPPORTED ACCOMMODATION,MENTAL HEALTH SUPPORT,Third Party Payments,Revenue
Walsall Council,http://opendatacommunities.org/id/metropolitan-district-council/walsall,WC103-173,30/04/2019,Adult Social Care,ACCORD HOUSING ASSOCIATION LTD#135,01/04/2019,274.54,73508-COMMUNITY SUPPORTED LIVING/SUPPORTED ACCOMMODATION,MENTAL HEALTH SUPPORT,Third Party Payments,Revenue
Walsall Council,http://opendatacommunities.org/id/metropolitan-district-council/walsall,WC103-174,30/04/2019,Adult Social Care,ACCORD HOUSING ASSOCIATION LTD#135,29/04/2019,274.54,73508-COMMUNITY SUPPORTED LIVING/SUPPORTED ACCOMMODATION,MENTAL HEALTH SUPPORT,Third Party Payments,Revenue
Walsall Council,http://opendatacommunities.org/id/metropolitan-district-council/walsall,WC103-175,30/04/2019,Adult Social Care,ACCORD HOUSING ASSOCIATION LTD#135,01/04/2019,318.32,73507-DOMICILIARY CARE,MENTAL HEALTH SUPPORT,Third Party Payments,Revenue
Walsall Council,http://opendatacommunities.org/id/metropolitan-district-council/walsall,WC103-176,30/04/2019,Adult Social Care,ACCORD HOUSING ASSOCIATION LTD#135,01/04/2019,327.88,73507-DOMICILIARY CARE,PHYSICAL SUPPORT,Third Party Payments,Revenue
Walsall Council,http://opendatacommunities.org/id/metropolitan-district-council/walsall,WC103-177,30/04/2019,Adult Social Care,ACCORD HOUSING ASSOCIATION LTD#135,01/04/2019,327.88,73507-DOMICILIARY CARE,MENTAL HEALTH SUPPORT,Third Party Payments,Revenue
Walsall Council,http://opendatacommunities.org/id/metropolitan-district-council/walsall,WC103-178,30/04/2019,Adult Social Care,ACCORD HOUSING ASSOCIATION LTD#135,01/04/2019,327.88,73507-DOMICILIARY CARE,MENTAL HEALTH SUPPORT,Third Party Payments,Revenue
Walsall Council,http://opendatacommunities.org/id/metropolitan-district-council/walsall,WC103-179,30/04/2019,Adult Social Care,ACCORD HOUSING ASSOCIATION LTD#135,29/04/2019,327.88,73507-DOMICILIARY CARE,MENTAL HEALTH SUPPORT,Third Party Payments,Revenue
Walsall Council,http://opendatacommunities.org/id/metropolitan-district-council/walsall,WC103-180,30/04/2019,Adult Social Care,ACCORD HOUSING ASSOCIATION LTD#135,29/04/2019,327.88,73507-DOMICILIARY CARE,PHYSICAL SUPPORT,Third Party Payments,Revenue
Walsall Council,http://opendatacommunities.org/id/metropolitan-district-council/walsall,WC103-181,30/04/2019,Adult Social Care,ACCORD HOUSING ASSOCIATION LTD#135,01/04/2019,384.04,73508-COMMUNITY SUPPORTED LIVING/SUPPORTED ACCOMMODATION,LEARNING DISABILITY SUPPORT,Third Party Payments,Revenue
Walsall Council,http://opendatacommunities.org/id/metropolitan-district-council/walsall,WC103-182,30/04/2019,Adult Social Care,ACCORD HOUSING ASSOCIATION LTD#135,01/04/2019,393.12,73507-DOMICILIARY CARE,PHYSICAL SUPPORT,Third Party Payments,Revenue
Walsall Council,http://opendatacommunities.org/id/metropolitan-district-council/walsall,WC103-183,30/04/2019,Adult Social Care,ACCORD HOUSING ASSOCIATION LTD#135,01/04/2019,393.12,73507-DOMICILIARY CARE,SUPPORT WITH MEMORY & COGNITION,Third Party Payments,Revenue
Walsall Council,http://opendatacommunities.org/id/metropolitan-district-council/walsall,WC103-184,30/04/2019,Adult Social Care,ACCORD HOUSING ASSOCIATION LTD#135,29/04/2019,393.12,73507-DOMICILIARY CARE,SUPPORT WITH MEMORY & COGNITION,Third Party Payments,Revenue
Walsall Council,http://opendatacommunities.org/id/metropolitan-district-council/walsall,WC103-185,30/04/2019,Adult Social Care,ACCORD HOUSING ASSOCIATION LTD#135,29/04/2019,393.12,73507-DOMICILIARY CARE,PHYSICAL SUPPORT,Third Party Payments,Revenue
Walsall Council,http://opendatacommunities.org/id/metropolitan-district-council/walsall,WC103-186,30/04/2019,Adult Social Care,ACCORD HOUSING ASSOCIATION LTD#135,29/04/2019,393.12,73507-DOMICILIARY CARE,MENTAL HEALTH SUPPORT,Third Party Payments,Revenue
Walsall Council,http://opendatacommunities.org/id/metropolitan-district-council/walsall,WC103-187,30/04/2019,Adult Social Care,ACCORD HOUSING ASSOCIATION LTD#135,01/04/2019,409.92,73507-DOMICILIARY CARE,SENSORY SUPPORT,Third Party Payments,Revenue
Walsall Council,http://opendatacommunities.org/id/metropolitan-district-council/walsall,WC103-188,30/04/2019,Adult Social Care,ACCORD HOUSING ASSOCIATION LTD#135,29/04/2019,411.20,73508-COMMUNITY SUPPORTED LIVING/SUPPORTED ACCOMMODATION,LEARNING DISABILITY SUPPORT,Third Party Payments,Revenue
Walsall Council,http://opendatacommunities.org/id/metropolitan-district-council/walsall,WC103-189,30/04/2019,Adult Social Care,ACCORD HOUSING ASSOCIATION LTD#135,01/04/2019,440.20,73507-DOMICILIARY CARE,PHYSICAL SUPPORT,Third Party Payments,Revenue
Walsall Council,http://opendatacommunities.org/id/metropolitan-district-council/walsall,WC103-190,30/04/2019,Adult Social Care,ACCORD HOUSING ASSOCIATION LTD#135,29/04/2019,440.20,73507-DOMICILIARY CARE,PHYSICAL SUPPORT,Third Party Payments,Revenue
Walsall Council,http://opendatacommunities.org/id/metropolitan-district-council/walsall,WC103-191,30/04/2019,Adult Social Care,ACCORD HOUSING ASSOCIATION LTD#135,01/04/2019,458.92,73507-DOMICILIARY CARE,PHYSICAL SUPPORT,Third Party Payments,Revenue
Walsall Council,http://opendatacommunities.org/id/metropolitan-district-council/walsall,WC103-192,30/04/2019,Adult Social Care,ACCORD HOUSING ASSOCIATION LTD#135,29/04/2019,458.92,73507-DOMICILIARY CARE,SOCIAL SUPPORT,Third Party Payments,Revenue
Walsall Council,http://opendatacommunities.org/id/metropolitan-district-council/walsall,WC103-193,30/04/2019,Adult Social Care,ACCORD HOUSING ASSOCIATION LTD#135,29/04/2019,458.92,73507-DOMICILIARY CARE,PHYSICAL SUPPORT,Third Party Payments,Revenue
Walsall Council,http://opendatacommunities.org/id/metropolitan-district-council/walsall,WC103-194,30/04/2019,Adult Social Care,ACCORD HOUSING ASSOCIATION LTD#135,29/04/2019,459.68,73507-DOMICILIARY CARE,PHYSICAL SUPPORT,Third Party Payments,Revenue
Walsall Council,http://opendatacommunities.org/id/metropolitan-district-council/walsall,WC103-195,30/04/2019,Adult Social Care,ACCORD HOUSING ASSOCIATION LTD#135,01/04/2019,482.95,73507-DOMICILIARY CARE,MENTAL HEALTH SUPPORT,Third Party Payments,Revenue
Walsall Council,http://opendatacommunities.org/id/metropolitan-district-council/walsall,WC103-196,30/04/2019,Adult Social Care,ACCORD HOUSING ASSOCIATION LTD#135,29/04/2019,491.96,73507-DOMICILIARY CARE,MENTAL HEALTH SUPPORT,Third Party Payments,Revenue
Walsall Council,http://opendatacommunities.org/id/metropolitan-district-council/walsall,WC103-197,30/04/2019,Adult Social Care,ACCORD HOUSING ASSOCIATION LTD#135,01/04/2019,505.52,73507-DOMICILIARY CARE,MENTAL HEALTH SUPPORT,Third Party Payments,Revenue
Walsall Council,http://opendatacommunities.org/id/metropolitan-district-council/walsall,WC103-198,30/04/2019,Adult Social Care,ACCORD HOUSING ASSOCIATION LTD#135,29/04/2019,505.52,73507-DOMICILIARY CARE,MENTAL HEALTH SUPPORT,Third Party Payments,Revenue
Walsall Council,http://opendatacommunities.org/id/metropolitan-district-council/walsall,WC103-199,30/04/2019,Adult Social Care,ACCORD HOUSING ASSOCIATION LTD#135,01/04/2019,524.16,73507-DOMICILIARY CARE,PHYSICAL SUPPORT,Third Party Payments,Revenue
Walsall Council,http://opendatacommunities.org/id/metropolitan-district-council/walsall,WC103-200,30/04/2019,Adult Social Care,ACCORD HOUSING ASSOCIATION LTD#135,29/04/2019,524.16,73507-DOMICILIARY CARE,PHYSICAL SUPPORT,Third Party Payments,Revenue
Walsall Council,http://opendatacommunities.org/id/metropolitan-district-council/walsall,WC103-201,30/04/2019,Adult Social Care,ACCORD HOUSING ASSOCIATION LTD#135,29/04/2019,562.00,73507-DOMICILIARY CARE,PHYSICAL SUPPORT,Third Party Payments,Revenue
Walsall Council,http://opendatacommunities.org/id/metropolitan-district-council/walsall,WC103-202,30/04/2019,Adult Social Care,ACCORD HOUSING ASSOCIATION LTD#135,01/04/2019,562.24,73507-DOMICILIARY CARE,MENTAL HEALTH SUPPORT,Third Party Payments,Revenue
Walsall Council,http://opendatacommunities.org/id/metropolitan-district-council/walsall,WC103-203,30/04/2019,Adult Social Care,ACCORD HOUSING ASSOCIATION LTD#135,29/04/2019,585.28,73507-DOMICILIARY CARE,PHYSICAL SUPPORT,Third Party Payments,Revenue
Walsall Council,http://opendatacommunities.org/id/metropolitan-district-council/walsall,WC103-204,30/04/2019,Adult Social Care,ACCORD HOUSING ASSOCIATION LTD#135,01/04/2019,589.96,73507-DOMICILIARY CARE,PHYSICAL SUPPORT,Third Party Payments,Revenue
Walsall Council,http://opendatacommunities.org/id/metropolitan-district-council/walsall,WC103-205,30/04/2019,Adult Social Care,ACCORD HOUSING ASSOCIATION LTD#135,01/04/2019,589.96,73507-DOMICILIARY CARE,PHYSICAL SUPPORT,Third Party Payments,Revenue
Walsall Council,http://opendatacommunities.org/id/metropolitan-district-council/walsall,WC103-206,30/04/2019,Adult Social Care,ACCORD HOUSING ASSOCIATION LTD#135,29/04/2019,589.96,73507-DOMICILIARY CARE,PHYSICAL SUPPORT,Third Party Payments,Revenue
Walsall Council,http://opendatacommunities.org/id/metropolitan-district-council/walsall,WC103-207,30/04/2019,Adult Social Care,ACCORD HOUSING ASSOCIATION LTD#135,01/04/2019,594.64,73507-DOMICILIARY CARE,PHYSICAL SUPPORT,Third Party Payments,Revenue
Walsall Council,http://opendatacommunities.org/id/metropolitan-district-council/walsall,WC103-208,30/04/2019,Adult Social Care,ACCORD HOUSING ASSOCIATION LTD#135,01/04/2019,596.92,73508-COMMUNITY SUPPORTED LIVING/SUPPORTED ACCOMMODATION,MENTAL HEALTH SUPPORT,Third Party Payments,Revenue
Walsall Council,http://opendatacommunities.org/id/metropolitan-district-council/walsall,WC103-209,30/04/2019,Adult Social Care,ACCORD HOUSING ASSOCIATION LTD#135,01/04/2019,642.24,73507-DOMICILIARY CARE,MENTAL HEALTH SUPPORT,Third Party Payments,Revenue
Walsall Council,http://opendatacommunities.org/id/metropolitan-district-council/walsall,WC103-210,30/04/2019,Adult Social Care,ACCORD HOUSING ASSOCIATION LTD#135,29/04/2019,642.24,73507-DOMICILIARY CARE,MENTAL HEALTH SUPPORT,Third Party Payments,Revenue
Walsall Council,http://opendatacommunities.org/id/metropolitan-district-council/walsall,WC103-211,30/04/2019,Adult Social Care,ACCORD HOUSING ASSOCIATION LTD#135,01/04/2019,655.76,73507-DOMICILIARY CARE,PHYSICAL SUPPORT,Third Party Payments,Revenue
Walsall Council,http://opendatacommunities.org/id/metropolitan-district-council/walsall,WC103-212,30/04/2019,Adult Social Care,ACCORD HOUSING ASSOCIATION LTD#135,01/04/2019,655.76,73507-DOMICILIARY CARE,PHYSICAL SUPPORT,Third Party Payments,Revenue
Walsall Council,http://opendatacommunities.org/id/metropolitan-district-council/walsall,WC103-213,30/04/2019,Adult Social Care,ACCORD HOUSING ASSOCIATION LTD#135,01/04/2019,655.76,73507-DOMICILIARY CARE,SOCIAL SUPPORT,Third Party Payments,Revenue
Walsall Council,http://opendatacommunities.org/id/metropolitan-district-council/walsall,WC103-214,30/04/2019,Adult Social Care,ACCORD HOUSING ASSOCIATION LTD#135,29/04/2019,655.76,73507-DOMICILIARY CARE,PHYSICAL SUPPORT,Third Party Payments,Revenue
Walsall Council,http://opendatacommunities.org/id/metropolitan-district-council/walsall,WC103-215,30/04/2019,Adult Social Care,ACCORD HOUSING ASSOCIATION LTD#135,29/04/2019,655.76,73507-DOMICILIARY CARE,SOCIAL SUPPORT,Third Party Payments,Revenue
Walsall Council,http://opendatacommunities.org/id/metropolitan-district-council/walsall,WC103-216,30/04/2019,Adult Social Care,ACCORD HOUSING ASSOCIATION LTD#135,29/04/2019,655.76,73507-DOMICILIARY CARE,PHYSICAL SUPPORT,Third Party Payments,Revenue
Walsall Council,http://opendatacommunities.org/id/metropolitan-district-council/walsall,WC103-217,30/04/2019,Adult Social Care,ACCORD HOUSING ASSOCIATION LTD#135,01/04/2019,664.68,73507-DOMICILIARY CARE,MENTAL HEALTH SUPPORT,Third Party Payments,Revenue
Walsall Council,http://opendatacommunities.org/id/metropolitan-district-council/walsall,WC103-218,30/04/2019,Adult Social Care,ACCORD HOUSING ASSOCIATION LTD#135,29/04/2019,664.68,73507-DOMICILIARY CARE,MENTAL HEALTH SUPPORT,Third Party Payments,Revenue
Walsall Council,http://opendatacommunities.org/id/metropolitan-district-council/walsall,WC103-219,30/04/2019,Adult Social Care,ACCORD HOUSING ASSOCIATION LTD#135,29/04/2019,679.16,73507-DOMICILIARY CARE,PHYSICAL SUPPORT,Third Party Payments,Revenue
Walsall Council,http://opendatacommunities.org/id/metropolitan-district-council/walsall,WC103-220,30/04/2019,Adult Social Care,ACCORD HOUSING ASSOCIATION LTD#135,01/04/2019,680.04,73508-COMMUNITY SUPPORTED LIVING/SUPPORTED ACCOMMODATION,MENTAL HEALTH SUPPORT,Third Party Payments,Revenue
Walsall Council,http://opendatacommunities.org/id/metropolitan-district-council/walsall,WC103-221,30/04/2019,Adult Social Care,ACCORD HOUSING ASSOCIATION LTD#135,29/04/2019,680.04,73508-COMMUNITY SUPPORTED LIVING/SUPPORTED ACCOMMODATION,MENTAL HEALTH SUPPORT,Third Party Payments,Revenue
Walsall Council,http://opendatacommunities.org/id/metropolitan-district-council/walsall,WC103-222,30/04/2019,Adult Social Care,ACCORD HOUSING ASSOCIATION LTD#135,29/04/2019,683.88,73507-DOMICILIARY CARE,LEARNING DISABILITY SUPPORT,Third Party Payments,Revenue
Walsall Council,http://opendatacommunities.org/id/metropolitan-district-council/walsall,WC103-223,30/04/2019,Adult Social Care,ACCORD HOUSING ASSOCIATION LTD#135,01/04/2019,688.73,73507-DOMICILIARY CARE,LEARNING DISABILITY SUPPORT,Third Party Payments,Revenue
Walsall Council,http://opendatacommunities.org/id/metropolitan-district-council/walsall,WC103-224,30/04/2019,Adult Social Care,ACCORD HOUSING ASSOCIATION LTD#135,01/04/2019,702.36,73507-DOMICILIARY CARE,SOCIAL SUPPORT,Third Party Payments,Revenue
Walsall Council,http://opendatacommunities.org/id/metropolitan-district-council/walsall,WC103-225,30/04/2019,Adult Social Care,ACCORD HOUSING ASSOCIATION LTD#135,29/04/2019,702.36,73507-DOMICILIARY CARE,SOCIAL SUPPORT,Third Party Payments,Revenue
Walsall Council,http://opendatacommunities.org/id/metropolitan-district-council/walsall,WC103-226,30/04/2019,Adult Social Care,ACCORD HOUSING ASSOCIATION LTD#135,01/04/2019,717.80,73508-COMMUNITY SUPPORTED LIVING/SUPPORTED ACCOMMODATION,MENTAL HEALTH SUPPORT,Third Party Payments,Revenue
Walsall Council,http://opendatacommunities.org/id/metropolitan-district-council/walsall,WC103-227,30/04/2019,Adult Social Care,ACCORD HOUSING ASSOCIATION LTD#135,10/04/2019,717.80,73508-COMMUNITY SUPPORTED LIVING/SUPPORTED ACCOMMODATION,MENTAL HEALTH SUPPORT,Third Party Payments,Revenue
Walsall Council,http://opendatacommunities.org/id/metropolitan-district-council/walsall,WC103-228,30/04/2019,Adult Social Care,ACCORD HOUSING ASSOCIATION LTD#135,29/04/2019,717.80,73508-COMMUNITY SUPPORTED LIVING/SUPPORTED ACCOMMODATION,MENTAL HEALTH SUPPORT,Third Party Payments,Revenue
Walsall Council,http://opendatacommunities.org/id/metropolitan-district-council/walsall,WC103-229,30/04/2019,Adult Social Care,ACCORD HOUSING ASSOCIATION LTD#135,01/04/2019,721.28,73507-DOMICILIARY CARE,PHYSICAL SUPPORT,Third Party Payments,Revenue
Walsall Council,http://opendatacommunities.org/id/metropolitan-district-council/walsall,WC103-230,30/04/2019,Adult Social Care,ACCORD HOUSING ASSOCIATION LTD#135,29/04/2019,730.88,73507-DOMICILIARY CARE,LEARNING DISABILITY SUPPORT,Third Party Payments,Revenue
Walsall Council,http://opendatacommunities.org/id/metropolitan-district-council/walsall,WC103-231,30/04/2019,Adult Social Care,ACCORD HOUSING ASSOCIATION LTD#135,29/04/2019,740.04,73507-DOMICILIARY CARE,MENTAL HEALTH SUPPORT,Third Party Payments,Revenue
Walsall Council,http://opendatacommunities.org/id/metropolitan-district-council/walsall,WC103-232,30/04/2019,Adult Social Care,ACCORD HOUSING ASSOCIATION LTD#135,01/04/2019,744.40,73507-DOMICILIARY CARE,PHYSICAL SUPPORT,Third Party Payments,Revenue
Walsall Council,http://opendatacommunities.org/id/metropolitan-district-council/walsall,WC103-233,30/04/2019,Adult Social Care,ACCORD HOUSING ASSOCIATION LTD#135,01/04/2019,744.40,73507-DOMICILIARY CARE,PHYSICAL SUPPORT,Third Party Payments,Revenue
Walsall Council,http://opendatacommunities.org/id/metropolitan-district-council/walsall,WC103-234,30/04/2019,Adult Social Care,ACCORD HOUSING ASSOCIATION LTD#135,29/04/2019,744.40,73507-DOMICILIARY CARE,PHYSICAL SUPPORT,Third Party Payments,Revenue
Walsall Council,http://opendatacommunities.org/id/metropolitan-district-council/walsall,WC103-235,30/04/2019,Adult Social Care,ACCORD HOUSING ASSOCIATION LTD#135,01/04/2019,755.60,73508-COMMUNITY SUPPORTED LIVING/SUPPORTED ACCOMMODATION,MENTAL HEALTH SUPPORT,Third Party Payments,Revenue
Walsall Council,http://opendatacommunities.org/id/metropolitan-district-council/walsall,WC103-236,30/04/2019,Adult Social Care,ACCORD HOUSING ASSOCIATION LTD#135,29/04/2019,755.60,73508-COMMUNITY SUPPORTED LIVING/SUPPORTED ACCOMMODATION,MENTAL HEALTH SUPPORT,Third Party Payments,Revenue
Walsall Council,http://opendatacommunities.org/id/metropolitan-district-council/walsall,WC103-237,30/04/2019,Adult Social Care,ACCORD HOUSING ASSOCIATION LTD#135,29/04/2019,759.08,73507-DOMICILIARY CARE,PHYSICAL SUPPORT,Third Party Payments,Revenue
Walsall Council,http://opendatacommunities.org/id/metropolitan-district-council/walsall,WC103-238,30/04/2019,Adult Social Care,ACCORD HOUSING ASSOCIATION LTD#135,29/04/2019,759.12,73507-DOMICILIARY CARE,PHYSICAL SUPPORT,Third Party Payments,Revenue
Walsall Council,http://opendatacommunities.org/id/metropolitan-district-council/walsall,WC103-239,30/04/2019,Resources and Transformation,ACCORD HOUSING ASSOCIATION LTD#135,29/04/2019,765.68,43000-RENTS,ROUGH SLEEPING INITIATIVE GRANT,Premises,Revenue
Walsall Council,http://opendatacommunities.org/id/metropolitan-district-council/walsall,WC103-240,30/04/2019,Adult Social Care,ACCORD HOUSING ASSOCIATION LTD#135,29/04/2019,819.84,73507-DOMICILIARY CARE,SENSORY SUPPORT,Third Party Payments,Revenue
Walsall Council,http://opendatacommunities.org/id/metropolitan-district-council/walsall,WC103-241,30/04/2019,Adult Social Care,ACCORD HOUSING ASSOCIATION LTD#135,01/04/2019,843.24,73507-DOMICILIARY CARE,MENTAL HEALTH SUPPORT,Third Party Payments,Revenue
Walsall Council,http://opendatacommunities.org/id/metropolitan-district-council/walsall,WC103-242,30/04/2019,Adult Social Care,ACCORD HOUSING ASSOCIATION LTD#135,29/04/2019,843.24,73507-DOMICILIARY CARE,MENTAL HEALTH SUPPORT,Third Party Payments,Revenue
Walsall Council,http://opendatacommunities.org/id/metropolitan-district-council/walsall,WC103-243,30/04/2019,Adult Social Care,ACCORD HOUSING ASSOCIATION LTD#135,01/04/2019,850.04,73508-COMMUNITY SUPPORTED LIVING/SUPPORTED ACCOMMODATION,MENTAL HEALTH SUPPORT,Third Party Payments,Revenue
Walsall Council,http://opendatacommunities.org/id/metropolitan-district-council/walsall,WC103-244,30/04/2019,Adult Social Care,ACCORD HOUSING ASSOCIATION LTD#135,29/04/2019,850.04,73508-COMMUNITY SUPPORTED LIVING/SUPPORTED ACCOMMODATION,MENTAL HEALTH SUPPORT,Third Party Payments,Revenue
Walsall Council,http://opendatacommunities.org/id/metropolitan-district-council/walsall,WC103-245,30/04/2019,Adult Social Care,ACCORD HOUSING ASSOCIATION LTD#135,01/04/2019,875.64,73507-DOMICILIARY CARE,LEARNING DISABILITY SUPPORT,Third Party Payments,Revenue
Walsall Council,http://opendatacommunities.org/id/metropolitan-district-council/walsall,WC103-246,30/04/2019,Adult Social Care,ACCORD HOUSING ASSOCIATION LTD#135,29/04/2019,875.64,73507-DOMICILIARY CARE,LEARNING DISABILITY SUPPORT,Third Party Payments,Revenue
Walsall Council,http://opendatacommunities.org/id/metropolitan-district-council/walsall,WC103-247,30/04/2019,Adult Social Care,ACCORD HOUSING ASSOCIATION LTD#135,01/04/2019,885.64,73507-DOMICILIARY CARE,PHYSICAL SUPPORT,Third Party Payments,Revenue
Walsall Council,http://opendatacommunities.org/id/metropolitan-district-council/walsall,WC103-248,30/04/2019,Adult Social Care,ACCORD HOUSING ASSOCIATION LTD#135,29/04/2019,885.64,73507-DOMICILIARY CARE,PHYSICAL SUPPORT,Third Party Payments,Revenue
Walsall Council,http://opendatacommunities.org/id/metropolitan-district-council/walsall,WC103-249,30/04/2019,Adult Social Care,ACCORD HOUSING ASSOCIATION LTD#135,01/04/2019,917.56,73507-DOMICILIARY CARE,MENTAL HEALTH SUPPORT,Third Party Payments,Revenue
Walsall Council,http://opendatacommunities.org/id/metropolitan-district-council/walsall,WC103-250,30/04/2019,Adult Social Care,ACCORD HOUSING ASSOCIATION LTD#135,01/04/2019,982.28,73508-COMMUNITY SUPPORTED LIVING/SUPPORTED ACCOMMODATION,MENTAL HEALTH SUPPORT,Third Party Payments,Revenue
Walsall Council,http://opendatacommunities.org/id/metropolitan-district-council/walsall,WC103-251,30/04/2019,Adult Social Care,ACCORD HOUSING ASSOCIATION LTD#135,29/04/2019,982.28,73508-COMMUNITY SUPPORTED LIVING/SUPPORTED ACCOMMODATION,MENTAL HEALTH SUPPORT,Third Party Payments,Revenue
Walsall Council,http://opendatacommunities.org/id/metropolitan-district-council/walsall,WC103-252,30/04/2019,Adult Social Care,ACCORD HOUSING ASSOCIATION LTD#135,01/04/2019,983.84,73507-DOMICILIARY CARE,SOCIAL SUPPORT,Third Party Payments,Revenue
Walsall Council,http://opendatacommunities.org/id/metropolitan-district-council/walsall,WC103-253,30/04/2019,Adult Social Care,ACCORD HOUSING ASSOCIATION LTD#135,01/04/2019,"1,044.76",73507-DOMICILIARY CARE,PHYSICAL SUPPORT,Third Party Payments,Revenue
Walsall Council,http://opendatacommunities.org/id/metropolitan-district-council/walsall,WC103-254,30/04/2019,Adult Social Care,ACCORD HOUSING ASSOCIATION LTD#135,01/04/2019,"1,100.84",73507-DOMICILIARY CARE,PHYSICAL SUPPORT,Third Party Payments,Revenue
Walsall Council,http://opendatacommunities.org/id/metropolitan-district-council/walsall,WC103-255,30/04/2019,Adult Social Care,ACCORD HOUSING ASSOCIATION LTD#135,29/04/2019,"1,100.84",73507-DOMICILIARY CARE,PHYSICAL SUPPORT,Third Party Payments,Revenue
Walsall Council,http://opendatacommunities.org/id/metropolitan-district-council/walsall,WC103-256,30/04/2019,Adult Social Care,ACCORD HOUSING ASSOCIATION LTD#135,29/04/2019,"1,161.34",73507-DOMICILIARY CARE,MENTAL HEALTH SUPPORT,Third Party Payments,Revenue
Walsall Council,http://opendatacommunities.org/id/metropolitan-district-council/walsall,WC103-257,30/04/2019,Adult Social Care,ACCORD HOUSING ASSOCIATION LTD#135,01/04/2019,"1,170.56",73507-DOMICILIARY CARE,PHYSICAL SUPPORT,Third Party Payments,Revenue
Walsall Council,http://opendatacommunities.org/id/metropolitan-district-council/walsall,WC103-258,30/04/2019,Adult Social Care,ACCORD HOUSING ASSOCIATION LTD#135,29/04/2019,"1,179.92",73507-DOMICILIARY CARE,PHYSICAL SUPPORT,Third Party Payments,Revenue
Walsall Council,http://opendatacommunities.org/id/metropolitan-district-council/walsall,WC103-259,30/04/2019,Adult Social Care,ACCORD HOUSING ASSOCIATION LTD#135,01/04/2019,"1,220.07",73507-DOMICILIARY CARE,PHYSICAL SUPPORT,Third Party Payments,Revenue
Walsall Council,http://opendatacommunities.org/id/metropolitan-district-council/walsall,WC103-260,30/04/2019,Adult Social Care,ACCORD HOUSING ASSOCIATION LTD#135,29/04/2019,"1,301.95",73507-DOMICILIARY CARE,PHYSICAL SUPPORT,Third Party Payments,Revenue
Walsall Council,http://opendatacommunities.org/id/metropolitan-district-council/walsall,WC103-261,30/04/2019,Adult Social Care,ACCORD HOUSING ASSOCIATION LTD#135,01/04/2019,"1,315.68",73507-DOMICILIARY CARE,PHYSICAL SUPPORT,Third Party Payments,Revenue
Walsall Council,http://opendatacommunities.org/id/metropolitan-district-council/walsall,WC103-262,30/04/2019,Adult Social Care,ACCORD HOUSING ASSOCIATION LTD#135,29/04/2019,"1,320.36",73507-DOMICILIARY CARE,PHYSICAL SUPPORT,Third Party Payments,Revenue
Walsall Council,http://opendatacommunities.org/id/metropolitan-district-council/walsall,WC103-263,30/04/2019,Adult Social Care,ACCORD HOUSING ASSOCIATION LTD#135,01/04/2019,"1,349.54",73507-DOMICILIARY CARE,PHYSICAL SUPPORT,Third Party Payments,Revenue
Walsall Council,http://opendatacommunities.org/id/metropolitan-district-council/walsall,WC103-264,30/04/2019,Adult Social Care,ACCORD HOUSING ASSOCIATION LTD#135,29/04/2019,"1,432.02",73507-DOMICILIARY CARE,PHYSICAL SUPPORT,Third Party Payments,Revenue
Walsall Council,http://opendatacommunities.org/id/metropolitan-district-council/walsall,WC103-265,30/04/2019,Adult Social Care,ACCORD HOUSING ASSOCIATION LTD#135,01/04/2019,"1,567.84",73508-COMMUNITY SUPPORTED LIVING/SUPPORTED ACCOMMODATION,MENTAL HEALTH SUPPORT,Third Party Payments,Revenue
Walsall Council,http://opendatacommunities.org/id/metropolitan-district-council/walsall,WC103-266,30/04/2019,Adult Social Care,ACCORD HOUSING ASSOCIATION LTD#135,29/04/2019,"1,567.84",73508-COMMUNITY SUPPORTED LIVING/SUPPORTED ACCOMMODATION,MENTAL HEALTH SUPPORT,Third Party Payments,Revenue
Walsall Council,http://opendatacommunities.org/id/metropolitan-district-council/walsall,WC103-267,30/04/2019,Adult Social Care,ACCORD HOUSING ASSOCIATION LTD#135,29/04/2019,"1,632.65",73507-DOMICILIARY CARE,PHYSICAL SUPPORT,Third Party Payments,Revenue
Walsall Council,http://opendatacommunities.org/id/metropolitan-district-council/walsall,WC103-268,30/04/2019,Adult Social Care,ACCORD HOUSING ASSOCIATION LTD#135,01/04/2019,"1,672.44",73507-DOMICILIARY CARE,PHYSICAL SUPPORT,Third Party Payments,Revenue
Walsall Council,http://opendatacommunities.org/id/metropolitan-district-council/walsall,WC103-269,30/04/2019,Adult Social Care,ACCORD HOUSING ASSOCIATION LTD#135,29/04/2019,"1,672.44",73507-DOMICILIARY CARE,PHYSICAL SUPPORT,Third Party Payments,Revenue
Walsall Council,http://opendatacommunities.org/id/metropolitan-district-council/walsall,WC103-270,30/04/2019,Adult Social Care,ACCORD HOUSING ASSOCIATION LTD#135,29/04/2019,"1,687.12",73507-DOMICILIARY CARE,SOCIAL SUPPORT,Third Party Payments,Revenue
Walsall Council,http://opendatacommunities.org/id/metropolitan-district-council/walsall,WC103-271,30/04/2019,Adult Social Care,ACCORD HOUSING ASSOCIATION LTD#135,01/04/2019,"1,718.96",73507-DOMICILIARY CARE,PHYSICAL SUPPORT,Third Party Payments,Revenue
Walsall Council,http://opendatacommunities.org/id/metropolitan-district-council/walsall,WC103-272,30/04/2019,Adult Social Care,ACCORD HOUSING ASSOCIATION LTD#135,29/04/2019,"1,784.48",73507-DOMICILIARY CARE,SENSORY SUPPORT,Third Party Payments,Revenue
Walsall Council,http://opendatacommunities.org/id/metropolitan-district-council/walsall,WC103-273,30/04/2019,Adult Social Care,ACCORD HOUSING ASSOCIATION LTD#135,01/04/2019,"1,798.52",73507-DOMICILIARY CARE,SENSORY SUPPORT,Third Party Payments,Revenue
Walsall Council,http://opendatacommunities.org/id/metropolitan-district-council/walsall,WC103-274,30/04/2019,Resources and Transformation,ACCORD HOUSING ASSOCIATION LTD#135,17/04/2019,"4,198.80",01045-PRIVATE GRANTS,CFR 826 DISABLED FACILITIES GRANTS (SOCIAL SERVICES),Capital,Capital
Walsall Council,http://opendatacommunities.org/id/metropolitan-district-council/walsall,WC103-275,30/04/2019,Resources and Transformation,ACCORD HOUSING ASSOCIATION LTD#135,03/04/2019,"4,364.09",01045-PRIVATE GRANTS,CFR 826 DISABLED FACILITIES GRANTS (SOCIAL SERVICES),Capital,Capital
Walsall Council,http://opendatacommunities.org/id/metropolitan-district-council/walsall,WC103-276,30/04/2019,Resources and Transformation,ACCORD HOUSING ASSOCIATION LTD#135,10/04/2019,"4,439.09",01045-PRIVATE GRANTS,CFR 826 DISABLED FACILITIES GRANTS (SOCIAL SERVICES),Capital,Capital
Walsall Council,http://opendatacommunities.org/id/metropolitan-district-council/walsall,WC103-277,30/04/2019,Resources and Transformation,ACCORD HOUSING ASSOCIATION LTD#135,10/04/2019,"4,665.28",01045-PRIVATE GRANTS,CFR 826 DISABLED FACILITIES GRANTS (SOCIAL SERVICES),Capital,Capital
Walsall Council,http://opendatacommunities.org/id/metropolitan-district-council/walsall,WC103-278,30/04/2019,Resources and Transformation,ACCORD HOUSING ASSOCIATION LTD#135,03/04/2019,"4,841.54",01045-PRIVATE GRANTS,CFR 826 DISABLED FACILITIES GRANTS (SOCIAL SERVICES),Capital,Capital
Walsall Council,http://opendatacommunities.org/id/metropolitan-district-council/walsall,WC103-279,30/04/2019,Resources and Transformation,ACCORD HOUSING ASSOCIATION LTD#135,23/04/2019,"4,841.54",01045-PRIVATE GRANTS,CFR 826 DISABLED FACILITIES GRANTS (SOCIAL SERVICES),Capital,Capital
Walsall Council,http://opendatacommunities.org/id/metropolitan-district-council/walsall,WC103-280,30/04/2019,Resources and Transformation,ACCORD HOUSING ASSOCIATION LTD#135,03/04/2019,"4,991.54",01045-PRIVATE GRANTS,CFR 826 DISABLED FACILITIES GRANTS (SOCIAL SERVICES),Capital,Capital
Walsall Council,http://opendatacommunities.org/id/metropolitan-district-council/walsall,WC103-281,30/04/2019,Resources and Transformation,ACCORD HOUSING ASSOCIATION LTD#135,03/04/2019,"4,991.54",01045-PRIVATE GRANTS,CFR 826 DISABLED FACILITIES GRANTS (SOCIAL SERVICES),Capital,Capital
Walsall Council,http://opendatacommunities.org/id/metropolitan-district-council/walsall,WC103-282,30/04/2019,Resources and Transformation,ACCORD HOUSING ASSOCIATION LTD#135,03/04/2019,"4,991.54",01045-PRIVATE GRANTS,CFR 826 DISABLED FACILITIES GRANTS (SOCIAL SERVICES),Capital,Capital
Walsall Council,http://opendatacommunities.org/id/metropolitan-district-council/walsall,WC103-283,30/04/2019,Resources and Transformation,ACCORD HOUSING ASSOCIATION LTD#135,03/04/2019,"4,991.54",01045-PRIVATE GRANTS,CFR 826 DISABLED FACILITIES GRANTS (SOCIAL SERVICES),Capital,Capital
Walsall Council,http://opendatacommunities.org/id/metropolitan-district-council/walsall,WC103-284,30/04/2019,Resources and Transformation,ACCORD HOUSING ASSOCIATION LTD#135,03/04/2019,"4,991.54",01045-PRIVATE GRANTS,CFR 826 DISABLED FACILITIES GRANTS (SOCIAL SERVICES),Capital,Capital
Walsall Council,http://opendatacommunities.org/id/metropolitan-district-council/walsall,WC103-285,30/04/2019,Resources and Transformation,ACCORD HOUSING ASSOCIATION LTD#135,03/04/2019,"4,991.54",01045-PRIVATE GRANTS,CFR 826 DISABLED FACILITIES GRANTS (SOCIAL SERVICES),Capital,Capital
Walsall Council,http://opendatacommunities.org/id/metropolitan-district-council/walsall,WC103-286,30/04/2019,Resources and Transformation,ACCORD HOUSING ASSOCIATION LTD#135,03/04/2019,"4,991.54",01045-PRIVATE GRANTS,CFR 826 DISABLED FACILITIES GRANTS (SOCIAL SERVICES),Capital,Capital
Walsall Council,http://opendatacommunities.org/id/metropolitan-district-council/walsall,WC103-287,30/04/2019,Resources and Transformation,ACCORD HOUSING ASSOCIATION LTD#135,03/04/2019,"4,991.54",01045-PRIVATE GRANTS,CFR 826 DISABLED FACILITIES GRANTS (SOCIAL SERVICES),Capital,Capital
Walsall Council,http://opendatacommunities.org/id/metropolitan-district-council/walsall,WC103-288,30/04/2019,Resources and Transformation,ACCORD HOUSING ASSOCIATION LTD#135,08/04/2019,"4,991.54",01045-PRIVATE GRANTS,CFR 826 DISABLED FACILITIES GRANTS (SOCIAL SERVICES),Capital,Capital
Walsall Council,http://opendatacommunities.org/id/metropolitan-district-council/walsall,WC103-289,30/04/2019,Resources and Transformation,ACCORD HOUSING ASSOCIATION LTD#135,08/04/2019,"4,991.54",01045-PRIVATE GRANTS,CFR 826 DISABLED FACILITIES GRANTS (SOCIAL SERVICES),Capital,Capital
Walsall Council,http://opendatacommunities.org/id/metropolitan-district-council/walsall,WC103-290,30/04/2019,Resources and Transformation,ACCORD HOUSING ASSOCIATION LTD#135,08/04/2019,"4,991.54",01045-PRIVATE GRANTS,CFR 826 DISABLED FACILITIES GRANTS (SOCIAL SERVICES),Capital,Capital
Walsall Council,http://opendatacommunities.org/id/metropolitan-district-council/walsall,WC103-291,30/04/2019,Resources and Transformation,ACCORD HOUSING ASSOCIATION LTD#135,08/04/2019,"4,991.54",01045-PRIVATE GRANTS,CFR 826 DISABLED FACILITIES GRANTS (SOCIAL SERVICES),Capital,Capital
Walsall Council,http://opendatacommunities.org/id/metropolitan-district-council/walsall,WC103-292,30/04/2019,Resources and Transformation,ACCORD HOUSING ASSOCIATION LTD#135,16/04/2019,"4,991.54",01045-PRIVATE GRANTS,CFR 826 DISABLED FACILITIES GRANTS (SOCIAL SERVICES),Capital,Capital
Walsall Council,http://opendatacommunities.org/id/metropolitan-district-council/walsall,WC103-293,30/04/2019,Resources and Transformation,ACCORD HOUSING ASSOCIATION LTD#135,16/04/2019,"4,991.54",01045-PRIVATE GRANTS,CFR 826 DISABLED FACILITIES GRANTS (SOCIAL SERVICES),Capital,Capital
Walsall Council,http://opendatacommunities.org/id/metropolitan-district-council/walsall,WC103-294,30/04/2019,Resources and Transformation,ACCORD HOUSING ASSOCIATION LTD#135,18/04/2019,"4,991.54",01045-PRIVATE GRANTS,CFR 826 DISABLED FACILITIES GRANTS (SOCIAL SERVICES),Capital,Capital
Walsall Council,http://opendatacommunities.org/id/metropolitan-district-council/walsall,WC103-295,30/04/2019,Resources and Transformation,ACCORD HOUSING ASSOCIATION LTD#135,18/04/2019,"4,991.54",01045-PRIVATE GRANTS,CFR 826 DISABLED FACILITIES GRANTS (SOCIAL SERVICES),Capital,Capital
Walsall Council,http://opendatacommunities.org/id/metropolitan-district-council/walsall,WC103-296,30/04/2019,Resources and Transformation,ACCORD HOUSING ASSOCIATION LTD#135,18/04/2019,"4,991.54",01045-PRIVATE GRANTS,CFR 826 DISABLED FACILITIES GRANTS (SOCIAL SERVICES),Capital,Capital
Walsall Council,http://opendatacommunities.org/id/metropolitan-district-council/walsall,WC103-297,30/04/2019,Resources and Transformation,ACCORD HOUSING ASSOCIATION LTD#135,18/04/2019,"4,991.54",01045-PRIVATE GRANTS,CFR 826 DISABLED FACILITIES GRANTS (SOCIAL SERVICES),Capital,Capital
Walsall Council,http://opendatacommunities.org/id/metropolitan-district-council/walsall,WC103-298,30/04/2019,Resources and Transformation,ACCORD HOUSING ASSOCIATION LTD#135,18/04/2019,"4,991.54",01045-PRIVATE GRANTS,CFR 826 DISABLED FACILITIES GRANTS (SOCIAL SERVICES),Capital,Capital
Walsall Council,http://opendatacommunities.org/id/metropolitan-district-council/walsall,WC103-299,30/04/2019,Resources and Transformation,ACCORD HOUSING ASSOCIATION LTD#135,23/04/2019,"4,991.54",01045-PRIVATE GRANTS,CFR 826 DISABLED FACILITIES GRANTS (SOCIAL SERVICES),Capital,Capital
Walsall Council,http://opendatacommunities.org/id/metropolitan-district-council/walsall,WC103-300,30/04/2019,Resources and Transformation,ACCORD HOUSING ASSOCIATION LTD#135,25/04/2019,"4,991.54",01045-PRIVATE GRANTS,CFR 826 DISABLED FACILITIES GRANTS (SOCIAL SERVICES),Capital,Capital
Walsall Council,http://opendatacommunities.org/id/metropolitan-district-council/walsall,WC103-301,30/04/2019,Resources and Transformation,ACCORD HOUSING ASSOCIATION LTD#135,25/04/2019,"4,991.54",01045-PRIVATE GRANTS,CFR 826 DISABLED FACILITIES GRANTS (SOCIAL SERVICES),Capital,Capital
Walsall Council,http://opendatacommunities.org/id/metropolitan-district-council/walsall,WC103-302,30/04/2019,Resources and Transformation,ACCORD HOUSING ASSOCIATION LTD#135,25/04/2019,"4,991.54",01045-PRIVATE GRANTS,CFR 826 DISABLED FACILITIES GRANTS (SOCIAL SERVICES),Capital,Capital
Walsall Council,http://opendatacommunities.org/id/metropolitan-district-council/walsall,WC103-303,30/04/2019,Resources and Transformation,ACCORD HOUSING ASSOCIATION LTD#135,25/04/2019,"4,991.54",01045-PRIVATE GRANTS,CFR 826 DISABLED FACILITIES GRANTS (SOCIAL SERVICES),Capital,Capital
Walsall Council,http://opendatacommunities.org/id/metropolitan-district-council/walsall,WC103-304,30/04/2019,Resources and Transformation,ACCORD HOUSING ASSOCIATION LTD#135,25/04/2019,"4,991.54",01045-PRIVATE GRANTS,CFR 826 DISABLED FACILITIES GRANTS (SOCIAL SERVICES),Capital,Capital
Walsall Council,http://opendatacommunities.org/id/metropolitan-district-council/walsall,WC103-305,30/04/2019,Resources and Transformation,ACCORD HOUSING ASSOCIATION LTD#135,25/04/2019,"4,991.54",01045-PRIVATE GRANTS,CFR 826 DISABLED FACILITIES GRANTS (SOCIAL SERVICES),Capital,Capital
Walsall Council,http://opendatacommunities.org/id/metropolitan-district-council/walsall,WC103-306,30/04/2019,Resources and Transformation,ACCORD HOUSING ASSOCIATION LTD#135,25/04/2019,"4,991.54",01045-PRIVATE GRANTS,CFR 826 DISABLED FACILITIES GRANTS (SOCIAL SERVICES),Capital,Capital
Walsall Council,http://opendatacommunities.org/id/metropolitan-district-council/walsall,WC103-307,30/04/2019,Resources and Transformation,ACCORD HOUSING ASSOCIATION LTD#135,25/04/2019,"4,991.54",01045-PRIVATE GRANTS,CFR 826 DISABLED FACILITIES GRANTS (SOCIAL SERVICES),Capital,Capital
Walsall Council,http://opendatacommunities.org/id/metropolitan-district-council/walsall,WC103-308,30/04/2019,Resources and Transformation,ACCORD HOUSING ASSOCIATION LTD#135,25/04/2019,"4,991.54",01045-PRIVATE GRANTS,CFR 826 DISABLED FACILITIES GRANTS (SOCIAL SERVICES),Capital,Capital
Walsall Council,http://opendatacommunities.org/id/metropolitan-district-council/walsall,WC103-309,30/04/2019,Resources and Transformation,ACCORD HOUSING ASSOCIATION LTD#135,25/04/2019,"4,991.54",01045-PRIVATE GRANTS,CFR 826 DISABLED FACILITIES GRANTS (SOCIAL SERVICES),Capital,Capital
Walsall Council,http://opendatacommunities.org/id/metropolitan-district-council/walsall,WC103-310,30/04/2019,Resources and Transformation,ACCORD HOUSING ASSOCIATION LTD#135,25/04/2019,"4,991.54",01045-PRIVATE GRANTS,CFR 826 DISABLED FACILITIES GRANTS (SOCIAL SERVICES),Capital,Capital
Walsall Council,http://opendatacommunities.org/id/metropolitan-district-council/walsall,WC103-311,30/04/2019,Resources and Transformation,ACCORD HOUSING ASSOCIATION LTD#135,25/04/2019,"4,991.54",01045-PRIVATE GRANTS,CFR 826 DISABLED FACILITIES GRANTS (SOCIAL SERVICES),Capital,Capital
Walsall Council,http://opendatacommunities.org/id/metropolitan-district-council/walsall,WC103-312,30/04/2019,Resources and Transformation,ACCORD HOUSING ASSOCIATION LTD#135,29/04/2019,"4,991.54",01045-PRIVATE GRANTS,CFR 826 DISABLED FACILITIES GRANTS (SOCIAL SERVICES),Capital,Capital
Walsall Council,http://opendatacommunities.org/id/metropolitan-district-council/walsall,WC103-313,30/04/2019,Resources and Transformation,ACCORD HOUSING ASSOCIATION LTD#135,29/04/2019,"4,991.54",01045-PRIVATE GRANTS,CFR 826 DISABLED FACILITIES GRANTS (SOCIAL SERVICES),Capital,Capital
Walsall Council,http://opendatacommunities.org/id/metropolitan-district-council/walsall,WC103-314,30/04/2019,Resources and Transformation,ACCORD HOUSING ASSOCIATION LTD#135,10/04/2019,"5,431.09",01045-PRIVATE GRANTS,CFR 826 DISABLED FACILITIES GRANTS (SOCIAL SERVICES),Capital,Capital
Walsall Council,http://opendatacommunities.org/id/metropolitan-district-council/walsall,WC103-315,30/04/2019,Resources and Transformation,ACCORD HOUSING ASSOCIATION LTD#135,10/04/2019,"5,431.09",01045-PRIVATE GRANTS,CFR 826 DISABLED FACILITIES GRANTS (SOCIAL SERVICES),Capital,Capital
Walsall Council,http://opendatacommunities.org/id/metropolitan-district-council/walsall,WC103-316,30/04/2019,Resources and Transformation,ACCORD HOUSING ASSOCIATION LTD#135,10/04/2019,"5,431.09",01045-PRIVATE GRANTS,CFR 826 DISABLED FACILITIES GRANTS (SOCIAL SERVICES),Capital,Capital
Walsall Council,http://opendatacommunities.org/id/metropolitan-district-council/walsall,WC103-317,30/04/2019,Resources and Transformation,ACCORD HOUSING ASSOCIATION LTD#135,10/04/2019,"5,611.74",01045-PRIVATE GRANTS,CFR 826 DISABLED FACILITIES GRANTS (SOCIAL SERVICES),Capital,Capital
Walsall Council,http://opendatacommunities.org/id/metropolitan-district-council/walsall,WC103-318,30/04/2019,Adult Social Care,ACCORD HOUSING ASSOCIATION LTD#135,02/04/2019,"6,288.08",73500-RESIDENTIAL,LEARNING DISABILITY SUPPORT,Third Party Payments,Revenue
Walsall Council,http://opendatacommunities.org/id/metropolitan-district-council/walsall,WC103-319,30/04/2019,Adult Social Care,ACCORD HOUSING ASSOCIATION LTD#135,02/04/2019,"6,288.08",73500-RESIDENTIAL,LEARNING DISABILITY SUPPORT,Third Party Payments,Revenue
Walsall Council,http://opendatacommunities.org/id/metropolitan-district-council/walsall,WC103-320,30/04/2019,Adult Social Care,ACCORD HOUSING ASSOCIATION LTD#135,02/04/2019,"6,288.08",73500-RESIDENTIAL,LEARNING DISABILITY SUPPORT,Third Party Payments,Revenue
Walsall Council,http://opendatacommunities.org/id/metropolitan-district-council/walsall,WC103-321,30/04/2019,Adult Social Care,ACCORD HOUSING ASSOCIATION LTD#135,29/04/2019,"6,288.08",73500-RESIDENTIAL,LEARNING DISABILITY SUPPORT,Third Party Payments,Revenue
Walsall Council,http://opendatacommunities.org/id/metropolitan-district-council/walsall,WC103-322,30/04/2019,Adult Social Care,ACCORD HOUSING ASSOCIATION LTD#135,29/04/2019,"6,288.08",73500-RESIDENTIAL,LEARNING DISABILITY SUPPORT,Third Party Payments,Revenue
Walsall Council,http://opendatacommunities.org/id/metropolitan-district-council/walsall,WC103-323,30/04/2019,Adult Social Care,ACCORD HOUSING ASSOCIATION LTD#135,29/04/2019,"6,288.08",73500-RESIDENTIAL,LEARNING DISABILITY SUPPORT,Third Party Payments,Revenue
Walsall Council,http://opendatacommunities.org/id/metropolitan-district-council/walsall,WC103-324,30/04/2019,Childrens,ACCORD HOUSING ASSOCIATION LTD#135,25/04/2019,"6,655.50",63102-CONSULTANTS FEES - CORPORATE,EARLY HELP HUB,Supplies & Services,Revenue
Walsall Council,http://opendatacommunities.org/id/metropolitan-district-council/walsall,WC103-325,30/04/2019,Resources and Transformation,ACCORD HOUSING ASSOCIATION LTD#135,17/04/2019,"7,796.00",01046-OTHER GRANTS,CFR 1108 OFF GAS SCHEME-DECC,Capital,Capital
Walsall Council,http://opendatacommunities.org/id/metropolitan-district-council/walsall,WC103-326,30/04/2019,Adult Social Care,ACCORD HOUSING ASSOCIATION LTD#135,29/04/2019,"9,010.80",73500-RESIDENTIAL,LEARNING DISABILITY SUPPORT,Third Party Payments,Revenue
Walsall Council,http://opendatacommunities.org/id/metropolitan-district-council/walsall,WC103-327,30/04/2019,Adult Social Care,ACCORD HOUSING ASSOCIATION LTD#135,29/04/2019,"9,010.80",73500-RESIDENTIAL,LEARNING DISABILITY SUPPORT,Third Party Payments,Revenue
Walsall Council,http://opendatacommunities.org/id/metropolitan-district-council/walsall,WC103-328,30/04/2019,Adult Social Care,ACCORD HOUSING ASSOCIATION LTD#135,29/04/2019,"9,010.80",73500-RESIDENTIAL,LEARNING DISABILITY SUPPORT,Third Party Payments,Revenue
Walsall Council,http://opendatacommunities.org/id/metropolitan-district-council/walsall,WC103-329,30/04/2019,Adult Social Care,ACCORD HOUSING ASSOCIATION LTD#135,29/04/2019,"9,010.80",73500-RESIDENTIAL,LEARNING DISABILITY SUPPORT,Third Party Payments,Revenue
Walsall Council,http://opendatacommunities.org/id/metropolitan-district-council/walsall,WC103-330,30/04/2019,Resources and Transformation,ACCORD HOUSING ASSOCIATION LTD#135,16/04/2019,"13,643.00",01046-OTHER GRANTS,CFR 1108 OFF GAS SCHEME-DECC,Capital,Capital
Walsall Council,http://opendatacommunities.org/id/metropolitan-district-council/walsall,WC103-331,30/04/2019,Resources and Transformation,ACCORD HOUSING ASSOCIATION LTD#135,17/04/2019,"17,541.00",01046-OTHER GRANTS,CFR 1108 OFF GAS SCHEME-DECC,Capital,Capital
Walsall Council,http://opendatacommunities.org/id/metropolitan-district-council/walsall,WC103-332,30/04/2019,Resources and Transformation,ACCORD HOUSING ASSOCIATION LTD#135,16/04/2019,"19,490.00",01046-OTHER GRANTS,CFR 1108 OFF GAS SCHEME-DECC,Capital,Capital
Walsall Council,http://opendatacommunities.org/id/metropolitan-district-council/walsall,WC103-333,30/04/2019,Resources and Transformation,ACCORD HOUSING ASSOCIATION LTD#135,25/04/2019,"21,439.00",01046-OTHER GRANTS,CFR 1108 OFF GAS SCHEME-DECC,Capital,Capital
Walsall Council,http://opendatacommunities.org/id/metropolitan-district-council/walsall,WC103-334,30/04/2019,Resources and Transformation,ACCORD HOUSING ASSOCIATION LTD#135,03/04/2019,"28,654.35",01045-PRIVATE GRANTS,CFR 826 DISABLED FACILITIES GRANTS (SOCIAL SERVICES),Capital,Capital
Walsall Council,http://opendatacommunities.org/id/metropolitan-district-council/walsall,WC103-335,30/04/2019,Resources and Transformation,ACCORD HOUSING ASSOCIATION LTD#135,25/04/2019,"37,031.00",01046-OTHER GRANTS,CFR 1108 OFF GAS SCHEME-DECC,Capital,Capital
Walsall Council,http://opendatacommunities.org/id/metropolitan-district-council/walsall,WC103-336,30/04/2019,Resources and Transformation,ACCORD HOUSING ASSOCIATION LTD#135,17/04/2019,"43,570.00",75101-HOUSING PREVENTION ALLOWANCES-TRANSFER PAYMENTS,HOMELESSNESS PREVENTION STRATEGY,Transfer Payments,Revenue
Walsall Council,http://opendatacommunities.org/id/metropolitan-district-council/walsall,WC103-337,30/04/2019,Resources and Transformation,ACCORD HOUSING ASSOCIATION LTD#135,03/04/2019,"47,217.50",73365-BLOCK GROSS-SUPPORTING PEOPLE,HOMELESS PREVENTION GRANT,Third Party Payments,Revenue
Walsall Council,http://opendatacommunities.org/id/metropolitan-district-council/walsall,WC103-338,30/04/2019,Adult Social Care,ACEPAY LTD (COTTAGE NUR HOME),29/04/2019,946.99,73502-NURSING,PHYSICAL SUPPORT,Third Party Payments,Revenue
Walsall Council,http://opendatacommunities.org/id/metropolitan-district-council/walsall,WC103-339,30/04/2019,Adult Social Care,ACEPAY LTD (COTTAGE NUR HOME),29/04/2019,"1,238.38",73502-NURSING,MENTAL HEALTH SUPPORT,Third Party Payments,Revenue
Walsall Council,http://opendatacommunities.org/id/metropolitan-district-council/walsall,WC103-340,30/04/2019,Adult Social Care,ACEPAY LTD (COTTAGE NUR HOME),02/04/2019,"1,688.84",73500-RESIDENTIAL,PHYSICAL SUPPORT,Third Party Payments,Revenue
Walsall Council,http://opendatacommunities.org/id/metropolitan-district-council/walsall,WC103-341,30/04/2019,Adult Social Care,ACEPAY LTD (COTTAGE NUR HOME),29/04/2019,"1,688.84",73500-RESIDENTIAL,PHYSICAL SUPPORT,Third Party Payments,Revenue
Walsall Council,http://opendatacommunities.org/id/metropolitan-district-council/walsall,WC103-342,30/04/2019,Adult Social Care,ACEPAY LTD (COTTAGE NUR HOME),02/04/2019,"2,039.68",73502-NURSING,PHYSICAL SUPPORT,Third Party Payments,Revenue
Walsall Council,http://opendatacommunities.org/id/metropolitan-district-council/walsall,WC103-343,30/04/2019,Adult Social Care,ACEPAY LTD (COTTAGE NUR HOME),02/04/2019,"2,039.68",73502-NURSING,SUPPORT WITH MEMORY & COGNITION,Third Party Payments,Revenue
Walsall Council,http://opendatacommunities.org/id/metropolitan-district-council/walsall,WC103-344,30/04/2019,Adult Social Care,ACEPAY LTD (COTTAGE NUR HOME),02/04/2019,"2,039.68",73502-NURSING,PHYSICAL SUPPORT,Third Party Payments,Revenue
Walsall Council,http://opendatacommunities.org/id/metropolitan-district-council/walsall,WC103-345,30/04/2019,Adult Social Care,ACEPAY LTD (COTTAGE NUR HOME),02/04/2019,"2,039.68",73502-NURSING,PHYSICAL SUPPORT,Third Party Payments,Revenue
Walsall Council,http://opendatacommunities.org/id/metropolitan-district-council/walsall,WC103-346,30/04/2019,Adult Social Care,ACEPAY LTD (COTTAGE NUR HOME),02/04/2019,"2,039.68",73502-NURSING,PHYSICAL SUPPORT,Third Party Payments,Revenue
Walsall Council,http://opendatacommunities.org/id/metropolitan-district-council/walsall,WC103-347,30/04/2019,Adult Social Care,ACEPAY LTD (COTTAGE NUR HOME),02/04/2019,"2,039.68",73502-NURSING,PHYSICAL SUPPORT,Third Party Payments,Revenue
Walsall Council,http://opendatacommunities.org/id/metropolitan-district-council/walsall,WC103-348,30/04/2019,Adult Social Care,ACEPAY LTD (COTTAGE NUR HOME),02/04/2019,"2,039.68",73502-NURSING,SOCIAL SUPPORT,Third Party Payments,Revenue
Walsall Council,http://opendatacommunities.org/id/metropolitan-district-council/walsall,WC103-349,30/04/2019,Adult Social Care,ACEPAY LTD (COTTAGE NUR HOME),02/04/2019,"2,039.68",73502-NURSING,MENTAL HEALTH SUPPORT,Third Party Payments,Revenue
Walsall Council,http://opendatacommunities.org/id/metropolitan-district-council/walsall,WC103-350,30/04/2019,Adult Social Care,ACEPAY LTD (COTTAGE NUR HOME),02/04/2019,"2,039.68",73502-NURSING,PHYSICAL SUPPORT,Third Party Payments,Revenue
Walsall Council,http://opendatacommunities.org/id/metropolitan-district-council/walsall,WC103-351,30/04/2019,Adult Social Care,ACEPAY LTD (COTTAGE NUR HOME),02/04/2019,"2,039.68",73502-NURSING,SUPPORT WITH MEMORY & COGNITION,Third Party Payments,Revenue
Walsall Council,http://opendatacommunities.org/id/metropolitan-district-council/walsall,WC103-352,30/04/2019,Adult Social Care,ACEPAY LTD (COTTAGE NUR HOME),02/04/2019,"2,039.68",73502-NURSING,SUPPORT WITH MEMORY & COGNITION,Third Party Payments,Revenue
Walsall Council,http://opendatacommunities.org/id/metropolitan-district-council/walsall,WC103-353,30/04/2019,Adult Social Care,ACEPAY LTD (COTTAGE NUR HOME),02/04/2019,"2,039.68",73502-NURSING,PHYSICAL SUPPORT,Third Party Payments,Revenue
Walsall Council,http://opendatacommunities.org/id/metropolitan-district-council/walsall,WC103-354,30/04/2019,Adult Social Care,ACEPAY LTD (COTTAGE NUR HOME),29/04/2019,"2,039.68",73502-NURSING,PHYSICAL SUPPORT,Third Party Payments,Revenue
Walsall Council,http://opendatacommunities.org/id/metropolitan-district-council/walsall,WC103-355,30/04/2019,Adult Social Care,ACEPAY LTD (COTTAGE NUR HOME),29/04/2019,"2,039.68",73502-NURSING,PHYSICAL SUPPORT,Third Party Payments,Revenue
Walsall Council,http://opendatacommunities.org/id/metropolitan-district-council/walsall,WC103-356,30/04/2019,Adult Social Care,ACEPAY LTD (COTTAGE NUR HOME),29/04/2019,"2,039.68",73502-NURSING,PHYSICAL SUPPORT,Third Party Payments,Revenue
Walsall Council,http://opendatacommunities.org/id/metropolitan-district-council/walsall,WC103-357,30/04/2019,Adult Social Care,ACEPAY LTD (COTTAGE NUR HOME),29/04/2019,"2,039.68",73502-NURSING,SUPPORT WITH MEMORY & COGNITION,Third Party Payments,Revenue
Walsall Council,http://opendatacommunities.org/id/metropolitan-district-council/walsall,WC103-358,30/04/2019,Adult Social Care,ACEPAY LTD (COTTAGE NUR HOME),29/04/2019,"2,039.68",73502-NURSING,PHYSICAL SUPPORT,Third Party Payments,Revenue
Walsall Council,http://opendatacommunities.org/id/metropolitan-district-council/walsall,WC103-359,30/04/2019,Adult Social Care,ACEPAY LTD (COTTAGE NUR HOME),29/04/2019,"2,039.68",73502-NURSING,SOCIAL SUPPORT,Third Party Payments,Revenue
Walsall Council,http://opendatacommunities.org/id/metropolitan-district-council/walsall,WC103-360,30/04/2019,Adult Social Care,ACEPAY LTD (COTTAGE NUR HOME),29/04/2019,"2,039.68",73502-NURSING,SUPPORT WITH MEMORY & COGNITION,Third Party Payments,Revenue
Walsall Council,http://opendatacommunities.org/id/metropolitan-district-council/walsall,WC103-361,30/04/2019,Adult Social Care,ACEPAY LTD (COTTAGE NUR HOME),29/04/2019,"2,039.68",73502-NURSING,PHYSICAL SUPPORT,Third Party Payments,Revenue
Walsall Council,http://opendatacommunities.org/id/metropolitan-district-council/walsall,WC103-362,30/04/2019,Adult Social Care,ACEPAY LTD (COTTAGE NUR HOME),29/04/2019,"2,039.68",73502-NURSING,SUPPORT WITH MEMORY & COGNITION,Third Party Payments,Revenue
Walsall Council,http://opendatacommunities.org/id/metropolitan-district-council/walsall,WC103-363,30/04/2019,Adult Social Care,ACEPAY LTD (COTTAGE NUR HOME),29/04/2019,"2,039.68",73502-NURSING,PHYSICAL SUPPORT,Third Party Payments,Revenue
Walsall Council,http://opendatacommunities.org/id/metropolitan-district-council/walsall,WC103-364,30/04/2019,Adult Social Care,ACEPAY LTD (COTTAGE NUR HOME),29/04/2019,"2,039.68",73502-NURSING,PHYSICAL SUPPORT,Third Party Payments,Revenue
Walsall Council,http://opendatacommunities.org/id/metropolitan-district-council/walsall,WC103-365,30/04/2019,Economy & Environment,ACER MARKETING COMMUNICATIONS LTD,03/04/2019,"2,247.00",68001-PUBLICITY & ADVERTISING (NOT STAFF ADVERTISING),BLACK COUNTRY BLUE NETWORK,Supplies & Services,Revenue
Walsall Council,http://opendatacommunities.org/id/metropolitan-district-council/walsall,WC103-366,30/04/2019,Adult Social Care,ACORN REST HOME,02/04/2019,"-2,412.63",73500-RESIDENTIAL,PHYSICAL SUPPORT,Third Party Payments,Revenue
Walsall Council,http://opendatacommunities.org/id/metropolitan-district-council/walsall,WC103-367,30/04/2019,Adult Social Care,ACORN REST HOME,02/04/2019,"2,140.00",73500-RESIDENTIAL,SOCIAL SUPPORT,Third Party Payments,Revenue
Walsall Council,http://opendatacommunities.org/id/metropolitan-district-council/walsall,WC103-368,30/04/2019,Childrens,ACPAS LIMITED,02/04/2019,744.00,63000-PROFESSIONAL FEES AND SERVICES,SAFEGUARDING & FAMILY SUPPORT,Supplies & Services,Revenue
Walsall Council,http://opendatacommunities.org/id/metropolitan-district-council/walsall,WC103-369,30/04/2019,Adult Social Care,ACTION ON HEARING LOSS,29/04/2019,"1,008.00",73508-COMMUNITY SUPPORTED LIVING/SUPPORTED ACCOMMODATION,MENTAL HEALTH SUPPORT,Third Party Payments,Revenue
Walsall Council,http://opendatacommunities.org/id/metropolitan-district-council/walsall,WC103-370,30/04/2019,Adult Social Care,ACTION ON HEARING LOSS,29/04/2019,"1,008.00",73508-COMMUNITY SUPPORTED LIVING/SUPPORTED ACCOMMODATION,MENTAL HEALTH SUPPORT,Third Party Payments,Revenue
Walsall Council,http://opendatacommunities.org/id/metropolitan-district-council/walsall,WC103-371,30/04/2019,Adult Social Care,ACTION ON HEARING LOSS,29/04/2019,"1,008.00",73508-COMMUNITY SUPPORTED LIVING/SUPPORTED ACCOMMODATION,MENTAL HEALTH SUPPORT,Third Party Payments,Revenue
Walsall Council,http://opendatacommunities.org/id/metropolitan-district-council/walsall,WC103-372,30/04/2019,Adult Social Care,ACTION ON HEARING LOSS,29/04/2019,"1,008.00",73508-COMMUNITY SUPPORTED LIVING/SUPPORTED ACCOMMODATION,MENTAL HEALTH SUPPORT,Third Party Payments,Revenue
Walsall Council,http://opendatacommunities.org/id/metropolitan-district-council/walsall,WC103-373,30/04/2019,Adult Social Care,ACTION ON HEARING LOSS,29/04/2019,"1,008.00",73508-COMMUNITY SUPPORTED LIVING/SUPPORTED ACCOMMODATION,MENTAL HEALTH SUPPORT,Third Party Payments,Revenue
Walsall Council,http://opendatacommunities.org/id/metropolitan-district-council/walsall,WC103-374,30/04/2019,Adult Social Care,ACTION ON HEARING LOSS,29/04/2019,"1,008.00",73508-COMMUNITY SUPPORTED LIVING/SUPPORTED ACCOMMODATION,MENTAL HEALTH SUPPORT,Third Party Payments,Revenue
Walsall Council,http://opendatacommunities.org/id/metropolitan-district-council/walsall,WC103-375,30/04/2019,Adult Social Care,ACTION ON HEARING LOSS,29/04/2019,"1,008.00",73508-COMMUNITY SUPPORTED LIVING/SUPPORTED ACCOMMODATION,MENTAL HEALTH SUPPORT,Third Party Payments,Revenue
Walsall Council,http://opendatacommunities.org/id/metropolitan-district-council/walsall,WC103-376,30/04/2019,Adult Social Care,ACTION ON HEARING LOSS,29/04/2019,"1,008.00",73508-COMMUNITY SUPPORTED LIVING/SUPPORTED ACCOMMODATION,MENTAL HEALTH SUPPORT,Third Party Payments,Revenue
Walsall Council,http://opendatacommunities.org/id/metropolitan-district-council/walsall,WC103-377,30/04/2019,Adult Social Care,ACTION ON HEARING LOSS,29/04/2019,"1,008.00",73508-COMMUNITY SUPPORTED LIVING/SUPPORTED ACCOMMODATION,MENTAL HEALTH SUPPORT,Third Party Payments,Revenue
Walsall Council,http://opendatacommunities.org/id/metropolitan-district-council/walsall,WC103-378,30/04/2019,Adult Social Care,ACTION ON HEARING LOSS,29/04/2019,"1,008.00",73508-COMMUNITY SUPPORTED LIVING/SUPPORTED ACCOMMODATION,MENTAL HEALTH SUPPORT,Third Party Payments,Revenue
Walsall Council,http://opendatacommunities.org/id/metropolitan-district-council/walsall,WC103-379,30/04/2019,Adult Social Care,ACTION ON HEARING LOSS,29/04/2019,"1,008.00",73508-COMMUNITY SUPPORTED LIVING/SUPPORTED ACCOMMODATION,MENTAL HEALTH SUPPORT,Third Party Payments,Revenue
Walsall Council,http://opendatacommunities.org/id/metropolitan-district-council/walsall,WC103-380,30/04/2019,Childrens,ACTIVE CARE SOLUTIONS LTD,23/04/2019,"2,662.80",74037-INDEPENDENT FOSTER CARE-OTH AGENCY PROVISION,EXTERNAL FOSTER CARE PROVISION,Third Party Payments,Revenue
Walsall Council,http://opendatacommunities.org/id/metropolitan-district-council/walsall,WC103-381,30/04/2019,Childrens,ACTIVE CARE SOLUTIONS LTD,23/04/2019,"3,024.00",74037-INDEPENDENT FOSTER CARE-OTH AGENCY PROVISION,EXTERNAL FOSTER CARE PROVISION,Third Party Payments,Revenue
Walsall Council,http://opendatacommunities.org/id/metropolitan-district-council/walsall,WC103-382,30/04/2019,Childrens,ACTIVE CARE SOLUTIONS LTD,23/04/2019,"3,024.00",74037-INDEPENDENT FOSTER CARE-OTH AGENCY PROVISION,EXTERNAL FOSTER CARE PROVISION,Third Party Payments,Revenue
Walsall Council,http://opendatacommunities.org/id/metropolitan-district-council/walsall,WC103-383,30/04/2019,Childrens,ACTIVE CARE SOLUTIONS LTD,23/04/2019,"3,310.00",74037-INDEPENDENT FOSTER CARE-OTH AGENCY PROVISION,EXTERNAL FOSTER CARE PROVISION,Third Party Payments,Revenue
Walsall Council,http://opendatacommunities.org/id/metropolitan-district-council/walsall,WC103-384,30/04/2019,Adult Social Care,REDACTED,09/04/2019,442.52,73506-DIRECT PAYMENT,LEARNING DISABILITY SUPPORT,Third Party Payments,Revenue
Walsall Council,http://opendatacommunities.org/id/metropolitan-district-council/walsall,WC103-385,30/04/2019,Resources and Transformation,ADELIE FOODS LTD,18/04/2019,770.03,61305-CATERING,TOWN HALL RESTAURANT BISTRO,Supplies & Services,Revenue
Walsall Council,http://opendatacommunities.org/id/metropolitan-district-council/walsall,WC103-386,30/04/2019,Resources and Transformation,ADELIE FOODS LTD,05/04/2019,778.04,61305-CATERING,TOWN HALL RESTAURANT BISTRO,Supplies & Services,Revenue
Walsall Council,http://opendatacommunities.org/id/metropolitan-district-council/walsall,WC103-387,30/04/2019,Resources and Transformation,ADELIE FOODS LTD,18/04/2019,841.31,61305-CATERING,TOWN HALL RESTAURANT BISTRO,Supplies & Services,Revenue
Walsall Council,http://opendatacommunities.org/id/metropolitan-district-council/walsall,WC103-388,30/04/2019,Adult Social Care,REDACTED,09/04/2019,"1,029.52",73506-DIRECT PAYMENT,PHYSICAL SUPPORT,Third Party Payments,Revenue
Walsall Council,http://opendatacommunities.org/id/metropolitan-district-council/walsall,WC103-389,30/04/2019,Adult Social Care,ADMIRAL SELF STORAGE LTD,11/04/2019,215.10,43000-RENTS,MENTAL HEALTH PACKAGE/PLACEMENT COSTS,Premises,Revenue
Walsall Council,http://opendatacommunities.org/id/metropolitan-district-council/walsall,WC103-390,30/04/2019,Childrens,REDACTED,08/04/2019,333.12,74510-RESIDENTS ORDERS,ADOPTION ALLOWANCES,Third Party Payments,Revenue
Walsall Council,http://opendatacommunities.org/id/metropolitan-district-council/walsall,WC103-391,30/04/2019,Childrens,REDACTED,08/04/2019,361.12,74510-RESIDENTS ORDERS,ADOPTION ALLOWANCES,Third Party Payments,Revenue
Walsall Council,http://opendatacommunities.org/id/metropolitan-district-council/walsall,WC103-392,30/04/2019,Adult Social Care,REDACTED,09/04/2019,"2,083.20",73506-DIRECT PAYMENT,LEARNING DISABILITY SUPPORT,Third Party Payments,Revenue
Walsall Council,http://opendatacommunities.org/id/metropolitan-district-council/walsall,WC103-393,30/04/2019,Economy & Environment,ADS ELECTRICAL & HIGHWAY SERVICES LTD,01/04/2019,700.00,63000-PROFESSIONAL FEES AND SERVICES,FESTIVE DECORATIONS,Supplies & Services,Revenue
Walsall Council,http://opendatacommunities.org/id/metropolitan-district-council/walsall,WC103-394,30/04/2019,Economy & Environment,ADS ELECTRICAL & HIGHWAY SERVICES LTD,01/04/2019,"2,715.00",63000-PROFESSIONAL FEES AND SERVICES,FESTIVE DECORATIONS,Supplies & Services,Revenue
Walsall Council,http://opendatacommunities.org/id/metropolitan-district-council/walsall,WC103-395,30/04/2019,Adult Social Care,ADVANCE HEALTH CARE (UK) LTD,24/04/2019,259.93,73025-PROFESSIONAL SERVICES-PRIV CONTRACTOR & OTHER AGENCIES,COMMUNITY INTERMEDIATE CARE,Third Party Payments,Revenue
Walsall Council,http://opendatacommunities.org/id/metropolitan-district-council/walsall,WC103-396,30/04/2019,Adult Social Care,ADVANCE HEALTH CARE (UK) LTD,24/04/2019,281.00,73025-PROFESSIONAL SERVICES-PRIV CONTRACTOR & OTHER AGENCIES,COMMUNITY INTERMEDIATE CARE,Third Party Payments,Revenue
Walsall Council,http://opendatacommunities.org/id/metropolitan-district-council/walsall,WC103-397,30/04/2019,Adult Social Care,ADVANCE HEALTH CARE (UK) LTD,25/04/2019,281.00,73025-PROFESSIONAL SERVICES-PRIV CONTRACTOR & OTHER AGENCIES,COMMUNITY INTERMEDIATE CARE,Third Party Payments,Revenue
Walsall Council,http://opendatacommunities.org/id/metropolitan-district-council/walsall,WC103-398,30/04/2019,Adult Social Care,ADVANCE HEALTH CARE (UK) LTD,15/04/2019,281.20,73025-PROFESSIONAL SERVICES-PRIV CONTRACTOR & OTHER AGENCIES,RAPID RESPONSE,Third Party Payments,Revenue
Walsall Council,http://opendatacommunities.org/id/metropolitan-district-council/walsall,WC103-399,30/04/2019,Adult Social Care,ADVANCE HEALTH CARE (UK) LTD,26/04/2019,312.73,73507-DOMICILIARY CARE,PHYSICAL SUPPORT,Third Party Payments,Revenue
Walsall Council,http://opendatacommunities.org/id/metropolitan-district-council/walsall,WC103-400,30/04/2019,Adult Social Care,ADVANCE HEALTH CARE (UK) LTD,23/04/2019,344.23,73025-PROFESSIONAL SERVICES-PRIV CONTRACTOR & OTHER AGENCIES,COMMUNITY INTERMEDIATE CARE,Third Party Payments,Revenue
Walsall Council,http://opendatacommunities.org/id/metropolitan-district-council/walsall,WC103-401,30/04/2019,Adult Social Care,ADVANCE HEALTH CARE (UK) LTD,24/04/2019,344.23,73025-PROFESSIONAL SERVICES-PRIV CONTRACTOR & OTHER AGENCIES,COMMUNITY INTERMEDIATE CARE,Third Party Payments,Revenue
Walsall Council,http://opendatacommunities.org/id/metropolitan-district-council/walsall,WC103-402,30/04/2019,Adult Social Care,ADVANCE HEALTH CARE (UK) LTD,24/04/2019,344.23,73025-PROFESSIONAL SERVICES-PRIV CONTRACTOR & OTHER AGENCIES,COMMUNITY INTERMEDIATE CARE,Third Party Payments,Revenue
Walsall Council,http://opendatacommunities.org/id/metropolitan-district-council/walsall,WC103-403,30/04/2019,Adult Social Care,ADVANCE HEALTH CARE (UK) LTD,23/04/2019,351.25,73025-PROFESSIONAL SERVICES-PRIV CONTRACTOR & OTHER AGENCIES,COMMUNITY INTERMEDIATE CARE,Third Party Payments,Revenue
Walsall Council,http://opendatacommunities.org/id/metropolitan-district-council/walsall,WC103-404,30/04/2019,Adult Social Care,ADVANCE HEALTH CARE (UK) LTD,01/04/2019,368.83,73507-DOMICILIARY CARE,PHYSICAL SUPPORT,Third Party Payments,Revenue
Walsall Council,http://opendatacommunities.org/id/metropolitan-district-council/walsall,WC103-405,30/04/2019,Adult Social Care,ADVANCE HEALTH CARE (UK) LTD,26/04/2019,386.66,73507-DOMICILIARY CARE,SENSORY SUPPORT,Third Party Payments,Revenue
Walsall Council,http://opendatacommunities.org/id/metropolitan-district-council/walsall,WC103-406,30/04/2019,Adult Social Care,ADVANCE HEALTH CARE (UK) LTD,01/04/2019,393.40,73025-PROFESSIONAL SERVICES-PRIV CONTRACTOR & OTHER AGENCIES,COMMUNITY INTERMEDIATE CARE,Third Party Payments,Revenue
Walsall Council,http://opendatacommunities.org/id/metropolitan-district-council/walsall,WC103-407,30/04/2019,Adult Social Care,ADVANCE HEALTH CARE (UK) LTD,01/04/2019,393.68,73507-DOMICILIARY CARE,SENSORY SUPPORT,Third Party Payments,Revenue
Walsall Council,http://opendatacommunities.org/id/metropolitan-district-council/walsall,WC103-408,30/04/2019,Adult Social Care,ADVANCE HEALTH CARE (UK) LTD,01/04/2019,393.69,73507-DOMICILIARY CARE,PHYSICAL SUPPORT,Third Party Payments,Revenue
Walsall Council,http://opendatacommunities.org/id/metropolitan-district-council/walsall,WC103-409,30/04/2019,Adult Social Care,ADVANCE HEALTH CARE (UK) LTD,01/04/2019,397.21,73507-DOMICILIARY CARE,PHYSICAL SUPPORT,Third Party Payments,Revenue
Walsall Council,http://opendatacommunities.org/id/metropolitan-district-council/walsall,WC103-410,30/04/2019,Adult Social Care,ADVANCE HEALTH CARE (UK) LTD,26/04/2019,400.73,73507-DOMICILIARY CARE,PHYSICAL SUPPORT,Third Party Payments,Revenue
Walsall Council,http://opendatacommunities.org/id/metropolitan-district-council/walsall,WC103-411,30/04/2019,Adult Social Care,ADVANCE HEALTH CARE (UK) LTD,26/04/2019,404.23,73507-DOMICILIARY CARE,PHYSICAL SUPPORT,Third Party Payments,Revenue
Walsall Council,http://opendatacommunities.org/id/metropolitan-district-council/walsall,WC103-412,30/04/2019,Adult Social Care,ADVANCE HEALTH CARE (UK) LTD,01/04/2019,418.28,73507-DOMICILIARY CARE,PHYSICAL SUPPORT,Third Party Payments,Revenue
Walsall Council,http://opendatacommunities.org/id/metropolitan-district-council/walsall,WC103-413,30/04/2019,Adult Social Care,ADVANCE HEALTH CARE (UK) LTD,26/04/2019,435.66,73507-DOMICILIARY CARE,PHYSICAL SUPPORT,Third Party Payments,Revenue
Walsall Council,http://opendatacommunities.org/id/metropolitan-district-council/walsall,WC103-414,30/04/2019,Adult Social Care,ADVANCE HEALTH CARE (UK) LTD,26/04/2019,435.89,73507-DOMICILIARY CARE,PHYSICAL SUPPORT,Third Party Payments,Revenue
Walsall Council,http://opendatacommunities.org/id/metropolitan-district-council/walsall,WC103-415,30/04/2019,Adult Social Care,ADVANCE HEALTH CARE (UK) LTD,16/04/2019,442.58,73025-PROFESSIONAL SERVICES-PRIV CONTRACTOR & OTHER AGENCIES,COMMUNITY INTERMEDIATE CARE,Third Party Payments,Revenue
Walsall Council,http://opendatacommunities.org/id/metropolitan-district-council/walsall,WC103-416,30/04/2019,Adult Social Care,ADVANCE HEALTH CARE (UK) LTD,16/04/2019,442.58,73025-PROFESSIONAL SERVICES-PRIV CONTRACTOR & OTHER AGENCIES,COMMUNITY INTERMEDIATE CARE,Third Party Payments,Revenue
Walsall Council,http://opendatacommunities.org/id/metropolitan-district-council/walsall,WC103-417,30/04/2019,Adult Social Care,ADVANCE HEALTH CARE (UK) LTD,23/04/2019,442.58,73025-PROFESSIONAL SERVICES-PRIV CONTRACTOR & OTHER AGENCIES,COMMUNITY INTERMEDIATE CARE,Third Party Payments,Revenue
Walsall Council,http://opendatacommunities.org/id/metropolitan-district-council/walsall,WC103-418,30/04/2019,Adult Social Care,ADVANCE HEALTH CARE (UK) LTD,23/04/2019,442.58,73025-PROFESSIONAL SERVICES-PRIV CONTRACTOR & OTHER AGENCIES,COMMUNITY INTERMEDIATE CARE,Third Party Payments,Revenue
Walsall Council,http://opendatacommunities.org/id/metropolitan-district-council/walsall,WC103-419,30/04/2019,Adult Social Care,ADVANCE HEALTH CARE (UK) LTD,23/04/2019,442.58,73025-PROFESSIONAL SERVICES-PRIV CONTRACTOR & OTHER AGENCIES,COMMUNITY INTERMEDIATE CARE,Third Party Payments,Revenue
Walsall Council,http://opendatacommunities.org/id/metropolitan-district-council/walsall,WC103-420,30/04/2019,Adult Social Care,ADVANCE HEALTH CARE (UK) LTD,24/04/2019,442.58,73025-PROFESSIONAL SERVICES-PRIV CONTRACTOR & OTHER AGENCIES,COMMUNITY INTERMEDIATE CARE,Third Party Payments,Revenue
Walsall Council,http://opendatacommunities.org/id/metropolitan-district-council/walsall,WC103-421,30/04/2019,Adult Social Care,ADVANCE HEALTH CARE (UK) LTD,24/04/2019,442.58,73025-PROFESSIONAL SERVICES-PRIV CONTRACTOR & OTHER AGENCIES,COMMUNITY INTERMEDIATE CARE,Third Party Payments,Revenue
Walsall Council,http://opendatacommunities.org/id/metropolitan-district-council/walsall,WC103-422,30/04/2019,Adult Social Care,ADVANCE HEALTH CARE (UK) LTD,24/04/2019,442.58,73025-PROFESSIONAL SERVICES-PRIV CONTRACTOR & OTHER AGENCIES,COMMUNITY INTERMEDIATE CARE,Third Party Payments,Revenue
Walsall Council,http://opendatacommunities.org/id/metropolitan-district-council/walsall,WC103-423,30/04/2019,Adult Social Care,ADVANCE HEALTH CARE (UK) LTD,24/04/2019,442.58,73025-PROFESSIONAL SERVICES-PRIV CONTRACTOR & OTHER AGENCIES,COMMUNITY INTERMEDIATE CARE,Third Party Payments,Revenue
Walsall Council,http://opendatacommunities.org/id/metropolitan-district-council/walsall,WC103-424,30/04/2019,Adult Social Care,ADVANCE HEALTH CARE (UK) LTD,24/04/2019,442.58,73025-PROFESSIONAL SERVICES-PRIV CONTRACTOR & OTHER AGENCIES,COMMUNITY INTERMEDIATE CARE,Third Party Payments,Revenue
Walsall Council,http://opendatacommunities.org/id/metropolitan-district-council/walsall,WC103-425,30/04/2019,Adult Social Care,ADVANCE HEALTH CARE (UK) LTD,24/04/2019,442.58,73025-PROFESSIONAL SERVICES-PRIV CONTRACTOR & OTHER AGENCIES,COMMUNITY INTERMEDIATE CARE,Third Party Payments,Revenue
Walsall Council,http://opendatacommunities.org/id/metropolitan-district-council/walsall,WC103-426,30/04/2019,Adult Social Care,ADVANCE HEALTH CARE (UK) LTD,24/04/2019,442.58,73025-PROFESSIONAL SERVICES-PRIV CONTRACTOR & OTHER AGENCIES,COMMUNITY INTERMEDIATE CARE,Third Party Payments,Revenue
Walsall Council,http://opendatacommunities.org/id/metropolitan-district-council/walsall,WC103-427,30/04/2019,Adult Social Care,ADVANCE HEALTH CARE (UK) LTD,24/04/2019,442.58,73025-PROFESSIONAL SERVICES-PRIV CONTRACTOR & OTHER AGENCIES,COMMUNITY INTERMEDIATE CARE,Third Party Payments,Revenue
Walsall Council,http://opendatacommunities.org/id/metropolitan-district-council/walsall,WC103-428,30/04/2019,Adult Social Care,ADVANCE HEALTH CARE (UK) LTD,25/04/2019,442.58,73025-PROFESSIONAL SERVICES-PRIV CONTRACTOR & OTHER AGENCIES,COMMUNITY INTERMEDIATE CARE,Third Party Payments,Revenue
Walsall Council,http://opendatacommunities.org/id/metropolitan-district-council/walsall,WC103-429,30/04/2019,Adult Social Care,ADVANCE HEALTH CARE (UK) LTD,26/04/2019,443.64,73507-DOMICILIARY CARE,SOCIAL SUPPORT,Third Party Payments,Revenue
Walsall Council,http://opendatacommunities.org/id/metropolitan-district-council/walsall,WC103-430,30/04/2019,Adult Social Care,ADVANCE HEALTH CARE (UK) LTD,16/04/2019,449.60,73025-PROFESSIONAL SERVICES-PRIV CONTRACTOR & OTHER AGENCIES,COMMUNITY INTERMEDIATE CARE,Third Party Payments,Revenue
Walsall Council,http://opendatacommunities.org/id/metropolitan-district-council/walsall,WC103-431,30/04/2019,Adult Social Care,ADVANCE HEALTH CARE (UK) LTD,24/04/2019,449.60,73025-PROFESSIONAL SERVICES-PRIV CONTRACTOR & OTHER AGENCIES,COMMUNITY INTERMEDIATE CARE,Third Party Payments,Revenue
Walsall Council,http://opendatacommunities.org/id/metropolitan-district-council/walsall,WC103-432,30/04/2019,Adult Social Care,ADVANCE HEALTH CARE (UK) LTD,01/04/2019,458.96,73507-DOMICILIARY CARE,SOCIAL SUPPORT,Third Party Payments,Revenue
Walsall Council,http://opendatacommunities.org/id/metropolitan-district-council/walsall,WC103-433,30/04/2019,Adult Social Care,ADVANCE HEALTH CARE (UK) LTD,23/04/2019,463.65,73025-PROFESSIONAL SERVICES-PRIV CONTRACTOR & OTHER AGENCIES,COMMUNITY INTERMEDIATE CARE,Third Party Payments,Revenue
Walsall Council,http://opendatacommunities.org/id/metropolitan-district-council/walsall,WC103-434,30/04/2019,Adult Social Care,ADVANCE HEALTH CARE (UK) LTD,26/04/2019,464.04,73507-DOMICILIARY CARE,PHYSICAL SUPPORT,Third Party Payments,Revenue
Walsall Council,http://opendatacommunities.org/id/metropolitan-district-council/walsall,WC103-435,30/04/2019,Adult Social Care,ADVANCE HEALTH CARE (UK) LTD,26/04/2019,467.34,73507-DOMICILIARY CARE,PHYSICAL SUPPORT,Third Party Payments,Revenue
Walsall Council,http://opendatacommunities.org/id/metropolitan-district-council/walsall,WC103-436,30/04/2019,Adult Social Care,ADVANCE HEALTH CARE (UK) LTD,26/04/2019,467.39,73507-DOMICILIARY CARE,SOCIAL SUPPORT,Third Party Payments,Revenue
Walsall Council,http://opendatacommunities.org/id/metropolitan-district-council/walsall,WC103-437,30/04/2019,Adult Social Care,ADVANCE HEALTH CARE (UK) LTD,01/04/2019,481.16,73507-DOMICILIARY CARE,PHYSICAL SUPPORT,Third Party Payments,Revenue
Walsall Council,http://opendatacommunities.org/id/metropolitan-district-council/walsall,WC103-438,30/04/2019,Adult Social Care,ADVANCE HEALTH CARE (UK) LTD,26/04/2019,484.94,73507-DOMICILIARY CARE,PHYSICAL SUPPORT,Third Party Payments,Revenue
Walsall Council,http://opendatacommunities.org/id/metropolitan-district-council/walsall,WC103-439,30/04/2019,Adult Social Care,ADVANCE HEALTH CARE (UK) LTD,01/04/2019,488.47,73507-DOMICILIARY CARE,PHYSICAL SUPPORT,Third Party Payments,Revenue
Walsall Council,http://opendatacommunities.org/id/metropolitan-district-council/walsall,WC103-440,30/04/2019,Adult Social Care,ADVANCE HEALTH CARE (UK) LTD,26/04/2019,511.85,73507-DOMICILIARY CARE,PHYSICAL SUPPORT,Third Party Payments,Revenue
Walsall Council,http://opendatacommunities.org/id/metropolitan-district-council/walsall,WC103-441,30/04/2019,Adult Social Care,ADVANCE HEALTH CARE (UK) LTD,01/04/2019,517.70,73507-DOMICILIARY CARE,PHYSICAL SUPPORT,Third Party Payments,Revenue
Walsall Council,http://opendatacommunities.org/id/metropolitan-district-council/walsall,WC103-442,30/04/2019,Adult Social Care,ADVANCE HEALTH CARE (UK) LTD,26/04/2019,538.48,73507-DOMICILIARY CARE,PHYSICAL SUPPORT,Third Party Payments,Revenue
Walsall Council,http://opendatacommunities.org/id/metropolitan-district-council/walsall,WC103-443,30/04/2019,Adult Social Care,ADVANCE HEALTH CARE (UK) LTD,23/04/2019,540.93,73025-PROFESSIONAL SERVICES-PRIV CONTRACTOR & OTHER AGENCIES,COMMUNITY INTERMEDIATE CARE,Third Party Payments,Revenue
Walsall Council,http://opendatacommunities.org/id/metropolitan-district-council/walsall,WC103-444,30/04/2019,Adult Social Care,ADVANCE HEALTH CARE (UK) LTD,01/04/2019,544.90,73507-DOMICILIARY CARE,PHYSICAL SUPPORT,Third Party Payments,Revenue
Walsall Council,http://opendatacommunities.org/id/metropolitan-district-council/walsall,WC103-445,30/04/2019,Adult Social Care,ADVANCE HEALTH CARE (UK) LTD,01/04/2019,587.81,73507-DOMICILIARY CARE,PHYSICAL SUPPORT,Third Party Payments,Revenue
Walsall Council,http://opendatacommunities.org/id/metropolitan-district-council/walsall,WC103-446,30/04/2019,Adult Social Care,ADVANCE HEALTH CARE (UK) LTD,26/04/2019,591.36,73507-DOMICILIARY CARE,PHYSICAL SUPPORT,Third Party Payments,Revenue
Walsall Council,http://opendatacommunities.org/id/metropolitan-district-council/walsall,WC103-447,30/04/2019,Adult Social Care,ADVANCE HEALTH CARE (UK) LTD,01/04/2019,598.19,73507-DOMICILIARY CARE,PHYSICAL SUPPORT,Third Party Payments,Revenue
Walsall Council,http://opendatacommunities.org/id/metropolitan-district-council/walsall,WC103-448,30/04/2019,Adult Social Care,ADVANCE HEALTH CARE (UK) LTD,26/04/2019,600.53,73507-DOMICILIARY CARE,PHYSICAL SUPPORT,Third Party Payments,Revenue
Walsall Council,http://opendatacommunities.org/id/metropolitan-district-council/walsall,WC103-449,30/04/2019,Adult Social Care,ADVANCE HEALTH CARE (UK) LTD,26/04/2019,611.57,73507-DOMICILIARY CARE,PHYSICAL SUPPORT,Third Party Payments,Revenue
Walsall Council,http://opendatacommunities.org/id/metropolitan-district-council/walsall,WC103-450,30/04/2019,Adult Social Care,ADVANCE HEALTH CARE (UK) LTD,01/04/2019,615.11,73507-DOMICILIARY CARE,PHYSICAL SUPPORT,Third Party Payments,Revenue
Walsall Council,http://opendatacommunities.org/id/metropolitan-district-council/walsall,WC103-451,30/04/2019,Adult Social Care,ADVANCE HEALTH CARE (UK) LTD,26/04/2019,629.20,73507-DOMICILIARY CARE,PHYSICAL SUPPORT,Third Party Payments,Revenue
Walsall Council,http://opendatacommunities.org/id/metropolitan-district-council/walsall,WC103-452,30/04/2019,Adult Social Care,ADVANCE HEALTH CARE (UK) LTD,26/04/2019,674.68,73507-DOMICILIARY CARE,PHYSICAL SUPPORT,Third Party Payments,Revenue
Walsall Council,http://opendatacommunities.org/id/metropolitan-district-council/walsall,WC103-453,30/04/2019,Adult Social Care,ADVANCE HEALTH CARE (UK) LTD,01/04/2019,686.23,73507-DOMICILIARY CARE,PHYSICAL SUPPORT,Third Party Payments,Revenue
Walsall Council,http://opendatacommunities.org/id/metropolitan-district-council/walsall,WC103-454,30/04/2019,Adult Social Care,ADVANCE HEALTH CARE (UK) LTD,26/04/2019,690.91,73507-DOMICILIARY CARE,PHYSICAL SUPPORT,Third Party Payments,Revenue
Walsall Council,http://opendatacommunities.org/id/metropolitan-district-council/walsall,WC103-455,30/04/2019,Adult Social Care,ADVANCE HEALTH CARE (UK) LTD,26/04/2019,777.02,73507-DOMICILIARY CARE,PHYSICAL SUPPORT,Third Party Payments,Revenue
Walsall Council,http://opendatacommunities.org/id/metropolitan-district-council/walsall,WC103-456,30/04/2019,Adult Social Care,ADVANCE HEALTH CARE (UK) LTD,26/04/2019,783.84,73507-DOMICILIARY CARE,PHYSICAL SUPPORT,Third Party Payments,Revenue
Walsall Council,http://opendatacommunities.org/id/metropolitan-district-council/walsall,WC103-457,30/04/2019,Adult Social Care,ADVANCE HEALTH CARE (UK) LTD,01/04/2019,783.91,73507-DOMICILIARY CARE,PHYSICAL SUPPORT,Third Party Payments,Revenue
Walsall Council,http://opendatacommunities.org/id/metropolitan-district-council/walsall,WC103-458,30/04/2019,Adult Social Care,ADVANCE HEALTH CARE (UK) LTD,01/04/2019,787.36,73507-DOMICILIARY CARE,PHYSICAL SUPPORT,Third Party Payments,Revenue
Walsall Council,http://opendatacommunities.org/id/metropolitan-district-council/walsall,WC103-459,30/04/2019,Adult Social Care,ADVANCE HEALTH CARE (UK) LTD,01/04/2019,787.36,73507-DOMICILIARY CARE,PHYSICAL SUPPORT,Third Party Payments,Revenue
Walsall Council,http://opendatacommunities.org/id/metropolitan-district-council/walsall,WC103-460,30/04/2019,Adult Social Care,ADVANCE HEALTH CARE (UK) LTD,01/04/2019,787.36,73507-DOMICILIARY CARE,PHYSICAL SUPPORT,Third Party Payments,Revenue
Walsall Council,http://opendatacommunities.org/id/metropolitan-district-council/walsall,WC103-461,30/04/2019,Adult Social Care,ADVANCE HEALTH CARE (UK) LTD,26/04/2019,787.36,73507-DOMICILIARY CARE,PHYSICAL SUPPORT,Third Party Payments,Revenue
Walsall Council,http://opendatacommunities.org/id/metropolitan-district-council/walsall,WC103-462,30/04/2019,Adult Social Care,ADVANCE HEALTH CARE (UK) LTD,01/04/2019,787.39,73507-DOMICILIARY CARE,PHYSICAL SUPPORT,Third Party Payments,Revenue
Walsall Council,http://opendatacommunities.org/id/metropolitan-district-council/walsall,WC103-463,30/04/2019,Adult Social Care,ADVANCE HEALTH CARE (UK) LTD,26/04/2019,790.88,73507-DOMICILIARY CARE,PHYSICAL SUPPORT,Third Party Payments,Revenue
Walsall Council,http://opendatacommunities.org/id/metropolitan-district-council/walsall,WC103-464,30/04/2019,Adult Social Care,ADVANCE HEALTH CARE (UK) LTD,26/04/2019,802.31,73507-DOMICILIARY CARE,PHYSICAL SUPPORT,Third Party Payments,Revenue
Walsall Council,http://opendatacommunities.org/id/metropolitan-district-council/walsall,WC103-465,30/04/2019,Adult Social Care,ADVANCE HEALTH CARE (UK) LTD,01/04/2019,810.50,73507-DOMICILIARY CARE,SUPPORT WITH MEMORY & COGNITION,Third Party Payments,Revenue
Walsall Council,http://opendatacommunities.org/id/metropolitan-district-council/walsall,WC103-466,30/04/2019,Adult Social Care,ADVANCE HEALTH CARE (UK) LTD,01/04/2019,812.83,73507-DOMICILIARY CARE,PHYSICAL SUPPORT,Third Party Payments,Revenue
Walsall Council,http://opendatacommunities.org/id/metropolitan-district-council/walsall,WC103-467,30/04/2019,Adult Social Care,ADVANCE HEALTH CARE (UK) LTD,26/04/2019,825.68,73507-DOMICILIARY CARE,SUPPORT WITH MEMORY & COGNITION,Third Party Payments,Revenue
Walsall Council,http://opendatacommunities.org/id/metropolitan-district-council/walsall,WC103-468,30/04/2019,Adult Social Care,ADVANCE HEALTH CARE (UK) LTD,26/04/2019,875.14,73507-DOMICILIARY CARE,PHYSICAL SUPPORT,Third Party Payments,Revenue
Walsall Council,http://opendatacommunities.org/id/metropolitan-district-council/walsall,WC103-469,30/04/2019,Adult Social Care,ADVANCE HEALTH CARE (UK) LTD,26/04/2019,899.40,73507-DOMICILIARY CARE,PHYSICAL SUPPORT,Third Party Payments,Revenue
Walsall Council,http://opendatacommunities.org/id/metropolitan-district-council/walsall,WC103-470,30/04/2019,Adult Social Care,ADVANCE HEALTH CARE (UK) LTD,01/04/2019,936.84,73507-DOMICILIARY CARE,PHYSICAL SUPPORT,Third Party Payments,Revenue
Walsall Council,http://opendatacommunities.org/id/metropolitan-district-council/walsall,WC103-471,30/04/2019,Adult Social Care,ADVANCE HEALTH CARE (UK) LTD,26/04/2019,987.64,73507-DOMICILIARY CARE,PHYSICAL SUPPORT,Third Party Payments,Revenue
Walsall Council,http://opendatacommunities.org/id/metropolitan-district-council/walsall,WC103-472,30/04/2019,Adult Social Care,ADVANCE HEALTH CARE (UK) LTD,01/04/2019,"1,005.28",73507-DOMICILIARY CARE,PHYSICAL SUPPORT,Third Party Payments,Revenue
Walsall Council,http://opendatacommunities.org/id/metropolitan-district-council/walsall,WC103-473,30/04/2019,Adult Social Care,ADVANCE HEALTH CARE (UK) LTD,01/04/2019,"1,008.48",73507-DOMICILIARY CARE,PHYSICAL SUPPORT,Third Party Payments,Revenue
Walsall Council,http://opendatacommunities.org/id/metropolitan-district-council/walsall,WC103-474,30/04/2019,Adult Social Care,ADVANCE HEALTH CARE (UK) LTD,26/04/2019,"1,082.58",73507-DOMICILIARY CARE,PHYSICAL SUPPORT,Third Party Payments,Revenue
Walsall Council,http://opendatacommunities.org/id/metropolitan-district-council/walsall,WC103-475,30/04/2019,Adult Social Care,ADVANCE HEALTH CARE (UK) LTD,01/04/2019,"1,163.15",73507-DOMICILIARY CARE,PHYSICAL SUPPORT,Third Party Payments,Revenue
Walsall Council,http://opendatacommunities.org/id/metropolitan-district-council/walsall,WC103-476,30/04/2019,Adult Social Care,ADVANCE HEALTH CARE (UK) LTD,26/04/2019,"1,167.10",73507-DOMICILIARY CARE,PHYSICAL SUPPORT,Third Party Payments,Revenue
Walsall Council,http://opendatacommunities.org/id/metropolitan-district-council/walsall,WC103-477,30/04/2019,Adult Social Care,ADVANCE HEALTH CARE (UK) LTD,26/04/2019,"1,167.33",73507-DOMICILIARY CARE,PHYSICAL SUPPORT,Third Party Payments,Revenue
Walsall Council,http://opendatacommunities.org/id/metropolitan-district-council/walsall,WC103-478,30/04/2019,Adult Social Care,ADVANCE HEALTH CARE (UK) LTD,01/04/2019,"1,177.53",73507-DOMICILIARY CARE,SOCIAL SUPPORT,Third Party Payments,Revenue
Walsall Council,http://opendatacommunities.org/id/metropolitan-district-council/walsall,WC103-479,30/04/2019,Adult Social Care,ADVANCE HEALTH CARE (UK) LTD,01/04/2019,"1,177.54",73507-DOMICILIARY CARE,PHYSICAL SUPPORT,Third Party Payments,Revenue
Walsall Council,http://opendatacommunities.org/id/metropolitan-district-council/walsall,WC103-480,30/04/2019,Adult Social Care,ADVANCE HEALTH CARE (UK) LTD,01/04/2019,"1,191.49",73507-DOMICILIARY CARE,PHYSICAL SUPPORT,Third Party Payments,Revenue
Walsall Council,http://opendatacommunities.org/id/metropolitan-district-council/walsall,WC103-481,30/04/2019,Adult Social Care,ADVANCE HEALTH CARE (UK) LTD,26/04/2019,"1,202.06",73507-DOMICILIARY CARE,PHYSICAL SUPPORT,Third Party Payments,Revenue
Walsall Council,http://opendatacommunities.org/id/metropolitan-district-council/walsall,WC103-482,30/04/2019,Adult Social Care,ADVANCE HEALTH CARE (UK) LTD,26/04/2019,"1,212.71",73507-DOMICILIARY CARE,SOCIAL SUPPORT,Third Party Payments,Revenue
Walsall Council,http://opendatacommunities.org/id/metropolitan-district-council/walsall,WC103-483,30/04/2019,Adult Social Care,ADVANCE HEALTH CARE (UK) LTD,26/04/2019,"1,222.81",73507-DOMICILIARY CARE,PHYSICAL SUPPORT,Third Party Payments,Revenue
Walsall Council,http://opendatacommunities.org/id/metropolitan-district-council/walsall,WC103-484,30/04/2019,Adult Social Care,ADVANCE HEALTH CARE (UK) LTD,26/04/2019,"1,232.55",73507-DOMICILIARY CARE,PHYSICAL SUPPORT,Third Party Payments,Revenue
Walsall Council,http://opendatacommunities.org/id/metropolitan-district-council/walsall,WC103-485,30/04/2019,Adult Social Care,ADVANCE HEALTH CARE (UK) LTD,01/04/2019,"1,266.48",73507-DOMICILIARY CARE,PHYSICAL SUPPORT,Third Party Payments,Revenue
Walsall Council,http://opendatacommunities.org/id/metropolitan-district-council/walsall,WC103-486,30/04/2019,Adult Social Care,ADVANCE HEALTH CARE (UK) LTD,01/04/2019,"1,293.52",73507-DOMICILIARY CARE,PHYSICAL SUPPORT,Third Party Payments,Revenue
Walsall Council,http://opendatacommunities.org/id/metropolitan-district-council/walsall,WC103-487,30/04/2019,Adult Social Care,ADVANCE HEALTH CARE (UK) LTD,26/04/2019,"1,317.21",73507-DOMICILIARY CARE,PHYSICAL SUPPORT,Third Party Payments,Revenue
Walsall Council,http://opendatacommunities.org/id/metropolitan-district-council/walsall,WC103-488,30/04/2019,Adult Social Care,ADVANCE HEALTH CARE (UK) LTD,01/04/2019,"1,412.70",73507-DOMICILIARY CARE,PHYSICAL SUPPORT,Third Party Payments,Revenue
Walsall Council,http://opendatacommunities.org/id/metropolitan-district-council/walsall,WC103-489,30/04/2019,Adult Social Care,ADVANCE HEALTH CARE (UK) LTD,26/04/2019,"1,465.34",73507-DOMICILIARY CARE,PHYSICAL SUPPORT,Third Party Payments,Revenue
Walsall Council,http://opendatacommunities.org/id/metropolitan-district-council/walsall,WC103-490,30/04/2019,Adult Social Care,ADVANCE HEALTH CARE (UK) LTD,26/04/2019,"1,498.58",73507-DOMICILIARY CARE,PHYSICAL SUPPORT,Third Party Payments,Revenue
Walsall Council,http://opendatacommunities.org/id/metropolitan-district-council/walsall,WC103-491,30/04/2019,Adult Social Care,ADVANCE HEALTH CARE (UK) LTD,01/04/2019,"1,532.64",73507-DOMICILIARY CARE,PHYSICAL SUPPORT,Third Party Payments,Revenue
Walsall Council,http://opendatacommunities.org/id/metropolitan-district-council/walsall,WC103-492,30/04/2019,Adult Social Care,ADVANCE HEALTH CARE (UK) LTD,01/04/2019,"1,546.68",73507-DOMICILIARY CARE,PHYSICAL SUPPORT,Third Party Payments,Revenue
Walsall Council,http://opendatacommunities.org/id/metropolitan-district-council/walsall,WC103-493,30/04/2019,Adult Social Care,ADVANCE HEALTH CARE (UK) LTD,26/04/2019,"1,567.08",73507-DOMICILIARY CARE,PHYSICAL SUPPORT,Third Party Payments,Revenue
Walsall Council,http://opendatacommunities.org/id/metropolitan-district-council/walsall,WC103-494,30/04/2019,Adult Social Care,ADVANCE HEALTH CARE (UK) LTD,01/04/2019,"1,570.63",73507-DOMICILIARY CARE,PHYSICAL SUPPORT,Third Party Payments,Revenue
Walsall Council,http://opendatacommunities.org/id/metropolitan-district-council/walsall,WC103-495,30/04/2019,Adult Social Care,ADVANCE HEALTH CARE (UK) LTD,01/04/2019,"1,581.78",73507-DOMICILIARY CARE,PHYSICAL SUPPORT,Third Party Payments,Revenue
Walsall Council,http://opendatacommunities.org/id/metropolitan-district-council/walsall,WC103-496,30/04/2019,Adult Social Care,ADVANCE HEALTH CARE (UK) LTD,26/04/2019,"1,585.33",73507-DOMICILIARY CARE,PHYSICAL SUPPORT,Third Party Payments,Revenue
Walsall Council,http://opendatacommunities.org/id/metropolitan-district-council/walsall,WC103-497,30/04/2019,Adult Social Care,ADVANCE HEALTH CARE (UK) LTD,26/04/2019,"1,588.78",73507-DOMICILIARY CARE,PHYSICAL SUPPORT,Third Party Payments,Revenue
Walsall Council,http://opendatacommunities.org/id/metropolitan-district-council/walsall,WC103-498,30/04/2019,Adult Social Care,ADVANCE HEALTH CARE (UK) LTD,26/04/2019,"1,609.62",73507-DOMICILIARY CARE,PHYSICAL SUPPORT,Third Party Payments,Revenue
Walsall Council,http://opendatacommunities.org/id/metropolitan-district-council/walsall,WC103-499,30/04/2019,Adult Social Care,ADVANCE HEALTH CARE (UK) LTD,26/04/2019,"1,616.46",73507-DOMICILIARY CARE,PHYSICAL SUPPORT,Third Party Payments,Revenue
Walsall Council,http://opendatacommunities.org/id/metropolitan-district-council/walsall,WC103-500,30/04/2019,Adult Social Care,ADVANCE HEALTH CARE (UK) LTD,01/04/2019,"1,624.20",73507-DOMICILIARY CARE,PHYSICAL SUPPORT,Third Party Payments,Revenue
Walsall Council,http://opendatacommunities.org/id/metropolitan-district-council/walsall,WC103-501,30/04/2019,Adult Social Care,ADVANCE HEALTH CARE (UK) LTD,26/04/2019,"1,631.02",73507-DOMICILIARY CARE,PHYSICAL SUPPORT,Third Party Payments,Revenue
Walsall Council,http://opendatacommunities.org/id/metropolitan-district-council/walsall,WC103-502,30/04/2019,Adult Social Care,ADVANCE HEALTH CARE (UK) LTD,01/04/2019,"1,659.06",73507-DOMICILIARY CARE,PHYSICAL SUPPORT,Third Party Payments,Revenue
Walsall Council,http://opendatacommunities.org/id/metropolitan-district-council/walsall,WC103-503,30/04/2019,Adult Social Care,ADVANCE HEALTH CARE (UK) LTD,26/04/2019,"1,659.07",73507-DOMICILIARY CARE,PHYSICAL SUPPORT,Third Party Payments,Revenue
Walsall Council,http://opendatacommunities.org/id/metropolitan-district-council/walsall,WC103-504,30/04/2019,Adult Social Care,ADVANCE HEALTH CARE (UK) LTD,26/04/2019,"1,677.07",73507-DOMICILIARY CARE,PHYSICAL SUPPORT,Third Party Payments,Revenue
Walsall Council,http://opendatacommunities.org/id/metropolitan-district-council/walsall,WC103-505,30/04/2019,Adult Social Care,ADVANCE HEALTH CARE (UK) LTD,01/04/2019,"1,702.28",73507-DOMICILIARY CARE,PHYSICAL SUPPORT,Third Party Payments,Revenue
Walsall Council,http://opendatacommunities.org/id/metropolitan-district-council/walsall,WC103-506,30/04/2019,Adult Social Care,ADVANCE HEALTH CARE (UK) LTD,01/04/2019,"1,714.71",73507-DOMICILIARY CARE,PHYSICAL SUPPORT,Third Party Payments,Revenue
Walsall Council,http://opendatacommunities.org/id/metropolitan-district-council/walsall,WC103-507,30/04/2019,Adult Social Care,ADVANCE HEALTH CARE (UK) LTD,26/04/2019,"1,721.02",73507-DOMICILIARY CARE,PHYSICAL SUPPORT,Third Party Payments,Revenue
Walsall Council,http://opendatacommunities.org/id/metropolitan-district-council/walsall,WC103-508,30/04/2019,Adult Social Care,ADVANCE HEALTH CARE (UK) LTD,01/04/2019,"1,729.21",73507-DOMICILIARY CARE,PHYSICAL SUPPORT,Third Party Payments,Revenue
Walsall Council,http://opendatacommunities.org/id/metropolitan-district-council/walsall,WC103-509,30/04/2019,Adult Social Care,ADVANCE HEALTH CARE (UK) LTD,01/04/2019,"1,736.16",73507-DOMICILIARY CARE,PHYSICAL SUPPORT,Third Party Payments,Revenue
Walsall Council,http://opendatacommunities.org/id/metropolitan-district-council/walsall,WC103-510,30/04/2019,Adult Social Care,ADVANCE HEALTH CARE (UK) LTD,26/04/2019,"1,750.28",73507-DOMICILIARY CARE,PHYSICAL SUPPORT,Third Party Payments,Revenue
Walsall Council,http://opendatacommunities.org/id/metropolitan-district-council/walsall,WC103-511,30/04/2019,Adult Social Care,ADVANCE HEALTH CARE (UK) LTD,26/04/2019,"1,753.60",73507-DOMICILIARY CARE,PHYSICAL SUPPORT,Third Party Payments,Revenue
Walsall Council,http://opendatacommunities.org/id/metropolitan-district-council/walsall,WC103-512,30/04/2019,Adult Social Care,ADVANCE HEALTH CARE (UK) LTD,26/04/2019,"1,753.93",73507-DOMICILIARY CARE,PHYSICAL SUPPORT,Third Party Payments,Revenue
Walsall Council,http://opendatacommunities.org/id/metropolitan-district-council/walsall,WC103-513,30/04/2019,Adult Social Care,ADVANCE HEALTH CARE (UK) LTD,26/04/2019,"1,756.96",73507-DOMICILIARY CARE,PHYSICAL SUPPORT,Third Party Payments,Revenue
Walsall Council,http://opendatacommunities.org/id/metropolitan-district-council/walsall,WC103-514,30/04/2019,Adult Social Care,ADVANCE HEALTH CARE (UK) LTD,01/04/2019,"1,757.06",73507-DOMICILIARY CARE,PHYSICAL SUPPORT,Third Party Payments,Revenue
Walsall Council,http://opendatacommunities.org/id/metropolitan-district-council/walsall,WC103-515,30/04/2019,Adult Social Care,ADVANCE HEALTH CARE (UK) LTD,01/04/2019,"1,757.07",73507-DOMICILIARY CARE,PHYSICAL SUPPORT,Third Party Payments,Revenue
Walsall Council,http://opendatacommunities.org/id/metropolitan-district-council/walsall,WC103-516,30/04/2019,Adult Social Care,ADVANCE HEALTH CARE (UK) LTD,01/04/2019,"1,757.32",73507-DOMICILIARY CARE,PHYSICAL SUPPORT,Third Party Payments,Revenue
Walsall Council,http://opendatacommunities.org/id/metropolitan-district-council/walsall,WC103-517,30/04/2019,Adult Social Care,ADVANCE HEALTH CARE (UK) LTD,26/04/2019,"1,760.73",73507-DOMICILIARY CARE,PHYSICAL SUPPORT,Third Party Payments,Revenue
Walsall Council,http://opendatacommunities.org/id/metropolitan-district-council/walsall,WC103-518,30/04/2019,Adult Social Care,ADVANCE HEALTH CARE (UK) LTD,26/04/2019,"1,774.79",73507-DOMICILIARY CARE,PHYSICAL SUPPORT,Third Party Payments,Revenue
Walsall Council,http://opendatacommunities.org/id/metropolitan-district-council/walsall,WC103-519,30/04/2019,Adult Social Care,ADVANCE HEALTH CARE (UK) LTD,26/04/2019,"1,781.80",73507-DOMICILIARY CARE,PHYSICAL SUPPORT,Third Party Payments,Revenue
Walsall Council,http://opendatacommunities.org/id/metropolitan-district-council/walsall,WC103-520,30/04/2019,Adult Social Care,ADVANCE HEALTH CARE (UK) LTD,01/04/2019,"1,788.82",73507-DOMICILIARY CARE,PHYSICAL SUPPORT,Third Party Payments,Revenue
Walsall Council,http://opendatacommunities.org/id/metropolitan-district-council/walsall,WC103-521,30/04/2019,Adult Social Care,ADVANCE HEALTH CARE (UK) LTD,01/04/2019,"1,788.87",73507-DOMICILIARY CARE,PHYSICAL SUPPORT,Third Party Payments,Revenue
Walsall Council,http://opendatacommunities.org/id/metropolitan-district-council/walsall,WC103-522,30/04/2019,Adult Social Care,ADVANCE HEALTH CARE (UK) LTD,26/04/2019,"1,802.94",73507-DOMICILIARY CARE,PHYSICAL SUPPORT,Third Party Payments,Revenue
Walsall Council,http://opendatacommunities.org/id/metropolitan-district-council/walsall,WC103-523,30/04/2019,Adult Social Care,ADVANCE HEALTH CARE (UK) LTD,01/04/2019,"1,806.41",73507-DOMICILIARY CARE,PHYSICAL SUPPORT,Third Party Payments,Revenue
Walsall Council,http://opendatacommunities.org/id/metropolitan-district-council/walsall,WC103-524,30/04/2019,Adult Social Care,ADVANCE HEALTH CARE (UK) LTD,26/04/2019,"1,816.97",73507-DOMICILIARY CARE,PHYSICAL SUPPORT,Third Party Payments,Revenue
Walsall Council,http://opendatacommunities.org/id/metropolitan-district-council/walsall,WC103-525,30/04/2019,Adult Social Care,ADVANCE HEALTH CARE (UK) LTD,01/04/2019,"1,820.40",73507-DOMICILIARY CARE,SOCIAL SUPPORT,Third Party Payments,Revenue
Walsall Council,http://opendatacommunities.org/id/metropolitan-district-council/walsall,WC103-526,30/04/2019,Adult Social Care,ADVANCE HEALTH CARE (UK) LTD,01/04/2019,"1,835.68",73507-DOMICILIARY CARE,PHYSICAL SUPPORT,Third Party Payments,Revenue
Walsall Council,http://opendatacommunities.org/id/metropolitan-district-council/walsall,WC103-527,30/04/2019,Adult Social Care,ADVANCE HEALTH CARE (UK) LTD,26/04/2019,"1,887.11",73507-DOMICILIARY CARE,PHYSICAL SUPPORT,Third Party Payments,Revenue
Walsall Council,http://opendatacommunities.org/id/metropolitan-district-council/walsall,WC103-528,30/04/2019,Adult Social Care,ADVANCE HEALTH CARE (UK) LTD,01/04/2019,"1,925.71",73507-DOMICILIARY CARE,PHYSICAL SUPPORT,Third Party Payments,Revenue
Walsall Council,http://opendatacommunities.org/id/metropolitan-district-council/walsall,WC103-529,30/04/2019,Adult Social Care,ADVANCE HEALTH CARE (UK) LTD,01/04/2019,"1,985.65",73507-DOMICILIARY CARE,PHYSICAL SUPPORT,Third Party Payments,Revenue
Walsall Council,http://opendatacommunities.org/id/metropolitan-district-council/walsall,WC103-530,30/04/2019,Adult Social Care,ADVANCE HEALTH CARE (UK) LTD,01/04/2019,"2,118.89",73507-DOMICILIARY CARE,PHYSICAL SUPPORT,Third Party Payments,Revenue
Walsall Council,http://opendatacommunities.org/id/metropolitan-district-council/walsall,WC103-531,30/04/2019,Adult Social Care,ADVANCE HEALTH CARE (UK) LTD,26/04/2019,"2,147.14",73507-DOMICILIARY CARE,PHYSICAL SUPPORT,Third Party Payments,Revenue
Walsall Council,http://opendatacommunities.org/id/metropolitan-district-council/walsall,WC103-532,30/04/2019,Adult Social Care,ADVANCE HEALTH CARE (UK) LTD,26/04/2019,"2,147.64",73507-DOMICILIARY CARE,PHYSICAL SUPPORT,Third Party Payments,Revenue
Walsall Council,http://opendatacommunities.org/id/metropolitan-district-council/walsall,WC103-533,30/04/2019,Adult Social Care,ADVANCE HEALTH CARE (UK) LTD,01/04/2019,"2,148.23",73507-DOMICILIARY CARE,PHYSICAL SUPPORT,Third Party Payments,Revenue
Walsall Council,http://opendatacommunities.org/id/metropolitan-district-council/walsall,WC103-534,30/04/2019,Adult Social Care,ADVANCE HEALTH CARE (UK) LTD,01/04/2019,"2,150.71",73507-DOMICILIARY CARE,PHYSICAL SUPPORT,Third Party Payments,Revenue
Walsall Council,http://opendatacommunities.org/id/metropolitan-district-council/walsall,WC103-535,30/04/2019,Adult Social Care,ADVANCE HEALTH CARE (UK) LTD,01/04/2019,"2,151.16",73507-DOMICILIARY CARE,PHYSICAL SUPPORT,Third Party Payments,Revenue
Walsall Council,http://opendatacommunities.org/id/metropolitan-district-council/walsall,WC103-536,30/04/2019,Adult Social Care,ADVANCE HEALTH CARE (UK) LTD,26/04/2019,"2,151.65",73507-DOMICILIARY CARE,PHYSICAL SUPPORT,Third Party Payments,Revenue
Walsall Council,http://opendatacommunities.org/id/metropolitan-district-council/walsall,WC103-537,30/04/2019,Adult Social Care,ADVANCE HEALTH CARE (UK) LTD,01/04/2019,"2,333.31",73507-DOMICILIARY CARE,PHYSICAL SUPPORT,Third Party Payments,Revenue
Walsall Council,http://opendatacommunities.org/id/metropolitan-district-council/walsall,WC103-538,30/04/2019,Adult Social Care,ADVANCE HEALTH CARE (UK) LTD,01/04/2019,"2,343.10",73507-DOMICILIARY CARE,PHYSICAL SUPPORT,Third Party Payments,Revenue
Walsall Council,http://opendatacommunities.org/id/metropolitan-district-council/walsall,WC103-539,30/04/2019,Adult Social Care,ADVANCE HEALTH CARE (UK) LTD,26/04/2019,"2,480.00",73507-DOMICILIARY CARE,PHYSICAL SUPPORT,Third Party Payments,Revenue
Walsall Council,http://opendatacommunities.org/id/metropolitan-district-council/walsall,WC103-540,30/04/2019,Adult Social Care,ADVANCE HEALTH CARE (UK) LTD,26/04/2019,"2,561.59",73507-DOMICILIARY CARE,PHYSICAL SUPPORT,Third Party Payments,Revenue
Walsall Council,http://opendatacommunities.org/id/metropolitan-district-council/walsall,WC103-541,30/04/2019,Adult Social Care,ADVANCE HEALTH CARE (UK) LTD,26/04/2019,"3,127.63",73507-DOMICILIARY CARE,SOCIAL SUPPORT,Third Party Payments,Revenue
Walsall Council,http://opendatacommunities.org/id/metropolitan-district-council/walsall,WC103-542,30/04/2019,Adult Social Care,ADVANCE HEALTH CARE (UK) LTD,01/04/2019,"3,134.83",73507-DOMICILIARY CARE,SOCIAL SUPPORT,Third Party Payments,Revenue
Walsall Council,http://opendatacommunities.org/id/metropolitan-district-council/walsall,WC103-543,30/04/2019,Adult Social Care,ADVANCE HEALTH CARE (UK) LTD,01/04/2019,"3,710.15",73507-DOMICILIARY CARE,PHYSICAL SUPPORT,Third Party Payments,Revenue
Walsall Council,http://opendatacommunities.org/id/metropolitan-district-council/walsall,WC103-544,30/04/2019,Adult Social Care,ADVANCE HEALTH CARE (UK) LTD,01/04/2019,"4,720.80",73507-DOMICILIARY CARE,PHYSICAL SUPPORT,Third Party Payments,Revenue
Walsall Council,http://opendatacommunities.org/id/metropolitan-district-council/walsall,WC103-545,30/04/2019,Adult Social Care,ADVANCE HEALTH CARE (UK) LTD,26/04/2019,"4,720.80",73507-DOMICILIARY CARE,PHYSICAL SUPPORT,Third Party Payments,Revenue
Walsall Council,http://opendatacommunities.org/id/metropolitan-district-council/walsall,WC103-546,30/04/2019,Childrens,ADVENTURELAND DAY NURSERY,09/04/2019,550.20,66505-OTHER-GRANTS TO OTHER ORGS,EARLY YEARS - 2 YR OLDS,Third Party Payments,Revenue
Walsall Council,http://opendatacommunities.org/id/metropolitan-district-council/walsall,WC103-547,30/04/2019,Childrens,ADVENTURELAND DAY NURSERY,01/04/2019,"17,370.60",66505-OTHER-GRANTS TO OTHER ORGS,EARLY YEARS - 2 YR OLDS,Third Party Payments,Revenue
Walsall Council,http://opendatacommunities.org/id/metropolitan-district-council/walsall,WC103-548,30/04/2019,Childrens,ADVENTURELAND DAY NURSERY,01/04/2019,"18,449.44",66505-OTHER-GRANTS TO OTHER ORGS,EARLY YEARS - 3 YR OLDS,Third Party Payments,Revenue
Walsall Council,http://opendatacommunities.org/id/metropolitan-district-council/walsall,WC103-549,30/04/2019,Economy & Environment,AEBI SCHMIDT UK LIMITED,01/04/2019,319.56,60500-GENERAL MATERIALS,FLEET,Supplies & Services,Revenue
Walsall Council,http://opendatacommunities.org/id/metropolitan-district-council/walsall,WC103-550,30/04/2019,Economy & Environment,AEBI SCHMIDT UK LIMITED,16/04/2019,393.39,60500-GENERAL MATERIALS,FLEET,Supplies & Services,Revenue
Walsall Council,http://opendatacommunities.org/id/metropolitan-district-council/walsall,WC103-551,30/04/2019,Economy & Environment,AEBI SCHMIDT UK LIMITED,10/04/2019,406.78,60500-GENERAL MATERIALS,FLEET,Supplies & Services,Revenue
Walsall Council,http://opendatacommunities.org/id/metropolitan-district-council/walsall,WC103-552,30/04/2019,Economy & Environment,AEBI SCHMIDT UK LIMITED,10/04/2019,683.82,60500-GENERAL MATERIALS,FLEET,Supplies & Services,Revenue
Walsall Council,http://opendatacommunities.org/id/metropolitan-district-council/walsall,WC103-553,30/04/2019,Economy & Environment,AEBI SCHMIDT UK LIMITED,10/04/2019,749.25,73025-PROFESSIONAL SERVICES-PRIV CONTRACTOR & OTHER AGENCIES,FLEET,Third Party Payments,Revenue
Walsall Council,http://opendatacommunities.org/id/metropolitan-district-council/walsall,WC103-554,30/04/2019,Adult Social Care,AGINCARE UK LTD,29/04/2019,"2,318.25",73507-DOMICILIARY CARE,PHYSICAL SUPPORT,Third Party Payments,Revenue
Walsall Council,http://opendatacommunities.org/id/metropolitan-district-council/walsall,WC103-555,30/04/2019,Adult Social Care,AGINCARE UK LTD,29/04/2019,"3,259.60",73507-DOMICILIARY CARE,PHYSICAL SUPPORT,Third Party Payments,Revenue
Walsall Council,http://opendatacommunities.org/id/metropolitan-district-council/walsall,WC103-556,30/04/2019,Economy & Environment,AGROVISTA UK LTD,09/04/2019,"1,498.00",60500-GENERAL MATERIALS,GROUNDS,Supplies & Services,Revenue
Walsall Council,http://opendatacommunities.org/id/metropolitan-district-council/walsall,WC103-557,30/04/2019,Economy & Environment,AGROVISTA UK LTD,01/04/2019,"2,048.00",60500-GENERAL MATERIALS,GROUNDS,Supplies & Services,Revenue
Walsall Council,http://opendatacommunities.org/id/metropolitan-district-council/walsall,WC103-558,30/04/2019,Adult Social Care,REDACTED,09/04/2019,"2,092.80",73506-DIRECT PAYMENT,LEARNING DISABILITY SUPPORT,Third Party Payments,Revenue
Walsall Council,http://opendatacommunities.org/id/metropolitan-district-council/walsall,WC103-559,30/04/2019,Resources and Transformation,AIREY CONSULTANCY SERVICES LTD,16/04/2019,650.00,63102-CONSULTANTS FEES - CORPORATE,REVENUES,Supplies & Services,Revenue
Walsall Council,http://opendatacommunities.org/id/metropolitan-district-council/walsall,WC103-560,30/04/2019,Adult Social Care,REDACTED,09/04/2019,"1,277.00",73506-DIRECT PAYMENT,PHYSICAL SUPPORT,Third Party Payments,Revenue
Walsall Council,http://opendatacommunities.org/id/metropolitan-district-council/walsall,WC103-561,30/04/2019,Childrens,REDACTED,16/04/2019,"1,125.35",63000-PROFESSIONAL FEES AND SERVICES,EARLY YEARS AND DISABILITIES SERVICE,Supplies & Services,Revenue
Walsall Council,http://opendatacommunities.org/id/metropolitan-district-council/walsall,WC103-562,30/04/2019,Adult Social Care,REDACTED,09/04/2019,798.77,73506-DIRECT PAYMENT,PHYSICAL SUPPORT,Third Party Payments,Revenue
Walsall Council,http://opendatacommunities.org/id/metropolitan-district-council/walsall,WC103-563,30/04/2019,Childrens,ALBRIGHTON CARE LTD,18/04/2019,"6,600.00",74036-EXTERNAL RESIDENTIAL CARE-OTH AGENCY PROVISION,INDEPENDENT RESIDENTIAL HOMES,Third Party Payments,Revenue
Walsall Council,http://opendatacommunities.org/id/metropolitan-district-council/walsall,WC103-564,30/04/2019,Childrens,ALBRIGHTON CARE LTD,23/04/2019,"9,980.00",74036-EXTERNAL RESIDENTIAL CARE-OTH AGENCY PROVISION,INDEPENDENT RESIDENTIAL HOMES,Third Party Payments,Revenue
Walsall Council,http://opendatacommunities.org/id/metropolitan-district-council/walsall,WC103-565,30/04/2019,Adult Social Care,ALDERGROVE MANOR LTD,02/04/2019,"1,876.52",73501-RESIDENTIAL EMI,MENTAL HEALTH SUPPORT,Third Party Payments,Revenue
Walsall Council,http://opendatacommunities.org/id/metropolitan-district-council/walsall,WC103-566,30/04/2019,Adult Social Care,ALDERGROVE MANOR LTD,29/04/2019,"1,876.52",73501-RESIDENTIAL EMI,MENTAL HEALTH SUPPORT,Third Party Payments,Revenue
Walsall Council,http://opendatacommunities.org/id/metropolitan-district-council/walsall,WC103-567,30/04/2019,Adult Social Care,ALDERGROVE MANOR LTD,02/04/2019,"2,036.52",73501-RESIDENTIAL EMI,PHYSICAL SUPPORT,Third Party Payments,Revenue
Walsall Council,http://opendatacommunities.org/id/metropolitan-district-council/walsall,WC103-568,30/04/2019,Adult Social Care,ALDERGROVE MANOR LTD,29/04/2019,"2,036.52",73501-RESIDENTIAL EMI,PHYSICAL SUPPORT,Third Party Payments,Revenue
Walsall Council,http://opendatacommunities.org/id/metropolitan-district-council/walsall,WC103-569,30/04/2019,Adult Social Care,ALDERGROVE MANOR LTD,02/04/2019,"2,039.68",73502-NURSING,PHYSICAL SUPPORT,Third Party Payments,Revenue
Walsall Council,http://opendatacommunities.org/id/metropolitan-district-council/walsall,WC103-570,30/04/2019,Adult Social Care,ALDERGROVE MANOR LTD,29/04/2019,"2,039.68",73502-NURSING,PHYSICAL SUPPORT,Third Party Payments,Revenue
Walsall Council,http://opendatacommunities.org/id/metropolitan-district-council/walsall,WC103-571,30/04/2019,Childrens,ALDRIDGE & BARONS LIMITED,01/04/2019,"4,618.00",52000-WITH DRIVER-HIRE OF VEHICLES,HOME TO SCHOOL TRANSPORT,Transport,Revenue
Walsall Council,http://opendatacommunities.org/id/metropolitan-district-council/walsall,WC103-572,30/04/2019,Childrens,ALDRIDGE & BARONS LIMITED,01/04/2019,"12,740.28",52000-WITH DRIVER-HIRE OF VEHICLES,HOME TO SCHOOL TRANSPORT,Transport,Revenue
Walsall Council,http://opendatacommunities.org/id/metropolitan-district-council/walsall,WC103-573,30/04/2019,Childrens,ALDRIDGE & BARONS LIMITED,01/04/2019,"18,028.92",52000-WITH DRIVER-HIRE OF VEHICLES,HOME TO SCHOOL TRANSPORT,Transport,Revenue
Walsall Council,http://opendatacommunities.org/id/metropolitan-district-council/walsall,WC103-574,30/04/2019,Adult Social Care,REDACTED,09/04/2019,"1,348.80",73506-DIRECT PAYMENT,PHYSICAL SUPPORT,Third Party Payments,Revenue
Walsall Council,http://opendatacommunities.org/id/metropolitan-district-council/walsall,WC103-575,30/04/2019,Adult Social Care,ALEXANDRA HOUSE CARE SERVICES LTD T/A STONEBRIDGE NURSING HOME,02/04/2019,"7,117.44",73502-NURSING,LEARNING DISABILITY SUPPORT,Third Party Payments,Revenue
Walsall Council,http://opendatacommunities.org/id/metropolitan-district-council/walsall,WC103-576,30/04/2019,Adult Social Care,ALEXANDRA HOUSE CARE SERVICES LTD T/A STONEBRIDGE NURSING HOME,29/04/2019,"7,117.44",73502-NURSING,LEARNING DISABILITY SUPPORT,Third Party Payments,Revenue
Walsall Council,http://opendatacommunities.org/id/metropolitan-district-council/walsall,WC103-577,30/04/2019,Adult Social Care,REDACTED,09/04/2019,"1,797.74",73506-DIRECT PAYMENT,PHYSICAL SUPPORT,Third Party Payments,Revenue
Walsall Council,http://opendatacommunities.org/id/metropolitan-district-council/walsall,WC103-578,30/04/2019,Childrens,REDACTED,08/04/2019,660.80,73506-DIRECT PAYMENT,FAMILY SUPPORT - DIRECT PAYMENTS,Third Party Payments,Revenue
Walsall Council,http://opendatacommunities.org/id/metropolitan-district-council/walsall,WC103-579,30/04/2019,Adult Social Care,REDACTED,09/04/2019,621.24,73506-DIRECT PAYMENT,PHYSICAL SUPPORT,Third Party Payments,Revenue
Walsall Council,http://opendatacommunities.org/id/metropolitan-district-council/walsall,WC103-580,30/04/2019,Adult Social Care,REDACTED,09/04/2019,"2,152.80",73506-DIRECT PAYMENT,LEARNING DISABILITY SUPPORT,Third Party Payments,Revenue
Walsall Council,http://opendatacommunities.org/id/metropolitan-district-council/walsall,WC103-581,30/04/2019,Adult Social Care,REDACTED,09/04/2019,"5,164.08",73506-DIRECT PAYMENT,LEARNING DISABILITY SUPPORT,Third Party Payments,Revenue
Walsall Council,http://opendatacommunities.org/id/metropolitan-district-council/walsall,WC103-582,30/04/2019,Adult Social Care,REDACTED,08/04/2019,"1,348.13",73510-SHARED LIVES,LEARNING DISABILITY SUPPORT,Third Party Payments,Revenue
Walsall Council,http://opendatacommunities.org/id/metropolitan-district-council/walsall,WC103-583,30/04/2019,Economy & Environment,ALISON GEEVES TRAINING,30/04/2019,220.00,60500-GENERAL MATERIALS,INFRASTRUCTURE MAINTENANCE,Supplies & Services,Revenue
Walsall Council,http://opendatacommunities.org/id/metropolitan-district-council/walsall,WC103-584,30/04/2019,Adult Social Care,REDACTED,09/04/2019,"1,598.24",73506-DIRECT PAYMENT,SOCIAL SUPPORT,Third Party Payments,Revenue
Walsall Council,http://opendatacommunities.org/id/metropolitan-district-council/walsall,WC103-585,30/04/2019,Resources and Transformation,ALLIANCE DISPOSABLES LTD,23/04/2019,233.50,62523-EVENTS,MAYOR'S CIVIC AWARDS,Supplies & Services,Revenue
Walsall Council,http://opendatacommunities.org/id/metropolitan-district-council/walsall,WC103-586,30/04/2019,Adult Social Care,ALLIED PUBLICITY SERVICES (MANCHESTER) LIMITED T/A APS GROUP,10/04/2019,"1,418.99",63000-PROFESSIONAL FEES AND SERVICES,BLUE BADGES,Supplies & Services,Revenue
Walsall Council,http://opendatacommunities.org/id/metropolitan-district-council/walsall,WC103-587,30/04/2019,Resources and Transformation,ALLSORTS OFFICE SUPPLIES LTD,01/04/2019,852.80,60000-FURNITURE & EQUIPMENT,ICT INCOME,Supplies & Services,Revenue
Walsall Council,http://opendatacommunities.org/id/metropolitan-district-council/walsall,WC103-588,30/04/2019,Economy & Environment,ALLSORTS OFFICE SUPPLIES LTD,25/04/2019,925.00,60006-NEW-FURNITURE & EQUIPMENT,LEISURE - MANAGEMENT AND ADMIN,Supplies & Services,Revenue
Walsall Council,http://opendatacommunities.org/id/metropolitan-district-council/walsall,WC103-589,30/04/2019,Resources and Transformation,ALLSORTS OFFICE SUPPLIES LTD,01/04/2019,"1,338.60",60000-FURNITURE & EQUIPMENT,PROCESSING,Supplies & Services,Revenue
Walsall Council,http://opendatacommunities.org/id/metropolitan-district-council/walsall,WC103-590,30/04/2019,Economy & Environment,ALLSORTS OFFICE SUPPLIES LTD,01/04/2019,"7,911.00",60000-FURNITURE & EQUIPMENT,LEISURE - MANAGEMENT AND ADMIN,Supplies & Services,Revenue
Walsall Council,http://opendatacommunities.org/id/metropolitan-district-council/walsall,WC103-591,30/04/2019,Adult Social Care,ALMA COURT,02/04/2019,"5,705.56",73502-NURSING,PHYSICAL SUPPORT,Third Party Payments,Revenue
Walsall Council,http://opendatacommunities.org/id/metropolitan-district-council/walsall,WC103-592,30/04/2019,Childrens,ALMOZENE NURSERY & CHILDRENS CENTRE,02/04/2019,"2,340.00",66505-OTHER-GRANTS TO OTHER ORGS,EARLY YEARS - DEPRIVATION FUNDING,Third Party Payments,Revenue
Walsall Council,http://opendatacommunities.org/id/metropolitan-district-council/walsall,WC103-593,30/04/2019,Childrens,ALMOZENE NURSERY & CHILDRENS CENTRE,01/04/2019,"4,087.20",66505-OTHER-GRANTS TO OTHER ORGS,EARLY YEARS - 2 YR OLDS,Third Party Payments,Revenue
Walsall Council,http://opendatacommunities.org/id/metropolitan-district-council/walsall,WC103-594,30/04/2019,Childrens,ALMOZENE NURSERY & CHILDRENS CENTRE,01/04/2019,"10,179.00",66505-OTHER-GRANTS TO OTHER ORGS,EARLY YEARS - 3 YR OLDS,Third Party Payments,Revenue
Walsall Council,http://opendatacommunities.org/id/metropolitan-district-council/walsall,WC103-595,30/04/2019,Adult Social Care,ALPHA HEALTH CARE LTD,29/04/2019,"-18,250.00",73503-NURSING EMI,MENTAL HEALTH SUPPORT,Third Party Payments,Revenue
Walsall Council,http://opendatacommunities.org/id/metropolitan-district-council/walsall,WC103-596,30/04/2019,Adult Social Care,ALPHA HEALTH CARE LTD,02/04/2019,415.36,73502-NURSING,MENTAL HEALTH SUPPORT,Third Party Payments,Revenue
Walsall Council,http://opendatacommunities.org/id/metropolitan-district-council/walsall,WC103-597,30/04/2019,Adult Social Care,ALPHA HEALTH CARE LTD,02/04/2019,"1,688.84",73500-RESIDENTIAL,MENTAL HEALTH SUPPORT,Third Party Payments,Revenue
Walsall Council,http://opendatacommunities.org/id/metropolitan-district-council/walsall,WC103-598,30/04/2019,Adult Social Care,ALPHA HEALTH CARE LTD,29/04/2019,"1,688.84",73500-RESIDENTIAL,MENTAL HEALTH SUPPORT,Third Party Payments,Revenue
Walsall Council,http://opendatacommunities.org/id/metropolitan-district-council/walsall,WC103-599,30/04/2019,Adult Social Care,ALPHA HEALTH CARE LTD,02/04/2019,"2,039.68",73502-NURSING,PHYSICAL SUPPORT,Third Party Payments,Revenue
Walsall Council,http://opendatacommunities.org/id/metropolitan-district-council/walsall,WC103-600,30/04/2019,Adult Social Care,ALPHA HEALTH CARE LTD,29/04/2019,"2,039.68",73502-NURSING,PHYSICAL SUPPORT,Third Party Payments,Revenue
Walsall Council,http://opendatacommunities.org/id/metropolitan-district-council/walsall,WC103-601,30/04/2019,Adult Social Care,ALPHA HEALTH CARE LTD,02/04/2019,"2,160.00",73501-RESIDENTIAL EMI,SUPPORT WITH MEMORY & COGNITION,Third Party Payments,Revenue
Walsall Council,http://opendatacommunities.org/id/metropolitan-district-council/walsall,WC103-602,30/04/2019,Adult Social Care,ALPHA HEALTH CARE LTD,29/04/2019,"2,160.00",73501-RESIDENTIAL EMI,SUPPORT WITH MEMORY & COGNITION,Third Party Payments,Revenue
Walsall Council,http://opendatacommunities.org/id/metropolitan-district-council/walsall,WC103-603,30/04/2019,Adult Social Care,ALPHA HEALTH CARE LTD,02/04/2019,"2,243.64",73503-NURSING EMI,MENTAL HEALTH SUPPORT,Third Party Payments,Revenue
Walsall Council,http://opendatacommunities.org/id/metropolitan-district-council/walsall,WC103-604,30/04/2019,Adult Social Care,ALPHA HEALTH CARE LTD,02/04/2019,"2,243.64",73503-NURSING EMI,PHYSICAL SUPPORT,Third Party Payments,Revenue
Walsall Council,http://opendatacommunities.org/id/metropolitan-district-council/walsall,WC103-605,30/04/2019,Adult Social Care,ALPHA HEALTH CARE LTD,02/04/2019,"2,243.64",73503-NURSING EMI,MENTAL HEALTH SUPPORT,Third Party Payments,Revenue
Walsall Council,http://opendatacommunities.org/id/metropolitan-district-council/walsall,WC103-606,30/04/2019,Adult Social Care,ALPHA HEALTH CARE LTD,29/04/2019,"2,243.64",73503-NURSING EMI,MENTAL HEALTH SUPPORT,Third Party Payments,Revenue
Walsall Council,http://opendatacommunities.org/id/metropolitan-district-council/walsall,WC103-607,30/04/2019,Adult Social Care,ALPHA HEALTH CARE LTD,29/04/2019,"2,243.64",73503-NURSING EMI,MENTAL HEALTH SUPPORT,Third Party Payments,Revenue
Walsall Council,http://opendatacommunities.org/id/metropolitan-district-council/walsall,WC103-608,30/04/2019,Adult Social Care,ALPHA HEALTH CARE LTD,29/04/2019,"2,243.64",73503-NURSING EMI,PHYSICAL SUPPORT,Third Party Payments,Revenue
Walsall Council,http://opendatacommunities.org/id/metropolitan-district-council/walsall,WC103-609,30/04/2019,Adult Social Care,ALPHA HEALTH CARE LTD,02/04/2019,"2,379.80",73503-NURSING EMI,PHYSICAL SUPPORT,Third Party Payments,Revenue
Walsall Council,http://opendatacommunities.org/id/metropolitan-district-council/walsall,WC103-610,30/04/2019,Adult Social Care,ALPHA HEALTH CARE LTD,29/04/2019,"2,379.80",73503-NURSING EMI,PHYSICAL SUPPORT,Third Party Payments,Revenue
Walsall Council,http://opendatacommunities.org/id/metropolitan-district-council/walsall,WC103-611,30/04/2019,Adult Social Care,ALPHA HEALTH CARE LTD,02/04/2019,"2,400.00",73501-RESIDENTIAL EMI,MENTAL HEALTH SUPPORT,Third Party Payments,Revenue
Walsall Council,http://opendatacommunities.org/id/metropolitan-district-council/walsall,WC103-612,30/04/2019,Adult Social Care,ALPHA HEALTH CARE LTD,29/04/2019,"2,400.00",73501-RESIDENTIAL EMI,MENTAL HEALTH SUPPORT,Third Party Payments,Revenue
Walsall Council,http://opendatacommunities.org/id/metropolitan-district-council/walsall,WC103-613,30/04/2019,Adult Social Care,ALPHA HEALTH CARE LTD,02/04/2019,"2,484.88",73502-NURSING,PHYSICAL SUPPORT,Third Party Payments,Revenue
Walsall Council,http://opendatacommunities.org/id/metropolitan-district-council/walsall,WC103-614,30/04/2019,Adult Social Care,ALPHA HEALTH CARE LTD,29/04/2019,"2,484.88",73502-NURSING,PHYSICAL SUPPORT,Third Party Payments,Revenue
Walsall Council,http://opendatacommunities.org/id/metropolitan-district-council/walsall,WC103-615,30/04/2019,Adult Social Care,ALPHA HEALTH CARE LTD,02/04/2019,"2,688.84",73503-NURSING EMI,PHYSICAL SUPPORT,Third Party Payments,Revenue
Walsall Council,http://opendatacommunities.org/id/metropolitan-district-council/walsall,WC103-616,30/04/2019,Adult Social Care,ALPHA HEALTH CARE LTD,29/04/2019,"2,688.84",73503-NURSING EMI,PHYSICAL SUPPORT,Third Party Payments,Revenue
Walsall Council,http://opendatacommunities.org/id/metropolitan-district-council/walsall,WC103-617,30/04/2019,Adult Social Care,ALPHA HEALTH CARE LTD,02/04/2019,"2,767.36",73503-NURSING EMI,MENTAL HEALTH SUPPORT,Third Party Payments,Revenue
Walsall Council,http://opendatacommunities.org/id/metropolitan-district-council/walsall,WC103-618,30/04/2019,Adult Social Care,ALPHA HEALTH CARE LTD,02/04/2019,"2,767.36",73503-NURSING EMI,PHYSICAL SUPPORT,Third Party Payments,Revenue
Walsall Council,http://opendatacommunities.org/id/metropolitan-district-council/walsall,WC103-619,30/04/2019,Adult Social Care,ALPHA HEALTH CARE LTD,02/04/2019,"2,767.36",73503-NURSING EMI,MENTAL HEALTH SUPPORT,Third Party Payments,Revenue
Walsall Council,http://opendatacommunities.org/id/metropolitan-district-council/walsall,WC103-620,30/04/2019,Adult Social Care,ALPHA HEALTH CARE LTD,02/04/2019,"2,767.36",73503-NURSING EMI,PHYSICAL SUPPORT,Third Party Payments,Revenue
Walsall Council,http://opendatacommunities.org/id/metropolitan-district-council/walsall,WC103-621,30/04/2019,Adult Social Care,ALPHA HEALTH CARE LTD,29/04/2019,"2,767.36",73503-NURSING EMI,PHYSICAL SUPPORT,Third Party Payments,Revenue
Walsall Council,http://opendatacommunities.org/id/metropolitan-district-council/walsall,WC103-622,30/04/2019,Adult Social Care,ALPHA HEALTH CARE LTD,29/04/2019,"2,767.36",73503-NURSING EMI,MENTAL HEALTH SUPPORT,Third Party Payments,Revenue
Walsall Council,http://opendatacommunities.org/id/metropolitan-district-council/walsall,WC103-623,30/04/2019,Adult Social Care,ALPHA HEALTH CARE LTD,29/04/2019,"2,767.36",73503-NURSING EMI,MENTAL HEALTH SUPPORT,Third Party Payments,Revenue
Walsall Council,http://opendatacommunities.org/id/metropolitan-district-council/walsall,WC103-624,30/04/2019,Adult Social Care,ALPHA HEALTH CARE LTD,29/04/2019,"2,767.36",73503-NURSING EMI,PHYSICAL SUPPORT,Third Party Payments,Revenue
Walsall Council,http://opendatacommunities.org/id/metropolitan-district-council/walsall,WC103-625,30/04/2019,Adult Social Care,ALPHA HEALTH CARE LTD,02/04/2019,"2,767.40",73503-NURSING EMI,PHYSICAL SUPPORT,Third Party Payments,Revenue
Walsall Council,http://opendatacommunities.org/id/metropolitan-district-council/walsall,WC103-626,30/04/2019,Adult Social Care,ALPHA HEALTH CARE LTD,29/04/2019,"2,767.40",73503-NURSING EMI,PHYSICAL SUPPORT,Third Party Payments,Revenue
Walsall Council,http://opendatacommunities.org/id/metropolitan-district-council/walsall,WC103-627,30/04/2019,Adult Social Care,ALPHA HEALTH CARE LTD,02/04/2019,"2,823.44",73503-NURSING EMI,PHYSICAL SUPPORT,Third Party Payments,Revenue
Walsall Council,http://opendatacommunities.org/id/metropolitan-district-council/walsall,WC103-628,30/04/2019,Adult Social Care,ALPHA HEALTH CARE LTD,29/04/2019,"2,823.44",73503-NURSING EMI,PHYSICAL SUPPORT,Third Party Payments,Revenue
Walsall Council,http://opendatacommunities.org/id/metropolitan-district-council/walsall,WC103-629,30/04/2019,Adult Social Care,ALPHA HEALTH CARE LTD,02/04/2019,"2,940.00",73501-RESIDENTIAL EMI,SUPPORT WITH MEMORY & COGNITION,Third Party Payments,Revenue
Walsall Council,http://opendatacommunities.org/id/metropolitan-district-council/walsall,WC103-630,30/04/2019,Adult Social Care,ALPHA HEALTH CARE LTD,02/04/2019,"2,940.00",73501-RESIDENTIAL EMI,PHYSICAL SUPPORT,Third Party Payments,Revenue
Walsall Council,http://opendatacommunities.org/id/metropolitan-district-council/walsall,WC103-631,30/04/2019,Adult Social Care,ALPHA HEALTH CARE LTD,02/04/2019,"2,940.00",73501-RESIDENTIAL EMI,PHYSICAL SUPPORT,Third Party Payments,Revenue
Walsall Council,http://opendatacommunities.org/id/metropolitan-district-council/walsall,WC103-632,30/04/2019,Adult Social Care,ALPHA HEALTH CARE LTD,29/04/2019,"2,940.00",73501-RESIDENTIAL EMI,PHYSICAL SUPPORT,Third Party Payments,Revenue
Walsall Council,http://opendatacommunities.org/id/metropolitan-district-council/walsall,WC103-633,30/04/2019,Adult Social Care,ALPHA HEALTH CARE LTD,29/04/2019,"2,940.00",73501-RESIDENTIAL EMI,SUPPORT WITH MEMORY & COGNITION,Third Party Payments,Revenue
Walsall Council,http://opendatacommunities.org/id/metropolitan-district-council/walsall,WC103-634,30/04/2019,Adult Social Care,ALPHA HEALTH CARE LTD,29/04/2019,"2,940.00",73501-RESIDENTIAL EMI,PHYSICAL SUPPORT,Third Party Payments,Revenue
Walsall Council,http://opendatacommunities.org/id/metropolitan-district-council/walsall,WC103-635,30/04/2019,Adult Social Care,ALPHA HEALTH CARE LTD,29/04/2019,"3,175.92",73503-NURSING EMI,PHYSICAL SUPPORT,Third Party Payments,Revenue
Walsall Council,http://opendatacommunities.org/id/metropolitan-district-council/walsall,WC103-636,30/04/2019,Adult Social Care,ALPHA HEALTH CARE LTD,02/04/2019,"3,400.00",73503-NURSING EMI,MENTAL HEALTH SUPPORT,Third Party Payments,Revenue
Walsall Council,http://opendatacommunities.org/id/metropolitan-district-council/walsall,WC103-637,30/04/2019,Adult Social Care,ALPHA HEALTH CARE LTD,29/04/2019,"3,400.00",73503-NURSING EMI,MENTAL HEALTH SUPPORT,Third Party Payments,Revenue
Walsall Council,http://opendatacommunities.org/id/metropolitan-district-council/walsall,WC103-638,30/04/2019,Adult Social Care,ALPHA HEALTH CARE LTD,02/04/2019,"11,148.44",73503-NURSING EMI,PHYSICAL SUPPORT,Third Party Payments,Revenue
Walsall Council,http://opendatacommunities.org/id/metropolitan-district-council/walsall,WC103-639,30/04/2019,Adult Social Care,ALPHA HEALTH CARE LTD,29/04/2019,"11,148.44",73503-NURSING EMI,PHYSICAL SUPPORT,Third Party Payments,Revenue
Walsall Council,http://opendatacommunities.org/id/metropolitan-district-council/walsall,WC103-640,30/04/2019,Childrens,REDACTED,08/04/2019,413.00,73506-DIRECT PAYMENT,FAMILY SUPPORT - DIRECT PAYMENTS,Third Party Payments,Revenue
Walsall Council,http://opendatacommunities.org/id/metropolitan-district-council/walsall,WC103-641,30/04/2019,Childrens,AMAH NURSERIES LIMITED T/A BANANA MOON WALSALL,02/04/2019,"1,980.00",66505-OTHER-GRANTS TO OTHER ORGS,EARLY YEARS - DEPRIVATION FUNDING,Third Party Payments,Revenue
Walsall Council,http://opendatacommunities.org/id/metropolitan-district-council/walsall,WC103-642,30/04/2019,Childrens,AMAH NURSERIES LIMITED T/A BANANA MOON WALSALL,01/04/2019,"16,348.80",66505-OTHER-GRANTS TO OTHER ORGS,EARLY YEARS - 2 YR OLDS,Third Party Payments,Revenue
Walsall Council,http://opendatacommunities.org/id/metropolitan-district-council/walsall,WC103-643,30/04/2019,Childrens,AMAH NURSERIES LIMITED T/A BANANA MOON WALSALL,01/04/2019,"17,177.06",66505-OTHER-GRANTS TO OTHER ORGS,EARLY YEARS - 3 YR OLDS,Third Party Payments,Revenue
Walsall Council,http://opendatacommunities.org/id/metropolitan-district-council/walsall,WC103-644,30/04/2019,Childrens,REDACTED,08/04/2019,318.08,74510-RESIDENTS ORDERS,ADOPTION ALLOWANCES,Third Party Payments,Revenue
Walsall Council,http://opendatacommunities.org/id/metropolitan-district-council/walsall,WC103-645,30/04/2019,Childrens,REDACTED,08/04/2019,318.08,74510-RESIDENTS ORDERS,ADOPTION ALLOWANCES,Third Party Payments,Revenue
Walsall Council,http://opendatacommunities.org/id/metropolitan-district-council/walsall,WC103-646,30/04/2019,Adult Social Care,REDACTED,09/04/2019,"1,128.76",73506-DIRECT PAYMENT,LEARNING DISABILITY SUPPORT,Third Party Payments,Revenue
Walsall Council,http://opendatacommunities.org/id/metropolitan-district-council/walsall,WC103-647,30/04/2019,Childrens,REDACTED,08/04/2019,808.04,74009-ADOPTION ALLOWANCE,ADOPTION ALLOWANCES,Transfer Payments,Revenue
Walsall Council,http://opendatacommunities.org/id/metropolitan-district-council/walsall,WC103-648,30/04/2019,Childrens,REDACTED,23/04/2019,98.89,74506-TRAVEL-FOSTER CARERS,INTERNAL FOSTER CARE PROVISION,Transfer Payments,Revenue
Walsall Council,http://opendatacommunities.org/id/metropolitan-district-council/walsall,WC103-649,30/04/2019,Childrens,REDACTED,23/04/2019,300.00,74504-HOLIDAY/CHRISTMAS ALLOWANCE-FOSTER CARERS,INTERNAL FOSTER CARE PROVISION,Transfer Payments,Revenue
Walsall Council,http://opendatacommunities.org/id/metropolitan-district-council/walsall,WC103-650,30/04/2019,Childrens,REDACTED,23/04/2019,600.00,74501-MAINTENANCE ALLOWANCE-FOSTER CARERS,INTERNAL FOSTER CARE PROVISION,Transfer Payments,Revenue
Walsall Council,http://opendatacommunities.org/id/metropolitan-district-council/walsall,WC103-651,30/04/2019,Childrens,REDACTED,23/04/2019,"1,000.00",74508-INTERNAL FOSTER CARERS-CARER FEES,INTERNAL FOSTER CARE PROVISION,Transfer Payments,Revenue
Walsall Council,http://opendatacommunities.org/id/metropolitan-district-council/walsall,WC103-652,30/04/2019,Childrens,AMANS TRAVEL LTD,01/04/2019,"1,249.50",52000-WITH DRIVER-HIRE OF VEHICLES,HOME TO SCHOOL TRANSPORT,Transport,Revenue
Walsall Council,http://opendatacommunities.org/id/metropolitan-district-council/walsall,WC103-653,30/04/2019,Adult Social Care,REDACTED,09/04/2019,897.60,73506-DIRECT PAYMENT,LEARNING DISABILITY SUPPORT,Third Party Payments,Revenue
Walsall Council,http://opendatacommunities.org/id/metropolitan-district-council/walsall,WC103-654,30/04/2019,Economy & Environment,AMEY LG LIMITED,01/04/2019,261.76,01002-PROJECT FEES,CFR 1282 LGF - M6 J10 RESILLIENCE PACKAGE II (CONTIBUTION TO (NPIF),Capital,Capital
Walsall Council,http://opendatacommunities.org/id/metropolitan-district-council/walsall,WC103-655,30/04/2019,Resources and Transformation,AMEY LG LIMITED,10/04/2019,650.08,60008-MAINTENANCE-FURNITURE & EQUIPMENT,AREA PARTNERSHIPS,Supplies & Services,Revenue
Walsall Council,http://opendatacommunities.org/id/metropolitan-district-council/walsall,WC103-656,30/04/2019,Resources and Transformation,AMEY LG LIMITED,17/04/2019,"1,125.96",60008-MAINTENANCE-FURNITURE & EQUIPMENT,AREA PARTNERSHIPS,Supplies & Services,Revenue
Walsall Council,http://opendatacommunities.org/id/metropolitan-district-council/walsall,WC103-657,30/04/2019,Economy & Environment,AMEY LG LIMITED,17/04/2019,"3,620.98",01009-SITE WORKS - OTHER CONTRACTORS,CFR 1281 A4148 PLECK ROAD (MOAT ROAD TO DARLASTON),Capital,Capital
Walsall Council,http://opendatacommunities.org/id/metropolitan-district-council/walsall,WC103-658,30/04/2019,Economy & Environment,AMEY LG LIMITED,25/04/2019,"3,920.37",01006-SITE WORKS MAIN CONTRACTORS,CFR 1281 HIGHWAY EFFICIENCY PROGRAMME,Capital,Capital
Walsall Council,http://opendatacommunities.org/id/metropolitan-district-council/walsall,WC103-659,30/04/2019,Economy & Environment,AMEY LG LIMITED,17/04/2019,"7,964.65",01008-SITE WORKS DLO,CFR 1281 A4148 PLECK ROAD (MOAT ROAD TO DARLASTON),Capital,Capital
Walsall Council,http://opendatacommunities.org/id/metropolitan-district-council/walsall,WC103-660,30/04/2019,Economy & Environment,AMEY LG LIMITED,01/04/2019,"8,042.30",01006-SITE WORKS MAIN CONTRACTORS,CFR 1144 URBAN TRAFFIC CONTROL ANALOGUE COMMUNICATION NETWORK,Capital,Capital
Walsall Council,http://opendatacommunities.org/id/metropolitan-district-council/walsall,WC103-661,30/04/2019,Economy & Environment,AMEY LG LIMITED,25/04/2019,"9,714.44",73025-PROFESSIONAL SERVICES-PRIV CONTRACTOR & OTHER AGENCIES,TRAFFIC MANAGEMENT,Third Party Payments,Revenue
Walsall Council,http://opendatacommunities.org/id/metropolitan-district-council/walsall,WC103-662,30/04/2019,Childrens,AMG NURSING CARE SERVICES,03/04/2019,"1,096.48",63000-PROFESSIONAL FEES AND SERVICES,DIRECTLY COMMISSIONED NURSING SERVICES,Supplies & Services,Revenue
Walsall Council,http://opendatacommunities.org/id/metropolitan-district-council/walsall,WC103-663,30/04/2019,Childrens,AMG NURSING CARE SERVICES,03/04/2019,"2,246.00",63000-PROFESSIONAL FEES AND SERVICES,DIRECTLY COMMISSIONED NURSING SERVICES,Supplies & Services,Revenue
Walsall Council,http://opendatacommunities.org/id/metropolitan-district-council/walsall,WC103-664,30/04/2019,Childrens,AMG NURSING CARE SERVICES,03/04/2019,"2,263.80",63000-PROFESSIONAL FEES AND SERVICES,DIRECTLY COMMISSIONED NURSING SERVICES,Supplies & Services,Revenue
Walsall Council,http://opendatacommunities.org/id/metropolitan-district-council/walsall,WC103-665,30/04/2019,Adult Social Care,AMG NURSING CARE SERVICES,01/04/2019,"3,630.25",73508-COMMUNITY SUPPORTED LIVING/SUPPORTED ACCOMMODATION,PHYSICAL SUPPORT,Third Party Payments,Revenue
Walsall Council,http://opendatacommunities.org/id/metropolitan-district-council/walsall,WC103-666,30/04/2019,Adult Social Care,AMG NURSING CARE SERVICES,29/04/2019,"3,633.50",73508-COMMUNITY SUPPORTED LIVING/SUPPORTED ACCOMMODATION,PHYSICAL SUPPORT,Third Party Payments,Revenue
Walsall Council,http://opendatacommunities.org/id/metropolitan-district-council/walsall,WC103-667,30/04/2019,Adult Social Care,REDACTED,09/04/2019,"1,150.45",73506-DIRECT PAYMENT,PHYSICAL SUPPORT,Third Party Payments,Revenue
Walsall Council,http://opendatacommunities.org/id/metropolitan-district-council/walsall,WC103-668,30/04/2019,Childrens,REDACTED,08/04/2019,340.00,74508-INTERNAL FOSTER CARERS-CARER FEES,FAMILY & FRIENDS FOSTER CARE PROVISION,Transfer Payments,Revenue
Walsall Council,http://opendatacommunities.org/id/metropolitan-district-council/walsall,WC103-669,30/04/2019,Childrens,REDACTED,08/04/2019,600.00,74501-MAINTENANCE ALLOWANCE-FOSTER CARERS,FAMILY & FRIENDS FOSTER CARE PROVISION,Transfer Payments,Revenue
Walsall Council,http://opendatacommunities.org/id/metropolitan-district-council/walsall,WC103-670,30/04/2019,Childrens,REDACTED,08/04/2019,425.08,74510-RESIDENTS ORDERS,ADOPTION ALLOWANCES,Third Party Payments,Revenue
Walsall Council,http://opendatacommunities.org/id/metropolitan-district-council/walsall,WC103-671,30/04/2019,Adult Social Care,ANCHOR,02/04/2019,340.00,73501-RESIDENTIAL EMI,SUPPORT WITH MEMORY & COGNITION,Third Party Payments,Revenue
Walsall Council,http://opendatacommunities.org/id/metropolitan-district-council/walsall,WC103-672,30/04/2019,Adult Social Care,ANCHOR,29/04/2019,340.00,73501-RESIDENTIAL EMI,SUPPORT WITH MEMORY & COGNITION,Third Party Payments,Revenue
Walsall Council,http://opendatacommunities.org/id/metropolitan-district-council/walsall,WC103-673,30/04/2019,Adult Social Care,ANCHOR,02/04/2019,402.11,73501-RESIDENTIAL EMI,SUPPORT WITH MEMORY & COGNITION,Third Party Payments,Revenue
Walsall Council,http://opendatacommunities.org/id/metropolitan-district-council/walsall,WC103-674,30/04/2019,Adult Social Care,ANCHOR,01/04/2019,791.62,73501-RESIDENTIAL EMI,PHYSICAL SUPPORT,Third Party Payments,Revenue
Walsall Council,http://opendatacommunities.org/id/metropolitan-district-council/walsall,WC103-675,30/04/2019,Adult Social Care,ANCHOR,02/04/2019,"1,072.30",73501-RESIDENTIAL EMI,PHYSICAL SUPPORT,Third Party Payments,Revenue
Walsall Council,http://opendatacommunities.org/id/metropolitan-district-council/walsall,WC103-676,30/04/2019,Adult Social Care,ANCHOR,02/04/2019,"1,688.84",73500-RESIDENTIAL,SUPPORT WITH MEMORY & COGNITION,Third Party Payments,Revenue
Walsall Council,http://opendatacommunities.org/id/metropolitan-district-council/walsall,WC103-677,30/04/2019,Adult Social Care,ANCHOR,02/04/2019,"1,688.84",73500-RESIDENTIAL,PHYSICAL SUPPORT,Third Party Payments,Revenue
Walsall Council,http://opendatacommunities.org/id/metropolitan-district-council/walsall,WC103-678,30/04/2019,Adult Social Care,ANCHOR,02/04/2019,"1,688.84",73500-RESIDENTIAL,SUPPORT WITH MEMORY & COGNITION,Third Party Payments,Revenue
Walsall Council,http://opendatacommunities.org/id/metropolitan-district-council/walsall,WC103-679,30/04/2019,Adult Social Care,ANCHOR,02/04/2019,"1,688.84",73500-RESIDENTIAL,PHYSICAL SUPPORT,Third Party Payments,Revenue
Walsall Council,http://opendatacommunities.org/id/metropolitan-district-council/walsall,WC103-680,30/04/2019,Adult Social Care,ANCHOR,29/04/2019,"1,688.84",73500-RESIDENTIAL,PHYSICAL SUPPORT,Third Party Payments,Revenue
Walsall Council,http://opendatacommunities.org/id/metropolitan-district-council/walsall,WC103-681,30/04/2019,Adult Social Care,ANCHOR,29/04/2019,"1,688.84",73500-RESIDENTIAL,PHYSICAL SUPPORT,Third Party Payments,Revenue
Walsall Council,http://opendatacommunities.org/id/metropolitan-district-council/walsall,WC103-682,30/04/2019,Adult Social Care,ANCHOR,29/04/2019,"1,688.84",73500-RESIDENTIAL,PHYSICAL SUPPORT,Third Party Payments,Revenue
Walsall Council,http://opendatacommunities.org/id/metropolitan-district-council/walsall,WC103-683,30/04/2019,Adult Social Care,ANCHOR,29/04/2019,"1,688.84",73500-RESIDENTIAL,SUPPORT WITH MEMORY & COGNITION,Third Party Payments,Revenue
Walsall Council,http://opendatacommunities.org/id/metropolitan-district-council/walsall,WC103-684,30/04/2019,Adult Social Care,ANCHOR,29/04/2019,"1,688.84",73500-RESIDENTIAL,SUPPORT WITH MEMORY & COGNITION,Third Party Payments,Revenue
Walsall Council,http://opendatacommunities.org/id/metropolitan-district-council/walsall,WC103-685,30/04/2019,Adult Social Care,ANCHOR,02/04/2019,"1,840.00",73501-RESIDENTIAL EMI,PHYSICAL SUPPORT,Third Party Payments,Revenue
Walsall Council,http://opendatacommunities.org/id/metropolitan-district-council/walsall,WC103-686,30/04/2019,Adult Social Care,ANCHOR,02/04/2019,"1,840.00",73500-RESIDENTIAL,PHYSICAL SUPPORT,Third Party Payments,Revenue
Walsall Council,http://opendatacommunities.org/id/metropolitan-district-council/walsall,WC103-687,30/04/2019,Adult Social Care,ANCHOR,29/04/2019,"1,840.00",73500-RESIDENTIAL,PHYSICAL SUPPORT,Third Party Payments,Revenue
Walsall Council,http://opendatacommunities.org/id/metropolitan-district-council/walsall,WC103-688,30/04/2019,Adult Social Care,ANCHOR,29/04/2019,"1,840.00",73501-RESIDENTIAL EMI,PHYSICAL SUPPORT,Third Party Payments,Revenue
Walsall Council,http://opendatacommunities.org/id/metropolitan-district-council/walsall,WC103-689,30/04/2019,Adult Social Care,ANCHOR,02/04/2019,"1,848.84",73500-RESIDENTIAL,PHYSICAL SUPPORT,Third Party Payments,Revenue
Walsall Council,http://opendatacommunities.org/id/metropolitan-district-council/walsall,WC103-690,30/04/2019,Adult Social Care,ANCHOR,29/04/2019,"1,848.84",73500-RESIDENTIAL,PHYSICAL SUPPORT,Third Party Payments,Revenue
Walsall Council,http://opendatacommunities.org/id/metropolitan-district-council/walsall,WC103-691,30/04/2019,Adult Social Care,ANCHOR,02/04/2019,"1,876.52",73501-RESIDENTIAL EMI,MENTAL HEALTH SUPPORT,Third Party Payments,Revenue
Walsall Council,http://opendatacommunities.org/id/metropolitan-district-council/walsall,WC103-692,30/04/2019,Adult Social Care,ANCHOR,02/04/2019,"1,876.52",73501-RESIDENTIAL EMI,PHYSICAL SUPPORT,Third Party Payments,Revenue
Walsall Council,http://opendatacommunities.org/id/metropolitan-district-council/walsall,WC103-693,30/04/2019,Adult Social Care,ANCHOR,02/04/2019,"1,876.52",73501-RESIDENTIAL EMI,PHYSICAL SUPPORT,Third Party Payments,Revenue
Walsall Council,http://opendatacommunities.org/id/metropolitan-district-council/walsall,WC103-694,30/04/2019,Adult Social Care,ANCHOR,02/04/2019,"1,876.52",73501-RESIDENTIAL EMI,SUPPORT WITH MEMORY & COGNITION,Third Party Payments,Revenue
Walsall Council,http://opendatacommunities.org/id/metropolitan-district-council/walsall,WC103-695,30/04/2019,Adult Social Care,ANCHOR,02/04/2019,"1,876.52",73501-RESIDENTIAL EMI,MENTAL HEALTH SUPPORT,Third Party Payments,Revenue
Walsall Council,http://opendatacommunities.org/id/metropolitan-district-council/walsall,WC103-696,30/04/2019,Adult Social Care,ANCHOR,02/04/2019,"1,876.52",73501-RESIDENTIAL EMI,MENTAL HEALTH SUPPORT,Third Party Payments,Revenue
Walsall Council,http://opendatacommunities.org/id/metropolitan-district-council/walsall,WC103-697,30/04/2019,Adult Social Care,ANCHOR,02/04/2019,"1,876.52",73501-RESIDENTIAL EMI,MENTAL HEALTH SUPPORT,Third Party Payments,Revenue
Walsall Council,http://opendatacommunities.org/id/metropolitan-district-council/walsall,WC103-698,30/04/2019,Adult Social Care,ANCHOR,02/04/2019,"1,876.52",73501-RESIDENTIAL EMI,PHYSICAL SUPPORT,Third Party Payments,Revenue
Walsall Council,http://opendatacommunities.org/id/metropolitan-district-council/walsall,WC103-699,30/04/2019,Adult Social Care,ANCHOR,02/04/2019,"1,876.52",73501-RESIDENTIAL EMI,SUPPORT WITH MEMORY & COGNITION,Third Party Payments,Revenue
Walsall Council,http://opendatacommunities.org/id/metropolitan-district-council/walsall,WC103-700,30/04/2019,Adult Social Care,ANCHOR,02/04/2019,"1,876.52",73501-RESIDENTIAL EMI,PHYSICAL SUPPORT,Third Party Payments,Revenue
Walsall Council,http://opendatacommunities.org/id/metropolitan-district-council/walsall,WC103-701,30/04/2019,Adult Social Care,ANCHOR,02/04/2019,"1,876.52",73501-RESIDENTIAL EMI,PHYSICAL SUPPORT,Third Party Payments,Revenue
Walsall Council,http://opendatacommunities.org/id/metropolitan-district-council/walsall,WC103-702,30/04/2019,Adult Social Care,ANCHOR,02/04/2019,"1,876.52",73501-RESIDENTIAL EMI,SUPPORT WITH MEMORY & COGNITION,Third Party Payments,Revenue
Walsall Council,http://opendatacommunities.org/id/metropolitan-district-council/walsall,WC103-703,30/04/2019,Adult Social Care,ANCHOR,02/04/2019,"1,876.52",73501-RESIDENTIAL EMI,PHYSICAL SUPPORT,Third Party Payments,Revenue
Walsall Council,http://opendatacommunities.org/id/metropolitan-district-council/walsall,WC103-704,30/04/2019,Adult Social Care,ANCHOR,29/04/2019,"1,876.52",73501-RESIDENTIAL EMI,MENTAL HEALTH SUPPORT,Third Party Payments,Revenue
Walsall Council,http://opendatacommunities.org/id/metropolitan-district-council/walsall,WC103-705,30/04/2019,Adult Social Care,ANCHOR,29/04/2019,"1,876.52",73501-RESIDENTIAL EMI,MENTAL HEALTH SUPPORT,Third Party Payments,Revenue
Walsall Council,http://opendatacommunities.org/id/metropolitan-district-council/walsall,WC103-706,30/04/2019,Adult Social Care,ANCHOR,29/04/2019,"1,876.52",73501-RESIDENTIAL EMI,MENTAL HEALTH SUPPORT,Third Party Payments,Revenue
Walsall Council,http://opendatacommunities.org/id/metropolitan-district-council/walsall,WC103-707,30/04/2019,Adult Social Care,ANCHOR,29/04/2019,"1,876.52",73501-RESIDENTIAL EMI,PHYSICAL SUPPORT,Third Party Payments,Revenue
Walsall Council,http://opendatacommunities.org/id/metropolitan-district-council/walsall,WC103-708,30/04/2019,Adult Social Care,ANCHOR,29/04/2019,"1,876.52",73501-RESIDENTIAL EMI,SUPPORT WITH MEMORY & COGNITION,Third Party Payments,Revenue
Walsall Council,http://opendatacommunities.org/id/metropolitan-district-council/walsall,WC103-709,30/04/2019,Adult Social Care,ANCHOR,29/04/2019,"1,876.52",73501-RESIDENTIAL EMI,MENTAL HEALTH SUPPORT,Third Party Payments,Revenue
Walsall Council,http://opendatacommunities.org/id/metropolitan-district-council/walsall,WC103-710,30/04/2019,Adult Social Care,ANCHOR,29/04/2019,"1,876.52",73501-RESIDENTIAL EMI,PHYSICAL SUPPORT,Third Party Payments,Revenue
Walsall Council,http://opendatacommunities.org/id/metropolitan-district-council/walsall,WC103-711,30/04/2019,Adult Social Care,ANCHOR,29/04/2019,"1,876.52",73501-RESIDENTIAL EMI,SUPPORT WITH MEMORY & COGNITION,Third Party Payments,Revenue
Walsall Council,http://opendatacommunities.org/id/metropolitan-district-council/walsall,WC103-712,30/04/2019,Adult Social Care,ANCHOR,29/04/2019,"1,876.52",73501-RESIDENTIAL EMI,PHYSICAL SUPPORT,Third Party Payments,Revenue
Walsall Council,http://opendatacommunities.org/id/metropolitan-district-council/walsall,WC103-713,30/04/2019,Adult Social Care,ANCHOR,29/04/2019,"1,876.52",73501-RESIDENTIAL EMI,PHYSICAL SUPPORT,Third Party Payments,Revenue
Walsall Council,http://opendatacommunities.org/id/metropolitan-district-council/walsall,WC103-714,30/04/2019,Adult Social Care,ANCHOR,29/04/2019,"1,876.52",73501-RESIDENTIAL EMI,PHYSICAL SUPPORT,Third Party Payments,Revenue
Walsall Council,http://opendatacommunities.org/id/metropolitan-district-council/walsall,WC103-715,30/04/2019,Adult Social Care,ANCHOR,29/04/2019,"1,876.52",73501-RESIDENTIAL EMI,SUPPORT WITH MEMORY & COGNITION,Third Party Payments,Revenue
Walsall Council,http://opendatacommunities.org/id/metropolitan-district-council/walsall,WC103-716,30/04/2019,Adult Social Care,ANCHOR,02/04/2019,"1,968.84",73500-RESIDENTIAL,SENSORY SUPPORT,Third Party Payments,Revenue
Walsall Council,http://opendatacommunities.org/id/metropolitan-district-council/walsall,WC103-717,30/04/2019,Adult Social Care,ANCHOR,29/04/2019,"1,968.84",73500-RESIDENTIAL,SENSORY SUPPORT,Third Party Payments,Revenue
Walsall Council,http://opendatacommunities.org/id/metropolitan-district-council/walsall,WC103-718,30/04/2019,Adult Social Care,ANCHOR,29/04/2019,"1,979.03",73501-RESIDENTIAL EMI,PHYSICAL SUPPORT,Third Party Payments,Revenue
Walsall Council,http://opendatacommunities.org/id/metropolitan-district-council/walsall,WC103-719,30/04/2019,Adult Social Care,ANCHOR,02/04/2019,"2,008.84",73500-RESIDENTIAL,SOCIAL SUPPORT,Third Party Payments,Revenue
Walsall Council,http://opendatacommunities.org/id/metropolitan-district-council/walsall,WC103-720,30/04/2019,Adult Social Care,ANCHOR,02/04/2019,"2,008.84",73500-RESIDENTIAL,PHYSICAL SUPPORT,Third Party Payments,Revenue
Walsall Council,http://opendatacommunities.org/id/metropolitan-district-council/walsall,WC103-721,30/04/2019,Adult Social Care,ANCHOR,29/04/2019,"2,008.84",73500-RESIDENTIAL,PHYSICAL SUPPORT,Third Party Payments,Revenue
Walsall Council,http://opendatacommunities.org/id/metropolitan-district-council/walsall,WC103-722,30/04/2019,Adult Social Care,ANCHOR,29/04/2019,"2,008.84",73500-RESIDENTIAL,SOCIAL SUPPORT,Third Party Payments,Revenue
Walsall Council,http://opendatacommunities.org/id/metropolitan-district-council/walsall,WC103-723,30/04/2019,Adult Social Care,ANCHOR,02/04/2019,"2,028.84",73500-RESIDENTIAL,PHYSICAL SUPPORT,Third Party Payments,Revenue
Walsall Council,http://opendatacommunities.org/id/metropolitan-district-council/walsall,WC103-724,30/04/2019,Adult Social Care,ANCHOR,29/04/2019,"2,028.84",73500-RESIDENTIAL,PHYSICAL SUPPORT,Third Party Payments,Revenue
Walsall Council,http://opendatacommunities.org/id/metropolitan-district-council/walsall,WC103-725,30/04/2019,Adult Social Care,ANCHOR,02/04/2019,"2,048.84",73501-RESIDENTIAL EMI,SENSORY SUPPORT,Third Party Payments,Revenue
Walsall Council,http://opendatacommunities.org/id/metropolitan-district-council/walsall,WC103-726,30/04/2019,Adult Social Care,ANCHOR,29/04/2019,"2,048.84",73501-RESIDENTIAL EMI,SENSORY SUPPORT,Third Party Payments,Revenue
Walsall Council,http://opendatacommunities.org/id/metropolitan-district-council/walsall,WC103-727,30/04/2019,Adult Social Care,ANCHOR,02/04/2019,"2,076.52",73501-RESIDENTIAL EMI,SUPPORT WITH MEMORY & COGNITION,Third Party Payments,Revenue
Walsall Council,http://opendatacommunities.org/id/metropolitan-district-council/walsall,WC103-728,30/04/2019,Adult Social Care,ANCHOR,02/04/2019,"2,080.00",73501-RESIDENTIAL EMI,MENTAL HEALTH SUPPORT,Third Party Payments,Revenue
Walsall Council,http://opendatacommunities.org/id/metropolitan-district-council/walsall,WC103-729,30/04/2019,Adult Social Care,ANCHOR,29/04/2019,"2,080.00",73501-RESIDENTIAL EMI,MENTAL HEALTH SUPPORT,Third Party Payments,Revenue
Walsall Council,http://opendatacommunities.org/id/metropolitan-district-council/walsall,WC103-730,30/04/2019,Adult Social Care,ANCHOR,02/04/2019,"2,180.00",73500-RESIDENTIAL,PHYSICAL SUPPORT,Third Party Payments,Revenue
Walsall Council,http://opendatacommunities.org/id/metropolitan-district-council/walsall,WC103-731,30/04/2019,Adult Social Care,ANCHOR,29/04/2019,"2,180.00",73500-RESIDENTIAL,PHYSICAL SUPPORT,Third Party Payments,Revenue
Walsall Council,http://opendatacommunities.org/id/metropolitan-district-council/walsall,WC103-732,30/04/2019,Adult Social Care,ANCHOR,02/04/2019,"2,196.52",73501-RESIDENTIAL EMI,PHYSICAL SUPPORT,Third Party Payments,Revenue
Walsall Council,http://opendatacommunities.org/id/metropolitan-district-council/walsall,WC103-733,30/04/2019,Adult Social Care,ANCHOR,02/04/2019,"2,196.52",73501-RESIDENTIAL EMI,SUPPORT WITH MEMORY & COGNITION,Third Party Payments,Revenue
Walsall Council,http://opendatacommunities.org/id/metropolitan-district-council/walsall,WC103-734,30/04/2019,Adult Social Care,ANCHOR,29/04/2019,"2,196.52",73501-RESIDENTIAL EMI,PHYSICAL SUPPORT,Third Party Payments,Revenue
Walsall Council,http://opendatacommunities.org/id/metropolitan-district-council/walsall,WC103-735,30/04/2019,Adult Social Care,ANCHOR,29/04/2019,"2,196.52",73501-RESIDENTIAL EMI,SUPPORT WITH MEMORY & COGNITION,Third Party Payments,Revenue
Walsall Council,http://opendatacommunities.org/id/metropolitan-district-council/walsall,WC103-736,30/04/2019,Adult Social Care,ANCHOR,02/04/2019,"2,200.00",73500-RESIDENTIAL,PHYSICAL SUPPORT,Third Party Payments,Revenue
Walsall Council,http://opendatacommunities.org/id/metropolitan-district-council/walsall,WC103-737,30/04/2019,Adult Social Care,ANCHOR,29/04/2019,"2,200.00",73500-RESIDENTIAL,PHYSICAL SUPPORT,Third Party Payments,Revenue
Walsall Council,http://opendatacommunities.org/id/metropolitan-district-council/walsall,WC103-738,30/04/2019,Adult Social Care,ANCHOR,02/04/2019,"2,216.52",73501-RESIDENTIAL EMI,SUPPORT WITH MEMORY & COGNITION,Third Party Payments,Revenue
Walsall Council,http://opendatacommunities.org/id/metropolitan-district-council/walsall,WC103-739,30/04/2019,Adult Social Care,ANCHOR,02/04/2019,"2,216.52",73501-RESIDENTIAL EMI,PHYSICAL SUPPORT,Third Party Payments,Revenue
Walsall Council,http://opendatacommunities.org/id/metropolitan-district-council/walsall,WC103-740,30/04/2019,Adult Social Care,ANCHOR,02/04/2019,"2,216.52",73501-RESIDENTIAL EMI,PHYSICAL SUPPORT,Third Party Payments,Revenue
Walsall Council,http://opendatacommunities.org/id/metropolitan-district-council/walsall,WC103-741,30/04/2019,Adult Social Care,ANCHOR,29/04/2019,"2,216.52",73501-RESIDENTIAL EMI,SUPPORT WITH MEMORY & COGNITION,Third Party Payments,Revenue
Walsall Council,http://opendatacommunities.org/id/metropolitan-district-council/walsall,WC103-742,30/04/2019,Adult Social Care,ANCHOR,29/04/2019,"2,216.52",73501-RESIDENTIAL EMI,PHYSICAL SUPPORT,Third Party Payments,Revenue
Walsall Council,http://opendatacommunities.org/id/metropolitan-district-council/walsall,WC103-743,30/04/2019,Adult Social Care,ANCHOR,29/04/2019,"2,216.52",73501-RESIDENTIAL EMI,PHYSICAL SUPPORT,Third Party Payments,Revenue
Walsall Council,http://opendatacommunities.org/id/metropolitan-district-council/walsall,WC103-744,30/04/2019,Adult Social Care,ANCHOR,29/04/2019,"2,216.52",73501-RESIDENTIAL EMI,PHYSICAL SUPPORT,Third Party Payments,Revenue
Walsall Council,http://opendatacommunities.org/id/metropolitan-district-council/walsall,WC103-745,30/04/2019,Adult Social Care,ANCHOR,02/04/2019,"2,236.52",73501-RESIDENTIAL EMI,PHYSICAL SUPPORT,Third Party Payments,Revenue
Walsall Council,http://opendatacommunities.org/id/metropolitan-district-council/walsall,WC103-746,30/04/2019,Adult Social Care,ANCHOR,29/04/2019,"2,236.52",73501-RESIDENTIAL EMI,PHYSICAL SUPPORT,Third Party Payments,Revenue
Walsall Council,http://opendatacommunities.org/id/metropolitan-district-council/walsall,WC103-747,30/04/2019,Adult Social Care,ANCHOR,02/04/2019,"4,353.88",73501-RESIDENTIAL EMI,PHYSICAL SUPPORT,Third Party Payments,Revenue
Walsall Council,http://opendatacommunities.org/id/metropolitan-district-council/walsall,WC103-748,30/04/2019,Adult Social Care,ANCHOR,29/04/2019,"9,744.84",73501-RESIDENTIAL EMI,PHYSICAL SUPPORT,Third Party Payments,Revenue
Walsall Council,http://opendatacommunities.org/id/metropolitan-district-council/walsall,WC103-749,30/04/2019,Economy & Environment,ANDANTE LIVE,02/04/2019,415.80,63000-PROFESSIONAL FEES AND SERVICES,FOREST ARTS CENTRE,Supplies & Services,Revenue
Walsall Council,http://opendatacommunities.org/id/metropolitan-district-council/walsall,WC103-750,30/04/2019,Childrens,REDACTED,08/04/2019,313.34,74509-SPECIAL GUARDIANSHIP ORDERS,ADOPTION ALLOWANCES,Transfer Payments,Revenue
Walsall Council,http://opendatacommunities.org/id/metropolitan-district-council/walsall,WC103-751,30/04/2019,Childrens,REDACTED,23/04/2019,252.40,74506-TRAVEL-FOSTER CARERS,INTERNAL FOSTER CARE PROVISION,Transfer Payments,Revenue
Walsall Council,http://opendatacommunities.org/id/metropolitan-district-council/walsall,WC103-752,30/04/2019,Childrens,REDACTED,23/04/2019,720.00,74501-MAINTENANCE ALLOWANCE-FOSTER CARERS,INTERNAL FOSTER CARE PROVISION,Transfer Payments,Revenue
Walsall Council,http://opendatacommunities.org/id/metropolitan-district-council/walsall,WC103-753,30/04/2019,Childrens,REDACTED,23/04/2019,"1,000.00",74508-INTERNAL FOSTER CARERS-CARER FEES,INTERNAL FOSTER CARE PROVISION,Transfer Payments,Revenue
Walsall Council,http://opendatacommunities.org/id/metropolitan-district-council/walsall,WC103-754,30/04/2019,Adult Social Care,REDACTED,09/04/2019,619.24,73506-DIRECT PAYMENT,LEARNING DISABILITY SUPPORT,Third Party Payments,Revenue
Walsall Council,http://opendatacommunities.org/id/metropolitan-district-council/walsall,WC103-755,30/04/2019,Adult Social Care,REDACTED,09/04/2019,"1,797.74",73506-DIRECT PAYMENT,PHYSICAL SUPPORT,Third Party Payments,Revenue
Walsall Council,http://opendatacommunities.org/id/metropolitan-district-council/walsall,WC103-756,30/04/2019,Adult Social Care,ANGEL COURT RESIDENTIAL CARE HOME,02/04/2019,"1,876.52",73501-RESIDENTIAL EMI,PHYSICAL SUPPORT,Third Party Payments,Revenue
Walsall Council,http://opendatacommunities.org/id/metropolitan-district-council/walsall,WC103-757,30/04/2019,Adult Social Care,ANGEL COURT RESIDENTIAL CARE HOME,29/04/2019,"1,876.52",73501-RESIDENTIAL EMI,PHYSICAL SUPPORT,Third Party Payments,Revenue
Walsall Council,http://opendatacommunities.org/id/metropolitan-district-council/walsall,WC103-758,30/04/2019,Adult Social Care,ANGEL COURT RESIDENTIAL CARE HOME,02/04/2019,"1,978.52",73500-RESIDENTIAL,PHYSICAL SUPPORT,Third Party Payments,Revenue
Walsall Council,http://opendatacommunities.org/id/metropolitan-district-council/walsall,WC103-759,30/04/2019,Adult Social Care,ANGEL COURT RESIDENTIAL CARE HOME,29/04/2019,"1,978.52",73500-RESIDENTIAL,PHYSICAL SUPPORT,Third Party Payments,Revenue
Walsall Council,http://opendatacommunities.org/id/metropolitan-district-council/walsall,WC103-760,30/04/2019,Childrens,ANGEL SOLUTIONS LTD,04/04/2019,"12,236.00",63114-OTHER FEES & LICENCES-SERVICES-FEES,WCS STATUTORY LICENCES,Supplies & Services,Revenue
Walsall Council,http://opendatacommunities.org/id/metropolitan-district-council/walsall,WC103-761,30/04/2019,Childrens,REDACTED,08/04/2019,368.76,74509-SPECIAL GUARDIANSHIP ORDERS,ADOPTION ALLOWANCES,Transfer Payments,Revenue
Walsall Council,http://opendatacommunities.org/id/metropolitan-district-council/walsall,WC103-762,30/04/2019,Childrens,REDACTED,08/04/2019,368.76,74509-SPECIAL GUARDIANSHIP ORDERS,ADOPTION ALLOWANCES,Transfer Payments,Revenue
Walsall Council,http://opendatacommunities.org/id/metropolitan-district-council/walsall,WC103-763,30/04/2019,Childrens,REDACTED,08/04/2019,500.16,74509-SPECIAL GUARDIANSHIP ORDERS,ADOPTION ALLOWANCES,Transfer Payments,Revenue
Walsall Council,http://opendatacommunities.org/id/metropolitan-district-council/walsall,WC103-764,30/04/2019,Childrens,REDACTED,08/04/2019,312.04,74509-SPECIAL GUARDIANSHIP ORDERS,ADOPTION ALLOWANCES,Transfer Payments,Revenue
Walsall Council,http://opendatacommunities.org/id/metropolitan-district-council/walsall,WC103-765,30/04/2019,Childrens,ANGELS AND BUTTERFLIES CHILDMINDING,23/04/2019,636.19,66505-OTHER-GRANTS TO OTHER ORGS,EARLY YEARS - 3 YR OLDS,Third Party Payments,Revenue
Walsall Council,http://opendatacommunities.org/id/metropolitan-district-council/walsall,WC103-766,30/04/2019,Childrens,ANGELS AND BUTTERFLIES CHILDMINDING,23/04/2019,"2,299.05",66505-OTHER-GRANTS TO OTHER ORGS,EARLY YEARS - 2 YR OLDS,Third Party Payments,Revenue
Walsall Council,http://opendatacommunities.org/id/metropolitan-district-council/walsall,WC103-767,30/04/2019,Adult Social Care,REDACTED,09/04/2019,"1,169.43",73506-DIRECT PAYMENT,PHYSICAL SUPPORT,Third Party Payments,Revenue
Walsall Council,http://opendatacommunities.org/id/metropolitan-district-council/walsall,WC103-768,30/04/2019,Adult Social Care,ANSON COURT RESIDENTIAL HOME,29/04/2019,-784.34,73501-RESIDENTIAL EMI,PHYSICAL SUPPORT,Third Party Payments,Revenue
Walsall Council,http://opendatacommunities.org/id/metropolitan-district-council/walsall,WC103-769,30/04/2019,Adult Social Care,ANSON COURT RESIDENTIAL HOME,01/04/2019,-707.15,73501-RESIDENTIAL EMI,SOCIAL SUPPORT,Third Party Payments,Revenue
Walsall Council,http://opendatacommunities.org/id/metropolitan-district-council/walsall,WC103-770,30/04/2019,Adult Social Care,ANSON COURT RESIDENTIAL HOME,02/04/2019,427.82,73501-RESIDENTIAL EMI,MENTAL HEALTH SUPPORT,Third Party Payments,Revenue
Walsall Council,http://opendatacommunities.org/id/metropolitan-district-council/walsall,WC103-771,30/04/2019,Adult Social Care,ANSON COURT RESIDENTIAL HOME,02/04/2019,499.13,73501-RESIDENTIAL EMI,MENTAL HEALTH SUPPORT,Third Party Payments,Revenue
Walsall Council,http://opendatacommunities.org/id/metropolitan-district-council/walsall,WC103-772,30/04/2019,Adult Social Care,ANSON COURT RESIDENTIAL HOME,02/04/2019,670.19,73501-RESIDENTIAL EMI,SOCIAL SUPPORT,Third Party Payments,Revenue
Walsall Council,http://opendatacommunities.org/id/metropolitan-district-council/walsall,WC103-773,30/04/2019,Adult Social Care,ANSON COURT RESIDENTIAL HOME,01/04/2019,713.05,73501-RESIDENTIAL EMI,PHYSICAL SUPPORT,Third Party Payments,Revenue
Walsall Council,http://opendatacommunities.org/id/metropolitan-district-council/walsall,WC103-774,30/04/2019,Adult Social Care,ANSON COURT RESIDENTIAL HOME,29/04/2019,"1,283.47",73501-RESIDENTIAL EMI,PHYSICAL SUPPORT,Third Party Payments,Revenue
Walsall Council,http://opendatacommunities.org/id/metropolitan-district-council/walsall,WC103-775,30/04/2019,Adult Social Care,ANSON COURT RESIDENTIAL HOME,29/04/2019,"1,809.50",73501-RESIDENTIAL EMI,SOCIAL SUPPORT,Third Party Payments,Revenue
Walsall Council,http://opendatacommunities.org/id/metropolitan-district-council/walsall,WC103-776,30/04/2019,Adult Social Care,ANSON COURT RESIDENTIAL HOME,02/04/2019,"1,853.91",73501-RESIDENTIAL EMI,MENTAL HEALTH SUPPORT,Third Party Payments,Revenue
Walsall Council,http://opendatacommunities.org/id/metropolitan-district-council/walsall,WC103-777,30/04/2019,Adult Social Care,ANSON COURT RESIDENTIAL HOME,02/04/2019,"1,876.52",73501-RESIDENTIAL EMI,MENTAL HEALTH SUPPORT,Third Party Payments,Revenue
Walsall Council,http://opendatacommunities.org/id/metropolitan-district-council/walsall,WC103-778,30/04/2019,Adult Social Care,ANSON COURT RESIDENTIAL HOME,02/04/2019,"1,876.52",73501-RESIDENTIAL EMI,SUPPORT WITH MEMORY & COGNITION,Third Party Payments,Revenue
Walsall Council,http://opendatacommunities.org/id/metropolitan-district-council/walsall,WC103-779,30/04/2019,Adult Social Care,ANSON COURT RESIDENTIAL HOME,02/04/2019,"1,876.52",73501-RESIDENTIAL EMI,PHYSICAL SUPPORT,Third Party Payments,Revenue
Walsall Council,http://opendatacommunities.org/id/metropolitan-district-council/walsall,WC103-780,30/04/2019,Adult Social Care,ANSON COURT RESIDENTIAL HOME,02/04/2019,"1,876.52",73501-RESIDENTIAL EMI,PHYSICAL SUPPORT,Third Party Payments,Revenue
Walsall Council,http://opendatacommunities.org/id/metropolitan-district-council/walsall,WC103-781,30/04/2019,Adult Social Care,ANSON COURT RESIDENTIAL HOME,02/04/2019,"1,876.52",73501-RESIDENTIAL EMI,PHYSICAL SUPPORT,Third Party Payments,Revenue
Walsall Council,http://opendatacommunities.org/id/metropolitan-district-council/walsall,WC103-782,30/04/2019,Adult Social Care,ANSON COURT RESIDENTIAL HOME,02/04/2019,"1,876.52",73501-RESIDENTIAL EMI,SUPPORT WITH MEMORY & COGNITION,Third Party Payments,Revenue
Walsall Council,http://opendatacommunities.org/id/metropolitan-district-council/walsall,WC103-783,30/04/2019,Adult Social Care,ANSON COURT RESIDENTIAL HOME,02/04/2019,"1,876.52",73501-RESIDENTIAL EMI,SUPPORT WITH MEMORY & COGNITION,Third Party Payments,Revenue
Walsall Council,http://opendatacommunities.org/id/metropolitan-district-council/walsall,WC103-784,30/04/2019,Adult Social Care,ANSON COURT RESIDENTIAL HOME,02/04/2019,"1,876.52",73501-RESIDENTIAL EMI,MENTAL HEALTH SUPPORT,Third Party Payments,Revenue
Walsall Council,http://opendatacommunities.org/id/metropolitan-district-council/walsall,WC103-785,30/04/2019,Adult Social Care,ANSON COURT RESIDENTIAL HOME,02/04/2019,"1,876.52",73501-RESIDENTIAL EMI,SUPPORT WITH MEMORY & COGNITION,Third Party Payments,Revenue
Walsall Council,http://opendatacommunities.org/id/metropolitan-district-council/walsall,WC103-786,30/04/2019,Adult Social Care,ANSON COURT RESIDENTIAL HOME,02/04/2019,"1,876.52",73501-RESIDENTIAL EMI,SOCIAL SUPPORT,Third Party Payments,Revenue
Walsall Council,http://opendatacommunities.org/id/metropolitan-district-council/walsall,WC103-787,30/04/2019,Adult Social Care,ANSON COURT RESIDENTIAL HOME,02/04/2019,"1,876.52",73501-RESIDENTIAL EMI,SUPPORT WITH MEMORY & COGNITION,Third Party Payments,Revenue
Walsall Council,http://opendatacommunities.org/id/metropolitan-district-council/walsall,WC103-788,30/04/2019,Adult Social Care,ANSON COURT RESIDENTIAL HOME,02/04/2019,"1,876.52",73501-RESIDENTIAL EMI,PHYSICAL SUPPORT,Third Party Payments,Revenue
Walsall Council,http://opendatacommunities.org/id/metropolitan-district-council/walsall,WC103-789,30/04/2019,Adult Social Care,ANSON COURT RESIDENTIAL HOME,02/04/2019,"1,876.52",73501-RESIDENTIAL EMI,PHYSICAL SUPPORT,Third Party Payments,Revenue
Walsall Council,http://opendatacommunities.org/id/metropolitan-district-council/walsall,WC103-790,30/04/2019,Adult Social Care,ANSON COURT RESIDENTIAL HOME,29/04/2019,"1,876.52",73501-RESIDENTIAL EMI,MENTAL HEALTH SUPPORT,Third Party Payments,Revenue
Walsall Council,http://opendatacommunities.org/id/metropolitan-district-council/walsall,WC103-791,30/04/2019,Adult Social Care,ANSON COURT RESIDENTIAL HOME,29/04/2019,"1,876.52",73501-RESIDENTIAL EMI,MENTAL HEALTH SUPPORT,Third Party Payments,Revenue
Walsall Council,http://opendatacommunities.org/id/metropolitan-district-council/walsall,WC103-792,30/04/2019,Adult Social Care,ANSON COURT RESIDENTIAL HOME,29/04/2019,"1,876.52",73501-RESIDENTIAL EMI,SUPPORT WITH MEMORY & COGNITION,Third Party Payments,Revenue
Walsall Council,http://opendatacommunities.org/id/metropolitan-district-council/walsall,WC103-793,30/04/2019,Adult Social Care,ANSON COURT RESIDENTIAL HOME,29/04/2019,"1,876.52",73501-RESIDENTIAL EMI,SUPPORT WITH MEMORY & COGNITION,Third Party Payments,Revenue
Walsall Council,http://opendatacommunities.org/id/metropolitan-district-council/walsall,WC103-794,30/04/2019,Adult Social Care,ANSON COURT RESIDENTIAL HOME,29/04/2019,"1,876.52",73501-RESIDENTIAL EMI,PHYSICAL SUPPORT,Third Party Payments,Revenue
Walsall Council,http://opendatacommunities.org/id/metropolitan-district-council/walsall,WC103-795,30/04/2019,Adult Social Care,ANSON COURT RESIDENTIAL HOME,29/04/2019,"1,876.52",73501-RESIDENTIAL EMI,PHYSICAL SUPPORT,Third Party Payments,Revenue
Walsall Council,http://opendatacommunities.org/id/metropolitan-district-council/walsall,WC103-796,30/04/2019,Adult Social Care,ANSON COURT RESIDENTIAL HOME,29/04/2019,"1,876.52",73501-RESIDENTIAL EMI,PHYSICAL SUPPORT,Third Party Payments,Revenue
Walsall Council,http://opendatacommunities.org/id/metropolitan-district-council/walsall,WC103-797,30/04/2019,Adult Social Care,ANSON COURT RESIDENTIAL HOME,29/04/2019,"1,876.52",73501-RESIDENTIAL EMI,SOCIAL SUPPORT,Third Party Payments,Revenue
